Capital or Revenue,Directorate,Transaction Number,Date,Service Area,Expenses Type,Amount,Supplier Name,
Revenue,Place,5105632686,03.06.2015,Rights of Way Operations,Payment to Private Contractors,140.00,REDACTED PERSONAL DATA,2
Revenue,Place,5105632668,03.06.2015,Rights of Way Operations,Payment to Private Contractors,140.00,REDACTED PERSONAL DATA,3
Revenue,Childrens Services,5105636653,24.06.2015,Island Learning Centre,Bought in Prof Services - Curriculum (Schools),"1,000.00",REDACTED PERSONAL DATA,4
Revenue,Adult Services,5105637746,01.07.2015,Advocacy Services (IMCA & IMHA),Payment to Private Contractors,200.00,REDACTED PERSONAL DATA,5
Revenue,Adult Services,5105633776,12.06.2015,Advocacy Services (IMCA & IMHA),Payment to Private Contractors,200.00,REDACTED PERSONAL DATA,6
Revenue,Childrens Services,5105633788,10.06.2015,Complaints (Children & Families),Professional Services,200.00,REDACTED PERSONAL DATA,7
Revenue,Childrens Services,5105633675,10.06.2015,Old Cowes Enterprise College,Property Services only - Day to day maintenance,425.00,REDACTED PERSONAL DATA,8
Revenue,Childrens Services,5105633675,10.06.2015,Youth- Shorwell,Property Services only - Day to day maintenance,100.00,REDACTED PERSONAL DATA,9
Revenue,Place,5105633675,10.06.2015,Shared Ownership,Property Services only - Day to day maintenance,75.00,REDACTED PERSONAL DATA,10
Revenue,Place,5105633675,10.06.2015,Non-operational buildings,Property Services only - Day to day maintenance,100.00,REDACTED PERSONAL DATA,11
Revenue,Childrens Services,5105633794,12.06.2015,Clatterford Pupil Referral Unit (PRU),Security of Buildings,60.00,REDACTED PERSONAL DATA,12
Revenue,Place,5105633675,10.06.2015,York Centre E Cowes,Property Services only - Day to day maintenance,150.00,REDACTED PERSONAL DATA,13
Revenue,Place,5105633675,10.06.2015,Church View Ventnor,Property Services only - Day to day maintenance,100.00,REDACTED PERSONAL DATA,14
Revenue,Childrens Services,5105633794,12.06.2015,Hunnyhill Primary School Disposal,Security of Buildings,310.00,REDACTED PERSONAL DATA,15
Revenue,Childrens Services,5105633794,12.06.2015,Hunnyhill Primary School Disposal,Minor Works,130.00,REDACTED PERSONAL DATA,16
Revenue,Childrens Services,5105633794,12.06.2015,Sandham Middle School Disposal,Security of Buildings,800.00,REDACTED PERSONAL DATA,17
Revenue,Childrens Services,5105633794,12.06.2015,Sandham Middle School Disposal,Security of Buildings,100.00,REDACTED PERSONAL DATA,18
Revenue,Childrens Services,5105633675,10.06.2015,Youth- Ryde  (Well St),Property Services only - Day to day maintenance,"1,240.00",REDACTED PERSONAL DATA,19
Revenue,Place,5105633675,10.06.2015,"Westridge, Ryde",Property Services only - Day to day maintenance,25.00,REDACTED PERSONAL DATA,20
Revenue,Place,5105633675,10.06.2015,Victoria Recreation Ground,Property Services only - Day to day maintenance,100.00,REDACTED PERSONAL DATA,21
Revenue,Place,5105633675,10.06.2015,"Atkinson Drive, Newport",Property Services only - Day to day maintenance,100.00,REDACTED PERSONAL DATA,22
Revenue,Childrens Services,5105633675,10.06.2015,Youth- Sandown,Property Services only - Day to day maintenance,100.00,REDACTED PERSONAL DATA,23
Revenue,Childrens Services,5105633675,10.06.2015,Island Youth Water Activity Centre,Property Services only - Day to day maintenance,100.00,REDACTED PERSONAL DATA,24
Revenue,Place,5105633675,10.06.2015,Somerton Industrial Park,Property Services only - Day to day maintenance,100.00,REDACTED PERSONAL DATA,25
Revenue,Childrens Services,5105633675,10.06.2015,Youth- Cowes,Property Services only - Day to day maintenance,100.00,REDACTED PERSONAL DATA,26
Revenue,Place,5105633675,10.06.2015,Carisbrooke Contact Centre,Property Services only - Day to day maintenance,100.00,REDACTED PERSONAL DATA,27
Revenue,Childrens Services,5105633643,12.06.2015,Home to School Transport,Taxis - Contract Hire,257.25,MICK'S TAXI,28
Revenue,Childrens Services,5105633542,12.06.2015,Home to School Transport,Taxis - Contract Hire,292.65,MICK'S TAXI,29
Revenue,Childrens Services,5105633651,12.06.2015,Home to School Transport,Taxis - Contract Hire,514.35,MICK'S TAXI,30
Revenue,Resources,5105637422,30.06.2015,Benefits Manager,Training,"2,950.00",CD & CD ARIS (TRAINING ERA),31
Revenue,Resources,5105637422,30.06.2015,Benefits Manager,Training,200.00,CD & CD ARIS (TRAINING ERA),32
Revenue,Resources,5105637422,30.06.2015,Benefits Manager,Training,660.00,CD & CD ARIS (TRAINING ERA),33
Revenue,Resources,5105637422,30.06.2015,Benefits Manager,Training,"2,375.00",CD & CD ARIS (TRAINING ERA),34
Revenue,Adult Services,5105637077,24.06.2015,31 Carter Avenue,Maintenance of Operational Equipment,25.00,CHRIS' DOMESTIC SERVICES,35
Revenue,Childrens Services,5105633567,12.06.2015,Special Educational Needs Transport,Taxis - Contract Hire,840.00,CLARES CABS,36
Revenue,Place,5105633892,10.06.2015,Coroner,Professional Services,663.04,REDACTED PERSONAL DATA,37
Revenue,Place,5105633892,10.06.2015,Coroner,Professional Services,201.28,REDACTED PERSONAL DATA,38
Revenue,Place,5105633892,10.06.2015,Coroner,Professional Services,6.30,REDACTED PERSONAL DATA,39
Revenue,Place,5105634211,12.06.2015,SOREC Project ERDF,Consultants Fees,"1,150.00",ESCAPADE EVENTS,40
Revenue,Place,5105637222,26.06.2015,East Wight Landscape Partnership-Development,Consultants Fees,"2,512.60",REDACTED PERSONAL DATA,41
Revenue,Childrens Services,5105636630,19.06.2015,Short Breaks,Charges from Independent Providers,730.00,REDACTED PERSONAL DATA,42
Revenue,Place,5105632948,03.06.2015,Duke of Edingburgh Award,Professional Services,280.00,REDACTED PERSONAL DATA,43
Revenue,Childrens Services,5105637707,30.06.2015,Island Learning Centre,Bought in Prof Services - Curriculum (Schools),"3,585.00",ISLAND EQUUS,44
Revenue,Childrens Services,5105636943,24.06.2015,Adult Social Care ASYE,Training,500.00,REDACTED PERSONAL DATA,45
Revenue,Childrens Services,5105636599,19.06.2015,Island Learning Centre,Bought in Prof Services - Curriculum (Schools),220.00,ISLE OF WIGHT JIU JITSU,46
Revenue,Childrens Services,5105637599,30.06.2015,Island Learning Centre,Bought in Prof Services - Curriculum (Schools),180.00,ISLE OF WIGHT JIU JITSU,47
Revenue,Childrens Services,5105634027,10.06.2015,In-house Fostering,Advertising & Publicity,130.00,MAX HURN PHOTOGRAPHY,48
Revenue,Place,5105637429,26.06.2015,LSTF Grant,Consultants Fees,580.00,REDACTED PERSONAL DATA,49
Revenue,Childrens Services,5105636668,24.06.2015,Short Breaks,Charges from Independent Providers,587.00,REDACTED PERSONAL DATA,50
Revenue,Place,5105637705,01.07.2015,Rights of Way Operations,Payment to Private Contractors,110.00,REDACTED PERSONAL DATA,51
Revenue,Place,5105633598,10.06.2015,Newport Library,Cleaning Contracts,195.00,REDACTED PERSONAL DATA,52
Revenue,Place,5105633639,10.06.2015,Corporate Campaigns,Professional Services,300.00,REDACTED PERSONAL DATA,53
Revenue,Place,5105636765,24.06.2015,Leaseholds by LA,Accommodation Costs - Leaseholder Payments,695.89,REDACTED PERSONAL DATA,54
Revenue,Place,5105636765,24.06.2015,Leaseholds by LA,Accommodation Costs - Leaseholder Payments,695.89,REDACTED PERSONAL DATA,55
Revenue,Place,5105636765,24.06.2015,Leaseholds by LA,Accommodation Costs - Leaseholder Payments,695.89,REDACTED PERSONAL DATA,56
Revenue,Place,5105636765,24.06.2015,Leaseholds by LA,Accommodation Costs - Leaseholder Payments,695.89,REDACTED PERSONAL DATA,57
Revenue,Place,5105636765,24.06.2015,Leaseholds by LA,Accommodation Costs - Leaseholder Payments,695.89,REDACTED PERSONAL DATA,58
Revenue,Adult Services,5105636490,19.06.2015,Gouldings Resource Centre,Professional Services,55.00,REDACTED PERSONAL DATA,59
Revenue,Childrens Services,5105633958,19.06.2015,Hearing Impaired Service,Training,"1,549.00",SIGN FOR THOUGHTS,60
Revenue,Childrens Services,5105633420,05.06.2015,Island Learning Centre,Taxis - Contract Hire,775.30,LAKE TAXIS,61
Revenue,Place,5105636784,24.06.2015,Leaseholds by LA,Accommodation Costs - Leaseholder Payments,866.67,2K PROPERTY,62
Revenue,Resources,5105634204,12.06.2015,Elections,Rent of Buildings and Rooms,110.00,2ND COWES SEA SCOUTS,63
Revenue,Place,5105634415,17.06.2015,Project Manager Waste Strategy,Computer Software & Consumables,461.25,4 PROJECTS LIMITED,64
Revenue,Place,5105635245,17.06.2015,Project Manager Waste Strategy,Computer Software & Consumables,461.25,4 PROJECTS LIMITED,65
Revenue,Place,5105635188,17.06.2015,Project Manager Waste Strategy,Computer Software & Consumables,822.50,4 PROJECTS LIMITED,66
Revenue,Childrens Services,5105635537,17.06.2015,Purchased Fostering,Charges from Independent Providers,548.60,5 FOSTERING,67
Revenue,Childrens Services,5105637107,24.06.2015,Purchased Fostering,Charges from Independent Providers,"4,251.65",5 FOSTERING,68
Revenue,Adult Services,5105633607,10.06.2015,Gouldings Resource Centre,Consumable Cleaning Materials,150.00,A & M APPLIANCE CARE,69
Revenue,Adult Services,5105636104,19.06.2015,Westminster House,Property Services only - Day to day maintenance,161.77,A & M APPLIANCE CARE,70
Revenue,Adult Services,5105633089,05.06.2015,Westminster House,Maintenance of Operational Equipment,131.20,A & M APPLIANCE CARE,71
Revenue,Childrens Services,5105633144,03.06.2015,Beaulieu House,Minor Works,433.47,A & M APPLIANCE CARE,72
Revenue,Adult Services,5105636955,26.06.2015,Overbrook,Minor Works,"2,500.00",A & M APPLIANCE CARE,73
Revenue,Adult Services,5105633064,03.06.2015,Adelaide Resource Centre,Consumable Cleaning Materials,183.00,A & M APPLIANCE CARE,74
Revenue,Adult Services,5105633740,10.06.2015,Adelaide Resource Centre,Consumable Cleaning Materials,246.00,A & M APPLIANCE CARE,75
Revenue,Adult Services,5105636390,19.06.2015,Adelaide Resource Centre,Property Services only - Day to day maintenance,107.80,A & M APPLIANCE CARE,76
Revenue,Adult Services,5105634403,17.06.2015,Saxonbury,Minor Works,90.63,A C SERVICES,82
Revenue,Childrens Services,5105633231,05.06.2015,Special Guardianship Order Costs,Support Children,168.39,REDACTED PERSONAL DATA,92
Revenue,Childrens Services,5105633231,05.06.2015,Special Guardianship Order Costs,Support Children,207.73,REDACTED PERSONAL DATA,93
Revenue,Childrens Services,5105637287,26.06.2015,Special Guardianship Order Costs,Support Children,168.39,REDACTED PERSONAL DATA,94
Revenue,Childrens Services,5105637287,26.06.2015,Special Guardianship Order Costs,Support Children,207.73,REDACTED PERSONAL DATA,95
Revenue,Childrens Services,5105634065,12.06.2015,Special Guardianship Order Costs,Support Children,168.39,REDACTED PERSONAL DATA,96
Revenue,Childrens Services,5105634065,12.06.2015,Special Guardianship Order Costs,Support Children,207.73,REDACTED PERSONAL DATA,97
Revenue,Childrens Services,5105636187,19.06.2015,Special Guardianship Order Costs,Support Children,168.39,REDACTED PERSONAL DATA,98
Revenue,Childrens Services,5105636187,19.06.2015,Special Guardianship Order Costs,Support Children,207.73,REDACTED PERSONAL DATA,99
Revenue,Childrens Services,5105637354,26.06.2015,Leaving Care Costs,Accommodation Costs - Service Users,68.50,REDACTED PERSONAL DATA,102
Revenue,Childrens Services,5105636253,19.06.2015,Leaving Care Costs,Support Children,120.89,REDACTED PERSONAL DATA,103
Revenue,Childrens Services,5105637354,26.06.2015,Leaving Care Costs,Support Children,120.89,REDACTED PERSONAL DATA,104
Revenue,Childrens Services,5105633299,05.06.2015,Leaving Care Costs,Support Children,120.89,REDACTED PERSONAL DATA,105
Revenue,Childrens Services,5105634132,12.06.2015,Leaving Care Costs,Support Children,120.89,REDACTED PERSONAL DATA,106
Revenue,Childrens Services,5105633299,05.06.2015,Leaving Care Costs,Accommodation Costs - Service Users,68.50,REDACTED PERSONAL DATA,107
Revenue,Childrens Services,5105634132,12.06.2015,Leaving Care Costs,Accommodation Costs - Service Users,68.50,REDACTED PERSONAL DATA,108
Revenue,Childrens Services,5105636253,19.06.2015,Leaving Care Costs,Accommodation Costs - Service Users,68.50,REDACTED PERSONAL DATA,109
Revenue,Place,5105636779,24.06.2015,Leaseholds by LA,Accommodation Costs - Leaseholder Payments,510.25,REDACTED PERSONAL DATA,112
Revenue,Place,5105636779,24.06.2015,Leaseholds by LA,Accommodation Costs - Leaseholder Payments,510.25,REDACTED PERSONAL DATA,113
Revenue,Place,5105636779,24.06.2015,Leaseholds by LA,Accommodation Costs - Leaseholder Payments,510.25,REDACTED PERSONAL DATA,114
Revenue,Place,5105636779,24.06.2015,Leaseholds by LA,Accommodation Costs - Leaseholder Payments,510.25,REDACTED PERSONAL DATA,115
Revenue,Place,5105636779,24.06.2015,Leaseholds by LA,Accommodation Costs - Leaseholder Payments,510.25,REDACTED PERSONAL DATA,116
Revenue,Place,5105636779,24.06.2015,Leaseholds by LA,Accommodation Costs - Leaseholder Payments,510.25,REDACTED PERSONAL DATA,117
Revenue,Childrens Services,5105634045,12.06.2015,Adoption Costs,Support Children,225.83,REDACTED PERSONAL DATA,123
Revenue,Childrens Services,5105637267,26.06.2015,Adoption Costs,Support Children,225.83,REDACTED PERSONAL DATA,124
Revenue,Childrens Services,5105636167,19.06.2015,Adoption Costs,Support Children,225.83,REDACTED PERSONAL DATA,125
Revenue,Childrens Services,5105633211,05.06.2015,Adoption Costs,Support Children,225.83,REDACTED PERSONAL DATA,126
Revenue,Childrens Services,5105637324,26.06.2015,In-house Fostering,Boarding Out Allowances,162.73,REDACTED PERSONAL DATA,134
Revenue,Childrens Services,5105636223,19.06.2015,In-house Fostering,Boarding Out Allowances,162.73,REDACTED PERSONAL DATA,135
Revenue,Childrens Services,5105634101,12.06.2015,In-house Fostering,Boarding Out Allowances,162.73,REDACTED PERSONAL DATA,136
Revenue,Childrens Services,5105633268,05.06.2015,In-house Fostering,Boarding Out Allowances,162.73,REDACTED PERSONAL DATA,137
Revenue,Place,5105636781,24.06.2015,Leaseholds by LA,Accommodation Costs - Leaseholder Payments,780.00,REDACTED PERSONAL DATA,138
Revenue,Place,5105636769,24.06.2015,Leaseholds by LA,Accommodation Costs - Leaseholder Payments,835.08,REDACTED PERSONAL DATA,148
Revenue,Place,5105636769,24.06.2015,Leaseholds by LA,Accommodation Costs - Leaseholder Payments,789.01,REDACTED PERSONAL DATA,149
Revenue,Place,5105636769,24.06.2015,Leaseholds by LA,Accommodation Costs - Leaseholder Payments,649.83,REDACTED PERSONAL DATA,150
Revenue,Childrens Services,5105636279,19.06.2015,In-house Fostering,Boarding Out Allowances,246.44,REDACTED PERSONAL DATA,157
Revenue,Childrens Services,5105636279,19.06.2015,In-house Fostering,Boarding Out Allowances,150.00,REDACTED PERSONAL DATA,158
Revenue,Childrens Services,5105637380,26.06.2015,In-house Fostering,Boarding Out Allowances,246.44,REDACTED PERSONAL DATA,159
Revenue,Childrens Services,5105637380,26.06.2015,In-house Fostering,Boarding Out Allowances,150.00,REDACTED PERSONAL DATA,160
Revenue,Childrens Services,5105634158,12.06.2015,In-house Fostering,Boarding Out Allowances,246.44,REDACTED PERSONAL DATA,161
Revenue,Childrens Services,5105634158,12.06.2015,In-house Fostering,Boarding Out Allowances,150.00,REDACTED PERSONAL DATA,162
Revenue,Childrens Services,5105633325,05.06.2015,In-house Fostering,Boarding Out Allowances,246.44,REDACTED PERSONAL DATA,163
Revenue,Childrens Services,5105633325,05.06.2015,In-house Fostering,Boarding Out Allowances,150.00,REDACTED PERSONAL DATA,164
Revenue,Place,5105633497,05.06.2015,Supporting People Older Persons,Payment to Private Contractors,315.00,ABBEYFIELD WEST WIGHT SOCIETY,168
Revenue,Resources,5105636513,19.06.2015,ICT Refresh Programme,Computer Maintenance,"8,400.00",ABSOFT LIMITED,169
Revenue,Adult Services,5105634569,17.06.2015,Elderly Mentally Ill Residential Care,Charges from Independent Providers,"1,781.36",ACACIA CARE HOME,170
Revenue,Adult Services,5105636970,24.06.2015,Elderly Frail Residential Care,Charges from Independent Providers,"1,700.44",ACACIA CARE HOME,171
Revenue,Adult Services,5105634569,17.06.2015,Elderly Frail Residential Care,Charges from Independent Providers,"1,700.44",ACACIA CARE HOME,172
Revenue,Adult Services,5105634569,17.06.2015,Elderly Frail Residential Care,Charges from Independent Providers,"2,093.84",ACACIA CARE HOME,173
Revenue,Adult Services,5105634293,12.06.2015,Elderly Frail Residential Care,Charges from Independent Providers,"2,064.82",ACACIA CARE HOME,174
Revenue,Adult Services,5105634569,17.06.2015,Elderly Frail Residential Care,Charges from Independent Providers,"1,700.44",ACACIA CARE HOME,175
Revenue,Place,5105633832,10.06.2015,Business Support  - Fire,Interview & recruitment expenses,44.00,ACCESS PERSONAL CHECKING SERVICES LTD,176
Revenue,Place,5105633832,10.06.2015,Business Support  - Fire,Interview & recruitment expenses,6.00,ACCESS PERSONAL CHECKING SERVICES LTD,177
Revenue,Place,5105633832,10.06.2015,School Music Service,Interview & recruitment expenses,44.00,ACCESS PERSONAL CHECKING SERVICES LTD,178
Revenue,Place,5105633832,10.06.2015,School Music Service,Interview & recruitment expenses,12.00,ACCESS PERSONAL CHECKING SERVICES LTD,179
Revenue,Adult Services,5105633832,10.06.2015,Transitions Team,Interview & recruitment expenses,6.00,ACCESS PERSONAL CHECKING SERVICES LTD,180
Revenue,Adult Services,5105633832,10.06.2015,Transitions Team,Interview & recruitment expenses,44.00,ACCESS PERSONAL CHECKING SERVICES LTD,181
Revenue,Childrens Services,5105633832,10.06.2015,Education Welfare Service,Interview & recruitment expenses,6.00,ACCESS PERSONAL CHECKING SERVICES LTD,182
Revenue,Childrens Services,5105633832,10.06.2015,Education Welfare Service,Interview & recruitment expenses,44.00,ACCESS PERSONAL CHECKING SERVICES LTD,183
Revenue,Place,5105633832,10.06.2015,School Crossing Patrols,Interview & recruitment expenses,88.00,ACCESS PERSONAL CHECKING SERVICES LTD,184
Revenue,Place,5105633832,10.06.2015,School Crossing Patrols,Interview & recruitment expenses,12.00,ACCESS PERSONAL CHECKING SERVICES LTD,185
Revenue,Childrens Services,5105633832,10.06.2015,Beaulieu House,Interview & recruitment expenses,132.00,ACCESS PERSONAL CHECKING SERVICES LTD,186
Revenue,Childrens Services,5105633832,10.06.2015,Beaulieu House,Interview & recruitment expenses,18.00,ACCESS PERSONAL CHECKING SERVICES LTD,187
Revenue,Resources,5105633832,10.06.2015,Democratic Representation & Management,Interview & recruitment expenses,6.00,ACCESS PERSONAL CHECKING SERVICES LTD,188
Revenue,Place,5105633832,10.06.2015,"Registration Of Births,Deaths, Marriages",Interview & recruitment expenses,25.00,ACCESS PERSONAL CHECKING SERVICES LTD,189
Revenue,Place,5105633832,10.06.2015,"Registration Of Births,Deaths, Marriages",Interview & recruitment expenses,8.00,ACCESS PERSONAL CHECKING SERVICES LTD,190
Revenue,Place,5105633832,10.06.2015,Fort Victoria,Interview & recruitment expenses,6.00,ACCESS PERSONAL CHECKING SERVICES LTD,191
Revenue,Place,5105633832,10.06.2015,Fort Victoria,Interview & recruitment expenses,26.00,ACCESS PERSONAL CHECKING SERVICES LTD,192
Revenue,Place,5105633832,10.06.2015,Environmental Health - Geographical Team,Interview & recruitment expenses,25.00,ACCESS PERSONAL CHECKING SERVICES LTD,193
Revenue,Place,5105633832,10.06.2015,Environmental Health - Geographical Team,Interview & recruitment expenses,8.00,ACCESS PERSONAL CHECKING SERVICES LTD,194
Revenue,Childrens Services,5105633832,10.06.2015,Safeguarding Support,Interview & recruitment expenses,6.00,ACCESS PERSONAL CHECKING SERVICES LTD,195
Revenue,Childrens Services,5105633832,10.06.2015,Safeguarding Support,Interview & recruitment expenses,26.00,ACCESS PERSONAL CHECKING SERVICES LTD,196
Revenue,Place,5105633755,10.06.2015,Licensing Services,Professional Services,48.00,ACCESS PERSONAL CHECKING SERVICES LTD,197
Revenue,Place,5105633755,10.06.2015,Licensing Services,Professional Services,308.00,ACCESS PERSONAL CHECKING SERVICES LTD,198
Revenue,Childrens Services,5105633832,10.06.2015,Adoption Team,Interview & recruitment expenses,30.00,ACCESS PERSONAL CHECKING SERVICES LTD,199
Revenue,Childrens Services,5105633832,10.06.2015,Adoption Team,Interview & recruitment expenses,220.00,ACCESS PERSONAL CHECKING SERVICES LTD,200
Revenue,Childrens Services,5105633832,10.06.2015,In-house Fostering,Interview & recruitment expenses,176.00,ACCESS PERSONAL CHECKING SERVICES LTD,201
Revenue,Childrens Services,5105633832,10.06.2015,In-house Fostering,Interview & recruitment expenses,24.00,ACCESS PERSONAL CHECKING SERVICES LTD,202
Revenue,Childrens Services,5105633832,10.06.2015,Youth Offending Team,Interview & recruitment expenses,44.00,ACCESS PERSONAL CHECKING SERVICES LTD,203
Revenue,Childrens Services,5105633832,10.06.2015,Youth Offending Team,Interview & recruitment expenses,6.00,ACCESS PERSONAL CHECKING SERVICES LTD,204
Revenue,Childrens Services,5105633832,10.06.2015,Direct Payments Children & Families,Interview & recruitment expenses,6.00,ACCESS PERSONAL CHECKING SERVICES LTD,205
Revenue,Childrens Services,5105633832,10.06.2015,Direct Payments Children & Families,Interview & recruitment expenses,44.00,ACCESS PERSONAL CHECKING SERVICES LTD,206
Revenue,Adult Services,5105633061,03.06.2015,S75 Integrated Community Equipment Store,Operational Equipment,"1,125.00",ACCORA  LIMITED,207
Revenue,Adult Services,5105635310,17.06.2015,Elderly Frail Homecare,Regular Respite Care,122.24,ACORN CARE SERVICE LTD,208
Revenue,Adult Services,5105635312,17.06.2015,Elderly Frail Homecare,Regular Respite Care,152.80,ACORN CARE SERVICE LTD,209
Revenue,Adult Services,5105635313,17.06.2015,Elderly Frail Homecare,Charges from Independent Providers,519.52,ACORN CARE SERVICE LTD,210
Revenue,Adult Services,5105635326,17.06.2015,Elderly Frail Homecare,Regular Respite Care,275.04,ACORN CARE SERVICE LTD,211
Revenue,Adult Services,5105635323,17.06.2015,Elderly Frail Homecare,Regular Respite Care,275.04,ACORN CARE SERVICE LTD,212
Revenue,Adult Services,5105635307,17.06.2015,Elderly Frail Homecare,Regular Respite Care,91.68,ACORN CARE SERVICE LTD,213
Revenue,Adult Services,5105635304,17.06.2015,Elderly Frail Homecare,Regular Respite Care,366.72,ACORN CARE SERVICE LTD,214
Revenue,Adult Services,5105635309,17.06.2015,Elderly Frail Homecare,Regular Respite Care,152.80,ACORN CARE SERVICE LTD,215
Revenue,Adult Services,5105635311,17.06.2015,Elderly Frail Homecare,Charges from Independent Providers,653.22,ACORN CARE SERVICE LTD,216
Revenue,Adult Services,5105635321,17.06.2015,Elderly Frail Homecare,Charges from Independent Providers,145.16,ACORN CARE SERVICE LTD,217
Revenue,Adult Services,5105635320,17.06.2015,Elderly Frail Homecare,Charges from Independent Providers,"3,193.52",ACORN CARE SERVICE LTD,218
Revenue,Adult Services,5105635301,17.06.2015,Elderly Frail Homecare,Charges from Independent Providers,76.40,ACORN CARE SERVICE LTD,219
Revenue,Adult Services,5105635317,17.06.2015,Elderly Frail Homecare,Charges from Independent Providers,267.40,ACORN CARE SERVICE LTD,220
Revenue,Adult Services,5105635316,17.06.2015,Elderly Frail Homecare,Charges from Independent Providers,668.50,ACORN CARE SERVICE LTD,221
Revenue,Adult Services,5105635299,17.06.2015,Elderly Frail Homecare,Charges from Independent Providers,"1,000.84",ACORN CARE SERVICE LTD,222
Revenue,Adult Services,5105635298,17.06.2015,Elderly Frail Homecare,Charges from Independent Providers,"1,474.52",ACORN CARE SERVICE LTD,223
Revenue,Adult Services,5105635297,17.06.2015,Elderly Frail Homecare,Charges from Independent Providers,"1,776.30",ACORN CARE SERVICE LTD,224
Revenue,Adult Services,5105635296,17.06.2015,Elderly Frail Homecare,Charges from Independent Providers,"2,540.30",ACORN CARE SERVICE LTD,225
Revenue,Adult Services,5105635302,17.06.2015,Elderly Frail Homecare,Charges from Independent Providers,"1,207.12",ACORN CARE SERVICE LTD,226
Revenue,Adult Services,5105635300,17.06.2015,Elderly Frail Homecare,Charges from Independent Providers,"1,356.10",ACORN CARE SERVICE LTD,227
Revenue,Adult Services,5105635303,17.06.2015,Elderly Frail Homecare,Charges from Independent Providers,840.40,ACORN CARE SERVICE LTD,228
Revenue,Adult Services,5105635315,17.06.2015,Elderly Frail Homecare,Charges from Independent Providers,393.46,ACORN CARE SERVICE LTD,229
Revenue,Adult Services,5105635314,17.06.2015,Elderly Frail Homecare,Charges from Independent Providers,890.06,ACORN CARE SERVICE LTD,230
Revenue,Adult Services,5105635331,17.06.2015,Elderly Frail Homecare,Charges from Independent Providers,206.28,ACORN CARE SERVICE LTD,231
Revenue,Adult Services,5105635308,17.06.2015,Elderly Frail Homecare,Charges from Independent Providers,"3,460.92",ACORN CARE SERVICE LTD,232
Revenue,Adult Services,5105635305,17.06.2015,Elderly Frail Homecare,Charges from Independent Providers,546.26,ACORN CARE SERVICE LTD,233
Revenue,Adult Services,5105635324,17.06.2015,Elderly Frail Homecare,Charges from Independent Providers,"1,260.60",ACORN CARE SERVICE LTD,234
Revenue,Adult Services,5105635325,17.06.2015,Elderly Frail Homecare,Charges from Independent Providers,76.40,ACORN CARE SERVICE LTD,235
Revenue,Adult Services,5105635319,17.06.2015,Elderly Frail Homecare,Charges from Independent Providers,794.56,ACORN CARE SERVICE LTD,236
Revenue,Adult Services,5105635327,17.06.2015,Elderly Frail Homecare,Charges from Independent Providers,794.56,ACORN CARE SERVICE LTD,237
Revenue,Adult Services,5105635327,17.06.2015,Elderly Frail Homecare,Charges from Independent Providers,420.20,ACORN CARE SERVICE LTD,238
Revenue,Adult Services,5105635322,17.06.2015,Elderly Frail Homecare,Charges from Independent Providers,401.10,ACORN CARE SERVICE LTD,239
Revenue,Adult Services,5105635332,17.06.2015,Elderly Frail Homecare,Charges from Independent Providers,469.86,ACORN CARE SERVICE LTD,240
Revenue,Adult Services,5105635333,17.06.2015,Elderly Frail Homecare,Charges from Independent Providers,702.88,ACORN CARE SERVICE LTD,241
Revenue,Adult Services,5105635295,17.06.2015,Elderly Frail Homecare,Charges from Independent Providers,229.20,ACORN CARE SERVICE LTD,242
Revenue,Adult Services,5105635318,17.06.2015,Elderly Frail Homecare,Charges from Independent Providers,382.00,ACORN CARE SERVICE LTD,243
Revenue,Adult Services,5105635306,17.06.2015,Elderly Frail Homecare,Charges from Independent Providers,"1,088.70",ACORN CARE SERVICE LTD,244
Revenue,Adult Services,5105635294,17.06.2015,Elderly Frail Homecare,Charges from Independent Providers,"2,666.36",ACORN CARE SERVICE LTD,245
Revenue,Adult Services,5105635328,17.06.2015,Elderly Frail Homecare,Charges from Independent Providers,259.76,ACORN CARE SERVICE LTD,246
Revenue,Adult Services,5105635329,17.06.2015,Elderly Frail Homecare,Charges from Independent Providers,649.40,ACORN CARE SERVICE LTD,247
Revenue,Adult Services,5105635329,17.06.2015,Elderly Frail Homecare,Charges from Independent Providers,133.70,ACORN CARE SERVICE LTD,248
Revenue,Adult Services,5105635330,17.06.2015,Elderly Mentally Ill Homecare,Charges from Independent Providers,206.28,ACORN CARE SERVICE LTD,249
Revenue,Place,5105633102,03.06.2015,Diversity & Workforce,Training,"4,998.00",ACTIVE LEARNING AND DEVELOPMENT LTD,250
Revenue,Place,5105632978,03.06.2015,Fire Technical Support,Vehicle Maintenance Costs,14.50,ADAMS MOREY LTD,252
Revenue,Place,5105633610,10.06.2015,Fire Technical Support,Vehicle Maintenance Costs,14.50,ADAMS MOREY LTD,253
Revenue,Place,5105636867,24.06.2015,Fire Technical Support,Vehicle Maintenance Costs,14.50,ADAMS MOREY LTD,254
Revenue,Place,5105636905,24.06.2015,Fire Technical Support,Vehicle Maintenance Costs,65.34,ADAMS MOREY LTD,255
Revenue,Place,5105636905,24.06.2015,Fire Technical Support,Vehicle Maintenance Costs,3.70,ADAMS MOREY LTD,256
Revenue,Place,5105636859,24.06.2015,Fire Technical Support,Vehicle Maintenance Costs,40.00,ADAMS MOREY LTD,257
Revenue,Place,5105637134,24.06.2015,Fire Technical Support,Vehicle Maintenance Costs,15.00,ADAMS MOREY LTD,258
Revenue,Place,5105636612,19.06.2015,Fire Technical Support,Vehicle Maintenance Costs,7.88,ADAMS MOREY LTD,259
Revenue,Place,5105636612,19.06.2015,Fire Technical Support,Vehicle Maintenance Costs,78.06,ADAMS MOREY LTD,260
Revenue,Place,5105636612,19.06.2015,Fire Technical Support,Vehicle Maintenance Costs,78.06,ADAMS MOREY LTD,261
Revenue,Place,5105636612,19.06.2015,Fire Technical Support,Vehicle Maintenance Costs,14.04,ADAMS MOREY LTD,262
Revenue,Place,5105636624,24.06.2015,"Westridge, Ryde",Property Services only - Day to day maintenance,271.74,ADAMS MOREY LTD,263
Revenue,Adult Services,5105634446,17.06.2015,Elderly Frail Residential Care,Charges from Independent Providers,"1,812.44",ADIEMUS CARE LTD,264
Revenue,Place,5105636731,24.06.2015,"County Hall,Newport",Property Services only - Day to day maintenance,39.00,ADT FIRE AND SECURITY PLC,265
Revenue,Place,5105633712,10.06.2015,"County Hall,Newport",Security of Buildings,540.00,ADT FIRE AND SECURITY PLC,266
Revenue,Place,5105633960,12.06.2015,Roman Villa Newport,Security of Buildings,666.50,ADT FIRE AND SECURITY PLC,267
Revenue,Place,5105633584,10.06.2015,Coroner,Computer Software & Consumables,"1,327.41",ADVANCED LEGAL SOLUTIONS,268
Revenue,Place,5105633584,10.06.2015,Coroner,Computer Software & Consumables,"1,007.68",ADVANCED LEGAL SOLUTIONS,269
Revenue,Place,5105637731,30.06.2015,IW Festival of Cycling,Advertising & Publicity,300.00,ADVENTURE PUBLISHING,270
Revenue,Childrens Services,5105633391,10.06.2015,Children In Need 1,Agency staff,"1,639.95",AFFINITY WORKFORCE,271
Revenue,Childrens Services,5105633890,17.06.2015,Children In Need 1,Agency staff,"1,317.00",AFFINITY WORKFORCE,272
Revenue,Childrens Services,5105632558,05.06.2015,Children In Need 1,Agency staff,322.50,AFFINITY WORKFORCE,273
Revenue,Childrens Services,5105632657,05.06.2015,Children In Need 1,Agency staff,"1,639.50",AFFINITY WORKFORCE,274
Revenue,Childrens Services,5105637528,26.06.2015,Children In Need 1,Agency staff,"1,665.56",AFFINITY WORKFORCE,275
Revenue,Place,5105636907,24.06.2015,Renewal & Enforcement,Payments to Voluntary and Other Associations,"6,665.00",AGE CONCERN T/A AGE UK,276
Revenue,Adult Services,5105637221,26.06.2015,Learning Disability Homes Management & Admin,Publications,54.46,AGORA BUSINESS PUBLICATIONS LLP,278
Revenue,Place,5105632901,17.06.2015,Medina Leisure Centre,Minor Works,405.00,AIRTEK SERVICES,279
Revenue,Place,5105632895,17.06.2015,Medina Leisure Centre,Property Services only - Day to day maintenance,45.00,AIRTEK SERVICES,280
Revenue,Resources,5105633546,05.06.2015,Insurance,Professional Subscriptions,155.00,ALARM,283
Revenue,Childrens Services,5105637063,24.06.2015,Core Programmes,Training,725.00,ALISON BOTHA T/A ADVANCE TRAINING,289
Revenue,Place,5105633135,03.06.2015,Fire Technical Support,Stock Purchases,68.00,ALLBATTERIES UK LTD,291
Revenue,Place,5105633135,03.06.2015,Fire Technical Support,Stock Purchases,22.80,ALLBATTERIES UK LTD,292
Revenue,Place,5105633135,03.06.2015,Fire Technical Support,Stock Purchases,95.00,ALLBATTERIES UK LTD,293
Revenue,Childrens Services,5105634196,12.06.2015,Special Educational Needs Transport,Taxis - Contract Hire,-100.00,ALPHA (IOW) LTD,294
Revenue,Childrens Services,5105635222,17.06.2015,Special Educational Needs Transport,Taxis - Contract Hire,100.00,ALPHA (IOW) LTD,295
Revenue,Childrens Services,5105635222,17.06.2015,Special Educational Needs Transport,Taxis - Contract Hire,304.80,ALPHA (IOW) LTD,296
Revenue,Childrens Services,5105634197,12.06.2015,Special Educational Needs Transport,Taxis - Contract Hire,304.80,ALPHA (IOW) LTD,297
Revenue,Childrens Services,5105634196,12.06.2015,Special Educational Needs Transport,Taxis - Contract Hire,-304.80,ALPHA (IOW) LTD,298
Revenue,Childrens Services,5105634196,12.06.2015,Special Educational Needs Transport,Taxis - Contract Hire,-321.45,ALPHA (IOW) LTD,299
Revenue,Childrens Services,5105634197,12.06.2015,Special Educational Needs Transport,Taxis - Contract Hire,321.45,ALPHA (IOW) LTD,300
Revenue,Childrens Services,5105635222,17.06.2015,Special Educational Needs Transport,Taxis - Contract Hire,321.45,ALPHA (IOW) LTD,301
Revenue,Childrens Services,5105635222,17.06.2015,Special Educational Needs Transport,Taxis - Contract Hire,267.90,ALPHA (IOW) LTD,302
Revenue,Childrens Services,5105634197,12.06.2015,Special Educational Needs Transport,Taxis - Contract Hire,267.90,ALPHA (IOW) LTD,303
Revenue,Childrens Services,5105634196,12.06.2015,Special Educational Needs Transport,Taxis - Contract Hire,-267.90,ALPHA (IOW) LTD,304
Revenue,Childrens Services,5105637083,24.06.2015,Special Educational Needs Transport,Taxis - Contract Hire,355.60,ALPHA (IOW) LTD,305
Revenue,Childrens Services,5105637083,24.06.2015,Special Educational Needs Transport,Taxis - Contract Hire,396.90,ALPHA (IOW) LTD,306
Revenue,Childrens Services,5105637083,24.06.2015,Special Educational Needs Transport,Taxis - Contract Hire,313.35,ALPHA (IOW) LTD,307
Revenue,Childrens Services,5105637083,24.06.2015,Special Educational Needs Transport,Taxis - Contract Hire,321.45,ALPHA (IOW) LTD,308
Revenue,Childrens Services,5105637083,24.06.2015,Special Educational Needs Transport,Taxis - Contract Hire,304.80,ALPHA (IOW) LTD,309
Revenue,Childrens Services,5105637083,24.06.2015,Special Educational Needs Transport,Taxis - Contract Hire,267.90,ALPHA (IOW) LTD,310
Revenue,Childrens Services,5105637083,24.06.2015,Special Educational Needs Transport,Taxis - Contract Hire,457.20,ALPHA (IOW) LTD,311
Revenue,Childrens Services,5105637083,24.06.2015,Special Educational Needs Transport,Taxis - Contract Hire,461.75,ALPHA (IOW) LTD,312
Revenue,Childrens Services,5105634197,12.06.2015,Special Educational Needs Transport,Taxis - Contract Hire,355.60,ALPHA (IOW) LTD,313
Revenue,Childrens Services,5105634196,12.06.2015,Special Educational Needs Transport,Taxis - Contract Hire,-355.60,ALPHA (IOW) LTD,314
Revenue,Childrens Services,5105635222,17.06.2015,Special Educational Needs Transport,Taxis - Contract Hire,355.60,ALPHA (IOW) LTD,315
Revenue,Childrens Services,5105635222,17.06.2015,Special Educational Needs Transport,Taxis - Contract Hire,396.90,ALPHA (IOW) LTD,316
Revenue,Childrens Services,5105634196,12.06.2015,Special Educational Needs Transport,Taxis - Contract Hire,-396.90,ALPHA (IOW) LTD,317
Revenue,Childrens Services,5105634197,12.06.2015,Special Educational Needs Transport,Taxis - Contract Hire,396.90,ALPHA (IOW) LTD,318
Revenue,Childrens Services,5105634197,12.06.2015,Special Educational Needs Transport,Taxis - Contract Hire,313.35,ALPHA (IOW) LTD,319
Revenue,Childrens Services,5105634196,12.06.2015,Special Educational Needs Transport,Taxis - Contract Hire,-313.35,ALPHA (IOW) LTD,320
Revenue,Childrens Services,5105635222,17.06.2015,Special Educational Needs Transport,Taxis - Contract Hire,313.35,ALPHA (IOW) LTD,321
Revenue,Childrens Services,5105634196,12.06.2015,Special Educational Needs Transport,Taxis - Contract Hire,-188.00,ALPHA (IOW) LTD,322
Revenue,Childrens Services,5105634197,12.06.2015,Special Educational Needs Transport,Taxis - Contract Hire,188.00,ALPHA (IOW) LTD,323
Revenue,Childrens Services,5105635222,17.06.2015,Special Educational Needs Transport,Taxis - Contract Hire,188.00,ALPHA (IOW) LTD,324
Revenue,Childrens Services,5105635222,17.06.2015,Special Educational Needs Transport,Taxis - Contract Hire,360.00,ALPHA (IOW) LTD,325
Revenue,Childrens Services,5105634196,12.06.2015,Special Educational Needs Transport,Taxis - Contract Hire,-350.00,ALPHA (IOW) LTD,326
Revenue,Childrens Services,5105634197,12.06.2015,Special Educational Needs Transport,Taxis - Contract Hire,350.00,ALPHA (IOW) LTD,327
Revenue,Childrens Services,5105634196,12.06.2015,Special Educational Needs Transport,Taxis - Contract Hire,-587.20,ALPHA (IOW) LTD,328
Revenue,Childrens Services,5105634197,12.06.2015,Special Educational Needs Transport,Taxis - Contract Hire,587.20,ALPHA (IOW) LTD,329
Revenue,Childrens Services,5105635222,17.06.2015,Special Educational Needs Transport,Taxis - Contract Hire,457.20,ALPHA (IOW) LTD,330
Revenue,Childrens Services,5105635222,17.06.2015,Special Educational Needs Transport,Taxis - Contract Hire,461.75,ALPHA (IOW) LTD,331
Revenue,Childrens Services,5105634196,12.06.2015,Special Educational Needs Transport,Taxis - Contract Hire,-461.75,ALPHA (IOW) LTD,332
Revenue,Childrens Services,5105634197,12.06.2015,Special Educational Needs Transport,Taxis - Contract Hire,461.75,ALPHA (IOW) LTD,333
Revenue,Childrens Services,5105632820,12.06.2015,Special Educational Needs Transport,Taxis - Contract Hire,100.00,ALPHA (IOW) LTD,334
Revenue,Childrens Services,5105632820,12.06.2015,Special Educational Needs Transport,Taxis - Contract Hire,350.00,ALPHA (IOW) LTD,335
Revenue,Childrens Services,5105632252,12.06.2015,Special Educational Needs Transport,Taxis - Contract Hire,188.00,ALPHA (IOW) LTD,336
Revenue,Childrens Services,5105632252,12.06.2015,Special Educational Needs Transport,Taxis - Contract Hire,461.75,ALPHA (IOW) LTD,337
Revenue,Childrens Services,5105632252,12.06.2015,Special Educational Needs Transport,Taxis - Contract Hire,587.20,ALPHA (IOW) LTD,338
Revenue,Childrens Services,5105632252,12.06.2015,Special Educational Needs Transport,Taxis - Contract Hire,321.45,ALPHA (IOW) LTD,339
Revenue,Childrens Services,5105632252,12.06.2015,Special Educational Needs Transport,Taxis - Contract Hire,313.35,ALPHA (IOW) LTD,340
Revenue,Childrens Services,5105632252,12.06.2015,Special Educational Needs Transport,Taxis - Contract Hire,396.90,ALPHA (IOW) LTD,341
Revenue,Childrens Services,5105632252,12.06.2015,Special Educational Needs Transport,Taxis - Contract Hire,355.60,ALPHA (IOW) LTD,342
Revenue,Childrens Services,5105632820,12.06.2015,Special Educational Needs Transport,Taxis - Contract Hire,188.00,ALPHA (IOW) LTD,343
Revenue,Childrens Services,5105632820,12.06.2015,Special Educational Needs Transport,Taxis - Contract Hire,461.75,ALPHA (IOW) LTD,344
Revenue,Childrens Services,5105632820,12.06.2015,Special Educational Needs Transport,Taxis - Contract Hire,355.60,ALPHA (IOW) LTD,345
Revenue,Childrens Services,5105632820,12.06.2015,Special Educational Needs Transport,Taxis - Contract Hire,396.90,ALPHA (IOW) LTD,346
Revenue,Childrens Services,5105632820,12.06.2015,Special Educational Needs Transport,Taxis - Contract Hire,313.35,ALPHA (IOW) LTD,347
Revenue,Childrens Services,5105632820,12.06.2015,Special Educational Needs Transport,Taxis - Contract Hire,321.45,ALPHA (IOW) LTD,348
Revenue,Childrens Services,5105632820,12.06.2015,Special Educational Needs Transport,Taxis - Contract Hire,267.90,ALPHA (IOW) LTD,349
Revenue,Childrens Services,5105632820,12.06.2015,Special Educational Needs Transport,Taxis - Contract Hire,457.20,ALPHA (IOW) LTD,350
Revenue,Childrens Services,5105632820,12.06.2015,Special Educational Needs Transport,Taxis - Contract Hire,304.80,ALPHA (IOW) LTD,351
Revenue,Childrens Services,5105632252,12.06.2015,Special Educational Needs Transport,Taxis - Contract Hire,304.80,ALPHA (IOW) LTD,352
Revenue,Childrens Services,5105632252,12.06.2015,Special Educational Needs Transport,Taxis - Contract Hire,100.00,ALPHA (IOW) LTD,353
Revenue,Childrens Services,5105632252,12.06.2015,Special Educational Needs Transport,Taxis - Contract Hire,350.00,ALPHA (IOW) LTD,354
Revenue,Childrens Services,5105632252,12.06.2015,Special Educational Needs Transport,Taxis - Contract Hire,267.90,ALPHA (IOW) LTD,355
Revenue,Childrens Services,5105637607,30.06.2015,Special Educational Needs Transport,Taxis - Contract Hire,267.90,ALPHA (IOW) LTD,356
Revenue,Childrens Services,5105637607,30.06.2015,Special Educational Needs Transport,Taxis - Contract Hire,457.20,ALPHA (IOW) LTD,357
Revenue,Childrens Services,5105637607,30.06.2015,Special Educational Needs Transport,Taxis - Contract Hire,461.75,ALPHA (IOW) LTD,358
Revenue,Childrens Services,5105637607,30.06.2015,Special Educational Needs Transport,Taxis - Contract Hire,100.00,ALPHA (IOW) LTD,359
Revenue,Childrens Services,5105637607,30.06.2015,Special Educational Needs Transport,Taxis - Contract Hire,355.60,ALPHA (IOW) LTD,360
Revenue,Childrens Services,5105637607,30.06.2015,Special Educational Needs Transport,Taxis - Contract Hire,396.90,ALPHA (IOW) LTD,361
Revenue,Childrens Services,5105637607,30.06.2015,Special Educational Needs Transport,Taxis - Contract Hire,313.35,ALPHA (IOW) LTD,362
Revenue,Childrens Services,5105637083,24.06.2015,Special Educational Needs Transport,Taxis - Contract Hire,188.00,ALPHA (IOW) LTD,363
Revenue,Childrens Services,5105637083,24.06.2015,Special Educational Needs Transport,Taxis - Contract Hire,350.00,ALPHA (IOW) LTD,364
Revenue,Childrens Services,5105637083,24.06.2015,Special Educational Needs Transport,Taxis - Contract Hire,100.00,ALPHA (IOW) LTD,365
Revenue,Childrens Services,5105637607,30.06.2015,Special Educational Needs Transport,Taxis - Contract Hire,321.45,ALPHA (IOW) LTD,366
Revenue,Childrens Services,5105637607,30.06.2015,Special Educational Needs Transport,Taxis - Contract Hire,304.80,ALPHA (IOW) LTD,367
Revenue,Childrens Services,5105637607,30.06.2015,Special Educational Needs Transport,Taxis - Contract Hire,188.00,ALPHA (IOW) LTD,368
Revenue,Childrens Services,5105637607,30.06.2015,Special Educational Needs Transport,Taxis - Contract Hire,350.00,ALPHA (IOW) LTD,369
Revenue,Childrens Services,5105634197,12.06.2015,Special Educational Needs Transport,Taxis - Contract Hire,100.00,ALPHA (IOW) LTD,370
Revenue,Childrens Services,5105634005,10.06.2015,Education Welfare Service,Transport of Clients,754.08,ALPHA (IOW) LTD,371
Revenue,Childrens Services,5105634004,10.06.2015,Disabled Childrens Team,Transport of Clients,24.00,ALPHA (IOW) LTD,372
Revenue,Childrens Services,5105634197,12.06.2015,Independ. & Non-Maint. Special Schls & Independ. Specialist Provision,Transport of Clients,960.00,ALPHA (IOW) LTD,373
Revenue,Childrens Services,5105634196,12.06.2015,Independ. & Non-Maint. Special Schls & Independ. Specialist Provision,Transport of Clients,"-1,063.75",ALPHA (IOW) LTD,374
Revenue,Childrens Services,5105635222,17.06.2015,Independ. & Non-Maint. Special Schls & Independ. Specialist Provision,Transport of Clients,480.00,ALPHA (IOW) LTD,375
Revenue,Childrens Services,5105635222,17.06.2015,Independ. & Non-Maint. Special Schls & Independ. Specialist Provision,Transport of Clients,98.75,ALPHA (IOW) LTD,376
Revenue,Childrens Services,5105634196,12.06.2015,Independ. & Non-Maint. Special Schls & Independ. Specialist Provision,Transport of Clients,-102.50,ALPHA (IOW) LTD,377
Revenue,Childrens Services,5105634197,12.06.2015,Independ. & Non-Maint. Special Schls & Independ. Specialist Provision,Transport of Clients,206.25,ALPHA (IOW) LTD,378
Revenue,Childrens Services,5105634196,12.06.2015,Independ. & Non-Maint. Special Schls & Independ. Specialist Provision,Transport of Clients,-192.00,ALPHA (IOW) LTD,379
Revenue,Childrens Services,5105634197,12.06.2015,Independ. & Non-Maint. Special Schls & Independ. Specialist Provision,Transport of Clients,192.00,ALPHA (IOW) LTD,380
Revenue,Childrens Services,5105632820,12.06.2015,Independ. & Non-Maint. Special Schls & Independ. Specialist Provision,Transport of Clients,100.25,ALPHA (IOW) LTD,381
Revenue,Childrens Services,5105632252,12.06.2015,Independ. & Non-Maint. Special Schls & Independ. Specialist Provision,Transport of Clients,102.50,ALPHA (IOW) LTD,382
Revenue,Childrens Services,5105632252,12.06.2015,Independ. & Non-Maint. Special Schls & Independ. Specialist Provision,Transport of Clients,"1,063.75",ALPHA (IOW) LTD,383
Revenue,Childrens Services,5105632820,12.06.2015,Independ. & Non-Maint. Special Schls & Independ. Specialist Provision,Transport of Clients,480.00,ALPHA (IOW) LTD,384
Revenue,Childrens Services,5105632252,12.06.2015,Independ. & Non-Maint. Special Schls & Independ. Specialist Provision,Transport of Clients,192.00,ALPHA (IOW) LTD,385
Revenue,Childrens Services,5105637083,24.06.2015,Independ. & Non-Maint. Special Schls & Independ. Specialist Provision,Transport of Clients,480.00,ALPHA (IOW) LTD,386
Revenue,Childrens Services,5105637083,24.06.2015,Independ. & Non-Maint. Special Schls & Independ. Specialist Provision,Transport of Clients,107.25,ALPHA (IOW) LTD,387
Revenue,Childrens Services,5105637607,30.06.2015,Independ. & Non-Maint. Special Schls & Independ. Specialist Provision,Transport of Clients,480.00,ALPHA (IOW) LTD,388
Revenue,Childrens Services,5105637607,30.06.2015,Independ. & Non-Maint. Special Schls & Independ. Specialist Provision,Transport of Clients,143.50,ALPHA (IOW) LTD,389
Revenue,Childrens Services,5105634005,10.06.2015,Support for Looked After Children,Transport of Clients,754.07,ALPHA (IOW) LTD,390
Revenue,Childrens Services,5105632252,12.06.2015,Home to School Transport,Taxis - Contract Hire,426.90,ALPHA (IOW) LTD,391
Revenue,Childrens Services,5105632820,12.06.2015,Home to School Transport,Taxis - Contract Hire,426.90,ALPHA (IOW) LTD,392
Revenue,Childrens Services,5105632252,12.06.2015,Home to School Transport,Taxis - Contract Hire,428.25,ALPHA (IOW) LTD,393
Revenue,Childrens Services,5105632252,12.06.2015,Home to School Transport,Taxis - Contract Hire,314.95,ALPHA (IOW) LTD,394
Revenue,Childrens Services,5105632820,12.06.2015,Home to School Transport,Taxis - Contract Hire,428.25,ALPHA (IOW) LTD,395
Revenue,Childrens Services,5105632820,12.06.2015,Home to School Transport,Taxis - Contract Hire,314.95,ALPHA (IOW) LTD,396
Revenue,Childrens Services,5105632820,12.06.2015,Home to School Transport,Taxis - Contract Hire,415.50,ALPHA (IOW) LTD,397
Revenue,Childrens Services,5105632820,12.06.2015,Home to School Transport,Taxis - Contract Hire,300.00,ALPHA (IOW) LTD,398
Revenue,Childrens Services,5105632252,12.06.2015,Home to School Transport,Taxis - Contract Hire,415.50,ALPHA (IOW) LTD,399
Revenue,Childrens Services,5105632252,12.06.2015,Home to School Transport,Taxis - Contract Hire,300.00,ALPHA (IOW) LTD,400
Revenue,Childrens Services,5105634197,12.06.2015,Home to School Transport,Taxis - Contract Hire,300.00,ALPHA (IOW) LTD,401
Revenue,Childrens Services,5105634196,12.06.2015,Home to School Transport,Taxis - Contract Hire,-300.00,ALPHA (IOW) LTD,402
Revenue,Childrens Services,5105635222,17.06.2015,Home to School Transport,Taxis - Contract Hire,300.00,ALPHA (IOW) LTD,403
Revenue,Childrens Services,5105635222,17.06.2015,Home to School Transport,Taxis - Contract Hire,415.50,ALPHA (IOW) LTD,404
Revenue,Childrens Services,5105634197,12.06.2015,Home to School Transport,Taxis - Contract Hire,415.50,ALPHA (IOW) LTD,405
Revenue,Childrens Services,5105634196,12.06.2015,Home to School Transport,Taxis - Contract Hire,-415.50,ALPHA (IOW) LTD,406
Revenue,Childrens Services,5105637083,24.06.2015,Home to School Transport,Taxis - Contract Hire,300.00,ALPHA (IOW) LTD,407
Revenue,Childrens Services,5105637083,24.06.2015,Home to School Transport,Taxis - Contract Hire,426.90,ALPHA (IOW) LTD,408
Revenue,Childrens Services,5105637083,24.06.2015,Home to School Transport,Taxis - Contract Hire,428.25,ALPHA (IOW) LTD,409
Revenue,Childrens Services,5105637083,24.06.2015,Home to School Transport,Taxis - Contract Hire,314.95,ALPHA (IOW) LTD,410
Revenue,Childrens Services,5105637083,24.06.2015,Home to School Transport,Taxis - Contract Hire,415.50,ALPHA (IOW) LTD,411
Revenue,Childrens Services,5105635222,17.06.2015,Home to School Transport,Taxis - Contract Hire,428.25,ALPHA (IOW) LTD,412
Revenue,Childrens Services,5105634197,12.06.2015,Home to School Transport,Taxis - Contract Hire,428.25,ALPHA (IOW) LTD,413
Revenue,Childrens Services,5105634196,12.06.2015,Home to School Transport,Taxis - Contract Hire,-428.25,ALPHA (IOW) LTD,414
Revenue,Childrens Services,5105634196,12.06.2015,Home to School Transport,Taxis - Contract Hire,-314.95,ALPHA (IOW) LTD,415
Revenue,Childrens Services,5105634197,12.06.2015,Home to School Transport,Taxis - Contract Hire,314.95,ALPHA (IOW) LTD,416
Revenue,Childrens Services,5105635222,17.06.2015,Home to School Transport,Taxis - Contract Hire,314.95,ALPHA (IOW) LTD,417
Revenue,Childrens Services,5105634196,12.06.2015,Home to School Transport,Taxis - Contract Hire,-426.90,ALPHA (IOW) LTD,418
Revenue,Childrens Services,5105634197,12.06.2015,Home to School Transport,Taxis - Contract Hire,426.90,ALPHA (IOW) LTD,419
Revenue,Childrens Services,5105635222,17.06.2015,Home to School Transport,Taxis - Contract Hire,426.90,ALPHA (IOW) LTD,420
Revenue,Childrens Services,5105637607,30.06.2015,Home to School Transport,Taxis - Contract Hire,426.90,ALPHA (IOW) LTD,421
Revenue,Childrens Services,5105637607,30.06.2015,Home to School Transport,Taxis - Contract Hire,428.25,ALPHA (IOW) LTD,422
Revenue,Childrens Services,5105637607,30.06.2015,Home to School Transport,Taxis - Contract Hire,314.95,ALPHA (IOW) LTD,423
Revenue,Childrens Services,5105637607,30.06.2015,Home to School Transport,Taxis - Contract Hire,415.50,ALPHA (IOW) LTD,424
Revenue,Childrens Services,5105637607,30.06.2015,Home to School Transport,Taxis - Contract Hire,300.00,ALPHA (IOW) LTD,425
Revenue,Childrens Services,5105636498,24.06.2015,S17 Disabled Children,Transport of Clients,72.00,ALPHA (IOW) LTD,426
Revenue,Childrens Services,5105633916,10.06.2015,Island Learning Centre,Taxis - Contract Hire,166.10,ALPHA (IOW) LTD,427
Revenue,Childrens Services,5105637201,26.06.2015,Island Learning Centre,Taxis - Contract Hire,540.35,ALPHA (IOW) LTD,428
Revenue,Childrens Services,5105636493,30.06.2015,Agency Domiciliary Care,Transport of Clients,960.00,ALPHA (IOW) LTD,429
Revenue,Childrens Services,5105636493,30.06.2015,Agency Domiciliary Care,Transport of Clients,231.25,ALPHA (IOW) LTD,430
Revenue,Childrens Services,5105631929,05.06.2015,Agency Domiciliary Care,Transport of Clients,480.00,ALPHA (IOW) LTD,431
Revenue,Childrens Services,5105631929,05.06.2015,Agency Domiciliary Care,Transport of Clients,101.50,ALPHA (IOW) LTD,432
Revenue,Adult Services,5105634485,17.06.2015,Learning Disability Residential Care,Charges from Independent Providers,"3,836.84",ALPHAGRANGE LTD,433
Revenue,Adult Services,5105637207,26.06.2015,Local Safeguarding Adults Board,Consultants Fees,"7,557.75",ALR SAFEGUARDING CONSULTANCY LTD,434
Revenue,Childrens Services,5105633912,17.06.2015,Home to School Transport,Taxis - Contract Hire,551.00,AMAR CABS OF NEWPORT,435
Revenue,Childrens Services,5105635538,17.06.2015,Home to School Transport,Taxis - Contract Hire,416.00,AMAR CABS OF NEWPORT,436
Revenue,Adult Services,5105634487,17.06.2015,Elderly Frail Residential Care,Charges from Independent Providers,"2,093.84",ANCONA CARE HOME,441
Revenue,Adult Services,5105634487,17.06.2015,Elderly Mentally Ill Residential Care,Charges from Independent Providers,"1,781.36",ANCONA CARE HOME,442
Revenue,Adult Services,5105634487,17.06.2015,Elderly Frail Residential Care,Charges from Independent Providers,"1,700.44",ANCONA CARE HOME,443
Revenue,Adult Services,5105634487,17.06.2015,Elderly Frail Residential Care,Charges from Independent Providers,"1,700.44",ANCONA CARE HOME,444
Revenue,Place,5105633729,10.06.2015,Fire Technical Support,Vehicle Maintenance Costs,33.80,ANGLOCO LTD,446
Revenue,Place,5105633729,10.06.2015,Fire Technical Support,Vehicle Maintenance Costs,12.50,ANGLOCO LTD,447
Revenue,Resources,5105636842,24.06.2015,Staff Benefits,Payment to Private Contractors,225.00,REDACTED PERSONAL DATA,448
Revenue,Adult Services,5105637570,30.06.2015,Commissioning Manager for Adult Social Care,Interim Staff,"6,208.45",ANNE BUTLER CONSULTING LTD,452
Revenue,Place,5105632983,03.06.2015,Print Unit,Printing Costs,162.30,ANTALIS MCNAUGHTON,454
Revenue,Place,5105631554,03.06.2015,Print Unit,Printing Costs,116.50,ANTALIS MCNAUGHTON,455
Revenue,Place,5105633099,03.06.2015,Print Unit,Printing Costs,-87.60,ANTALIS MCNAUGHTON,456
Revenue,Place,5105633099,03.06.2015,Print Unit,Printing Costs,-56.20,ANTALIS MCNAUGHTON,457
Revenue,Place,5105628835,03.06.2015,Print Unit,Printing Costs,56.20,ANTALIS MCNAUGHTON,458
Revenue,Place,5105628835,03.06.2015,Print Unit,Printing Costs,87.60,ANTALIS MCNAUGHTON,459
Revenue,Place,5105631506,03.06.2015,Print Unit,Printing Costs,14.06,ANTALIS MCNAUGHTON,460
Revenue,Place,5105631506,03.06.2015,Print Unit,Printing Costs,28.12,ANTALIS MCNAUGHTON,461
Revenue,Place,5105631506,03.06.2015,Print Unit,Printing Costs,69.90,ANTALIS MCNAUGHTON,462
Revenue,Place,5105635207,17.06.2015,Print Unit,Printing Costs,89.10,ANTALIS MCNAUGHTON,463
Revenue,Place,5105635207,17.06.2015,Print Unit,Printing Costs,58.40,ANTALIS MCNAUGHTON,464
Revenue,Place,5105636595,19.06.2015,Print Unit,Printing Costs,44.80,ANTALIS MCNAUGHTON,465
Revenue,Place,5105636595,19.06.2015,Print Unit,Printing Costs,46.60,ANTALIS MCNAUGHTON,466
Revenue,Place,5105636595,19.06.2015,Print Unit,Printing Costs,90.00,ANTALIS MCNAUGHTON,467
Revenue,Childrens Services,5105636522,19.06.2015,Clatterford Pupil Referral Unit (PRU),Schools Catering Contract,51.33,AQUALICITY LTD,470
Revenue,Childrens Services,5105636522,19.06.2015,Thompson House Tuition Centre (PRU),Schools Catering Contract,51.33,AQUALICITY LTD,471
Revenue,Adult Services,5105634286,12.06.2015,Local Safeguarding Adults Board,Professional Services,700.00,ARC UK,472
Revenue,Resources,5105633384,10.06.2015,County Hall Central Mail Room,Clothing & Laundry,41.90,ARCO LTD,473
Revenue,Resources,5105635504,17.06.2015,County Hall Central Mail Room,Clothing & Laundry,59.79,ARCO LTD,474
Revenue,Resources,5105636423,19.06.2015,County Hall Central Mail Room,Clothing & Laundry,71.51,ARCO LTD,475
Revenue,Adult Services,5105636751,24.06.2015,Wightcare,Operational Equipment,8.40,ARCO LTD,476
Revenue,Adult Services,5105636743,24.06.2015,Wightcare,Operational Equipment,34.76,ARCO LTD,477
Revenue,Adult Services,5105635235,17.06.2015,Community Outreach,Clothing & Laundry,-28.92,ARCO LTD,478
Revenue,Adult Services,5105636394,19.06.2015,Community Outreach,Clothing & Laundry,91.85,ARCO LTD,479
Revenue,Adult Services,5105636394,19.06.2015,Community Outreach,Clothing & Laundry,16.70,ARCO LTD,480
Revenue,Adult Services,5105637101,03.07.2015,Community Outreach,Clothing & Laundry,1.80,ARCO LTD,481
Revenue,Adult Services,5105636394,19.06.2015,Community Outreach,Clothing & Laundry,8.35,ARCO LTD,482
Revenue,Adult Services,5105636394,19.06.2015,Community Outreach,Clothing & Laundry,8.35,ARCO LTD,483
Revenue,Adult Services,5105637101,03.07.2015,Community Outreach,Clothing & Laundry,6.55,ARCO LTD,484
Revenue,Adult Services,5105637128,24.06.2015,Community Outreach,Clothing & Laundry,8.35,ARCO LTD,485
Revenue,Adult Services,5105636394,19.06.2015,Community Outreach,Clothing & Laundry,33.40,ARCO LTD,486
Revenue,Adult Services,5105630727,17.06.2015,Community Outreach,Clothing & Laundry,21.78,ARCO LTD,487
Revenue,Adult Services,5105630727,17.06.2015,Community Outreach,Clothing & Laundry,7.20,ARCO LTD,488
Revenue,Adult Services,5105630727,17.06.2015,Community Outreach,Clothing & Laundry,50.70,ARCO LTD,489
Revenue,Adult Services,5105630877,10.06.2015,Community Outreach,Clothing & Laundry,44.86,ARCO LTD,490
Revenue,Adult Services,5105633112,10.06.2015,Community Outreach,Clothing & Laundry,-23.08,ARCO LTD,491
Revenue,Adult Services,5105630877,10.06.2015,Community Outreach,Clothing & Laundry,3.60,ARCO LTD,492
Revenue,Place,5105635251,17.06.2015,Environment officers,Clothing & Laundry,15.64,ARCO LTD,493
Revenue,Place,5105637223,26.06.2015,Environment officers,Clothing & Laundry,30.58,ARCO LTD,494
Revenue,Place,5105636398,24.06.2015,The Heights,Clothing & Laundry,35.40,ARCO LTD,495
Revenue,Place,5105636105,17.06.2015,The Heights,Clothing & Laundry,-10.00,ARCO LTD,496
Revenue,Place,5105636115,24.06.2015,The Heights,Clothing & Laundry,10.00,ARCO LTD,497
Revenue,Place,5105636115,24.06.2015,The Heights,Clothing & Laundry,20.00,ARCO LTD,498
Revenue,Place,5105636105,17.06.2015,The Heights,Clothing & Laundry,-20.00,ARCO LTD,499
Revenue,Place,5105636105,17.06.2015,The Heights,Clothing & Laundry,-7.86,ARCO LTD,500
Revenue,Place,5105636115,24.06.2015,The Heights,Clothing & Laundry,7.86,ARCO LTD,501
Revenue,Place,5105636115,24.06.2015,The Heights,Clothing & Laundry,7.20,ARCO LTD,502
Revenue,Place,5105633439,10.06.2015,The Heights,Clothing & Laundry,10.00,ARCO LTD,503
Revenue,Place,5105633439,10.06.2015,The Heights,Clothing & Laundry,20.00,ARCO LTD,504
Revenue,Place,5105633439,10.06.2015,The Heights,Clothing & Laundry,7.86,ARCO LTD,505
Revenue,Place,5105633641,10.06.2015,The Heights,Clothing & Laundry,22.04,ARCO LTD,506
Revenue,Adult Services,5105637489,26.06.2015,S75 Integrated Community Equipment Store,Operational Equipment,99.00,ARJO MED AB LTD,507
Revenue,Adult Services,5105637489,26.06.2015,S75 Integrated Community Equipment Store,Operational Equipment,15.00,ARJO MED AB LTD,508
Revenue,Adult Services,5105637488,26.06.2015,S75 Integrated Community Equipment Store,Operational Equipment,113.98,ARJO MED AB LTD,509
Revenue,Adult Services,5105637220,26.06.2015,S75 Integrated Community Equipment Store,Maintenance of Operational Equipment,449.50,ARJO MED AB LTD,510
Revenue,Adult Services,5105637220,26.06.2015,S75 Integrated Community Equipment Store,Maintenance of Operational Equipment,449.50,ARJO MED AB LTD,511
Revenue,Adult Services,5105637220,26.06.2015,S75 Integrated Community Equipment Store,Maintenance of Operational Equipment,279.80,ARJO MED AB LTD,512
Revenue,Adult Services,5105637220,26.06.2015,S75 Integrated Community Equipment Store,Maintenance of Operational Equipment,214.95,ARJO MED AB LTD,513
Capital,Adult Services,5105633606,10.06.2015,Adelaide & Gouldings Fixtures & Fittings,"Plant, Equipment & Furniture - Capital","5,495.00",ARJO MED AB LTD,514
Capital,Adult Services,5105633606,10.06.2015,Adelaide & Gouldings Fixtures & Fittings,"Plant, Equipment & Furniture - Capital","1,224.00",ARJO MED AB LTD,515
Capital,Adult Services,5105633606,10.06.2015,Adelaide & Gouldings Fixtures & Fittings,"Plant, Equipment & Furniture - Capital",330.00,ARJO MED AB LTD,516
Capital,Adult Services,5105634390,17.06.2015,Adelaide & Gouldings Fixtures & Fittings,"Plant, Equipment & Furniture - Capital","5,495.00",ARJO MED AB LTD,517
Capital,Adult Services,5105635248,30.06.2015,Adelaide & Gouldings Fixtures & Fittings,"Plant, Equipment & Furniture - Capital",719.00,ARJO MED AB LTD,518
Capital,Adult Services,5105634390,17.06.2015,Adelaide & Gouldings Fixtures & Fittings,"Plant, Equipment & Furniture - Capital",330.00,ARJO MED AB LTD,519
Capital,Adult Services,5105637210,26.06.2015,Adelaide & Gouldings Fixtures & Fittings,"Plant, Equipment & Furniture - Capital",719.49,ARJO MED AB LTD,520
Revenue,Adult Services,5105631851,05.06.2015,Adelaide Resource Centre,Maintenance of Operational Equipment,832.16,ARJO MED AB LTD,521
Revenue,Place,5105634421,19.06.2015,Public Libraries Central,Professional Subscriptions,75.00,ASSOCIATION OF SENIOR CHILDREN'S AND EDUCATION LIBRARIANS,523
Revenue,Childrens Services,5105636660,24.06.2015,Workforce Development Schools,Training,652.78,ASPIRO EDUCATION LIMITED,524
Revenue,Childrens Services,5105637581,30.06.2015,Children's Services Strategic Management,Property Services - Planned Maintenance,254.00,ASSA ABLOY ENTRANCE SYSTEMS LTD,525
Revenue,Place,5105637587,30.06.2015,Ryde Library,Property Services - Planned Maintenance,250.00,ASSA ABLOY ENTRANCE SYSTEMS LTD,526
Revenue,Adult Services,5105637615,30.06.2015,Gouldings Resource Centre,Property Services - Planned Maintenance,254.00,ASSA ABLOY ENTRANCE SYSTEMS LTD,527
Revenue,Place,5105632033,05.06.2015,"Enterprise House, Newport",Property Services - Planned Maintenance,440.00,ASSA ABLOY ENTRANCE SYSTEMS LTD,528
Revenue,Place,5105636722,24.06.2015,Ventnor Library,Property Services - Planned Maintenance,410.81,ASSA ABLOY ENTRANCE SYSTEMS LTD,529
Revenue,Place,5105637169,24.06.2015,Medina Theatre,Property Services - Planned Maintenance,57.08,ASSA ABLOY ENTRANCE SYSTEMS LTD,530
Revenue,Place,5105637608,30.06.2015,"Seaclose Offices, Newport",Property Services - Planned Maintenance,475.00,ASSA ABLOY ENTRANCE SYSTEMS LTD,531
Revenue,Place,5105637475,26.06.2015,Rew Valley Sports Centre Management,Property Services only - Day to day maintenance,215.00,ASSA ABLOY ENTRANCE SYSTEMS LTD,532
Revenue,Place,5105637594,30.06.2015,"County Hall,Newport",Property Services - Planned Maintenance,"1,593.00",ASSA ABLOY ENTRANCE SYSTEMS LTD,533
Revenue,Place,5105637641,30.06.2015,"County Hall,Newport",Property Services - Planned Maintenance,254.00,ASSA ABLOY ENTRANCE SYSTEMS LTD,534
Revenue,Place,5105637636,30.06.2015,"Jubilee Stores, Newport",Property Services - Planned Maintenance,716.00,ASSA ABLOY ENTRANCE SYSTEMS LTD,535
Revenue,Adult Services,5105637598,30.06.2015,Adelaide Resource Centre,Property Services - Planned Maintenance,254.00,ASSA ABLOY ENTRANCE SYSTEMS LTD,536
Revenue,Adult Services,5105637168,24.06.2015,Mental Health Day Services,Property Services - Planned Maintenance,57.08,ASSA ABLOY ENTRANCE SYSTEMS LTD,537
Revenue,Childrens Services,5105634416,17.06.2015,Island Learning Centre,Schools Examination Fees,61.80,ASSESSMENT & QUALIFICATION ALLIANCE,538
Revenue,Managing Director,5105634216,12.06.2015,Emergency Management,Fixed Telephones,327.64,AST CONNECTIONS LTD,539
Revenue,Place,5105633577,17.06.2015,Highways PFI Project,Consultants Fees,"108,158.14",ATKINS LIMITED,540
Revenue,Place,5105635272,17.06.2015,Highways PFI Project,Consultants Fees,"-108,158.14",ATKINS LIMITED,541
Revenue,Place,5105634412,17.06.2015,Highways PFI Project,Consultants Fees,"65,546.31",ATKINS LIMITED,542
Revenue,Place,5105634414,17.06.2015,Highways PFI Project,Consultants Fees,"42,611.84",ATKINS LIMITED,543
Revenue,Place,5105633670,10.06.2015,Fire Technical Support,Vehicle Maintenance Costs,117.54,ATS EUROMASTER LTD,544
Revenue,Place,5105633670,10.06.2015,Fire Technical Support,Vehicle Maintenance Costs,598.88,ATS EUROMASTER LTD,545
Revenue,Place,5105633670,10.06.2015,Fire Technical Support,Vehicle Maintenance Costs,57.31,ATS EUROMASTER LTD,546
Revenue,Place,5105633670,10.06.2015,Fire Technical Support,Vehicle Maintenance Costs,15.36,ATS EUROMASTER LTD,547
Revenue,Place,5105633670,10.06.2015,Fire Technical Support,Vehicle Maintenance Costs,12.40,ATS EUROMASTER LTD,548
Revenue,Place,5105633670,10.06.2015,Fire Technical Support,Vehicle Maintenance Costs,1.24,ATS EUROMASTER LTD,549
Revenue,Resources,5105633721,12.06.2015,Housing Benefit,Stationery,429.60,AUTOMAIL ENVELOPES LTD,550
Revenue,Adult Services,5105634011,17.06.2015,Elderly Mentally Ill Residential Care,Regular Respite Care,954.30,AUTUMN HOUSE CARE LTD,551
Revenue,Adult Services,5105634459,17.06.2015,Elderly Mentally Ill Residential Care,Charges from Independent Providers,"1,781.36",AUTUMN HOUSE CARE LTD,552
Revenue,Adult Services,5105634459,17.06.2015,Elderly Mentally Ill Residential Care,Charges from Independent Providers,"2,093.84",AUTUMN HOUSE CARE LTD,553
Revenue,Adult Services,5105634459,17.06.2015,Elderly Mentally Ill Residential Care,Charges from Independent Providers,"2,784.60",AUTUMN HOUSE CARE LTD,554
Revenue,Adult Services,5105634459,17.06.2015,Elderly Mentally Ill Residential Care,Charges from Independent Providers,"2,093.84",AUTUMN HOUSE CARE LTD,555
Revenue,Adult Services,5105634459,17.06.2015,Elderly Mentally Ill Residential Care,Charges from Independent Providers,254.48,AUTUMN HOUSE CARE LTD,556
Revenue,Adult Services,5105634459,17.06.2015,Elderly Mentally Ill Residential Care,Charges from Independent Providers,"2,093.84",AUTUMN HOUSE CARE LTD,557
Revenue,Adult Services,5105634459,17.06.2015,Elderly Mentally Ill Residential Care,Charges from Independent Providers,"2,093.84",AUTUMN HOUSE CARE LTD,558
Revenue,Adult Services,5105634459,17.06.2015,Elderly Mentally Ill Residential Care,Charges from Independent Providers,"2,093.84",AUTUMN HOUSE CARE LTD,559
Revenue,Adult Services,5105634459,17.06.2015,Elderly Mentally Ill Residential Care,Charges from Independent Providers,"2,093.84",AUTUMN HOUSE CARE LTD,560
Revenue,Adult Services,5105634459,17.06.2015,Elderly Mentally Ill Residential Care,Charges from Independent Providers,"2,093.84",AUTUMN HOUSE CARE LTD,561
Revenue,Adult Services,5105634459,17.06.2015,Elderly Mentally Ill Residential Care,Charges from Independent Providers,"2,093.84",AUTUMN HOUSE CARE LTD,562
Revenue,Adult Services,5105634459,17.06.2015,Elderly Mentally Ill Residential Care,Charges from Independent Providers,"2,093.84",AUTUMN HOUSE CARE LTD,563
Revenue,Adult Services,5105634459,17.06.2015,Elderly Mentally Ill Residential Care,Charges from Independent Providers,"1,781.36",AUTUMN HOUSE CARE LTD,564
Revenue,Adult Services,5105634459,17.06.2015,Elderly Mentally Ill Residential Care,Charges from Independent Providers,"1,781.36",AUTUMN HOUSE CARE LTD,565
Revenue,Adult Services,5105637536,30.06.2015,Elderly Mentally Ill Residential Care,Charges from Independent Providers,"2,766.86",AUTUMN HOUSE CARE LTD,566
Revenue,Adult Services,5105634459,17.06.2015,Elderly Mentally Ill Residential Care,Charges from Independent Providers,"2,093.84",AUTUMN HOUSE CARE LTD,567
Revenue,Adult Services,5105634459,17.06.2015,Elderly Mentally Ill Residential Care,Charges from Independent Providers,"1,781.36",AUTUMN HOUSE CARE LTD,568
Revenue,Adult Services,5105634459,17.06.2015,Elderly Mentally Ill Residential Care,Charges from Independent Providers,"2,093.84",AUTUMN HOUSE CARE LTD,569
Revenue,Adult Services,5105634459,17.06.2015,Elderly Mentally Ill Residential Care,Charges from Independent Providers,"2,093.84",AUTUMN HOUSE CARE LTD,570
Revenue,Adult Services,5105634459,17.06.2015,Elderly Mentally Ill Residential Care,Charges from Independent Providers,"2,093.84",AUTUMN HOUSE CARE LTD,571
Revenue,Adult Services,5105633480,17.06.2015,Elderly Mentally Ill Residential Care,Charges from Independent Providers,827.06,AUTUMN HOUSE CARE LTD,572
Revenue,Adult Services,5105634459,17.06.2015,Elderly Mentally Ill Residential Care,Charges from Independent Providers,"2,093.84",AUTUMN HOUSE CARE LTD,573
Revenue,Adult Services,5105634459,17.06.2015,Elderly Mentally Ill Residential Care,Charges from Independent Providers,"1,781.36",AUTUMN HOUSE CARE LTD,574
Revenue,Adult Services,5105637171,24.06.2015,Elderly Frail Residential Care,Charges from Independent Providers,"2,611.39",AUTUMN HOUSE CARE LTD,575
Revenue,Adult Services,5105634459,17.06.2015,Elderly Frail Residential Care,Charges from Independent Providers,"2,093.84",AUTUMN HOUSE CARE LTD,576
Revenue,Adult Services,5105634459,17.06.2015,Elderly Frail Residential Care,Charges from Independent Providers,"2,093.84",AUTUMN HOUSE CARE LTD,577
Revenue,Resources,5105633113,05.06.2015,Payroll,Consultants Fees,345.00,AVALON VALE UK LTD,578
Revenue,Resources,5105637591,30.06.2015,ICT Refresh Programme,Computer Maintenance,"1,207.50",AVALON VALE UK LTD,579
Revenue,Place,5105637148,24.06.2015,Isle of Wight Festival,Security of Buildings,"4,150.00",AVO SYSTEMS LTD,580
Revenue,Childrens Services,5105636586,19.06.2015,Court Work & Consultancy Services,Professional Services,106.52,AVTS,581
Revenue,Childrens Services,5105636179,19.06.2015,Leaving Care Costs,Support Children,50.00,REDACTED PERSONAL DATA,582
Revenue,Childrens Services,5105637279,26.06.2015,Leaving Care Costs,Support Children,50.00,REDACTED PERSONAL DATA,583
Revenue,Childrens Services,5105634057,12.06.2015,Leaving Care Costs,Support Children,50.00,REDACTED PERSONAL DATA,584
Revenue,Childrens Services,5105633223,05.06.2015,Leaving Care Costs,Support Children,50.00,REDACTED PERSONAL DATA,585
Revenue,Childrens Services,5105637279,26.06.2015,In-house Fostering,Boarding Out Allowances,162.73,REDACTED PERSONAL DATA,586
Revenue,Childrens Services,5105637279,26.06.2015,In-house Fostering,Boarding Out Allowances,10.00,REDACTED PERSONAL DATA,587
Revenue,Childrens Services,5105634057,12.06.2015,In-house Fostering,Boarding Out Allowances,162.73,REDACTED PERSONAL DATA,588
Revenue,Childrens Services,5105634057,12.06.2015,In-house Fostering,Boarding Out Allowances,10.00,REDACTED PERSONAL DATA,589
Revenue,Childrens Services,5105636179,19.06.2015,In-house Fostering,Boarding Out Allowances,162.73,REDACTED PERSONAL DATA,590
Revenue,Childrens Services,5105636179,19.06.2015,In-house Fostering,Boarding Out Allowances,10.00,REDACTED PERSONAL DATA,591
Revenue,Childrens Services,5105633223,05.06.2015,In-house Fostering,Boarding Out Allowances,10.00,REDACTED PERSONAL DATA,592
Revenue,Childrens Services,5105633223,05.06.2015,In-house Fostering,Boarding Out Allowances,162.73,REDACTED PERSONAL DATA,593
Revenue,Childrens Services,5105637081,24.06.2015,Beaulieu House,General Materials,9.81,B & Q FINANCIAL SERVICES,594
Revenue,Childrens Services,5105637082,24.06.2015,Beaulieu House,General Materials,116.31,B & Q FINANCIAL SERVICES,595
Revenue,Adult Services,5105634472,17.06.2015,Learning Disability Residential Care,Charges from Independent Providers,"1,894.76",REDACTED PERSONAL DATA,602
Revenue,Adult Services,5105634472,17.06.2015,Learning Disability Residential Care,Charges from Independent Providers,"1,894.76",REDACTED PERSONAL DATA,603
Revenue,Adult Services,5105634472,17.06.2015,Learning Disability Residential Care,Charges from Independent Providers,"2,745.40",REDACTED PERSONAL DATA,604
Revenue,Place,5105636766,24.06.2015,Leaseholds by LA,Accommodation Costs - Leaseholder Payments,815.49,REDACTED PERSONAL DATA,606
Revenue,Resources,5105636827,24.06.2015,Staff Benefits,Payment to Private Contractors,243.00,REDACTED PERSONAL DATA,607
Revenue,Resources,5105636827,24.06.2015,Staff Benefits,Payment to Private Contractors,100.00,REDACTED PERSONAL DATA,608
Revenue,Resources,5105636827,24.06.2015,Staff Benefits,Payment to Private Contractors,50.00,REDACTED PERSONAL DATA,609
Revenue,Place,5105636772,24.06.2015,Leaseholds by LA,Accommodation Costs - Leaseholder Payments,799.50,REDACTED PERSONAL DATA,611
Revenue,Place,5105636772,24.06.2015,Leaseholds by LA,Accommodation Costs - Leaseholder Payments,888.33,REDACTED PERSONAL DATA,612
Revenue,Place,5105636772,24.06.2015,Leaseholds by LA,Accommodation Costs - Leaseholder Payments,866.67,REDACTED PERSONAL DATA,613
Revenue,Place,5105636772,24.06.2015,Leaseholds by LA,Accommodation Costs - Leaseholder Payments,866.67,REDACTED PERSONAL DATA,614
Revenue,Place,5105636772,24.06.2015,Leaseholds by LA,Accommodation Costs - Leaseholder Payments,799.50,REDACTED PERSONAL DATA,615
Revenue,Place,5105633605,10.06.2015,Business Support  - Fire,Property Services only - Day to day maintenance,123.00,BALFOUR BEATTY,623
Revenue,Place,5105633801,10.06.2015,Business Support  - Fire,Minor Works,117.55,BALFOUR BEATTY,624
Revenue,Place,5105633802,10.06.2015,Business Support  - Fire,Minor Works,70.16,BALFOUR BEATTY,625
Revenue,Place,5105629651,03.06.2015,Business Support  - Fire,Property Services only - Day to day maintenance,685.00,BALFOUR BEATTY,626
Revenue,Place,5105629728,17.06.2015,Business Support  - Fire,Property Services only - Day to day maintenance,427.69,BALFOUR BEATTY,627
Revenue,Place,5105633689,10.06.2015,Business Support  - Fire,Property Services only - Day to day maintenance,105.50,BALFOUR BEATTY,628
Revenue,Place,5105632005,12.06.2015,Business Support  - Fire,Property Services only - Day to day maintenance,811.87,BALFOUR BEATTY,629
Revenue,Place,5105629741,10.06.2015,Business Support  - Fire,Property Services only - Day to day maintenance,456.40,BALFOUR BEATTY,630
Revenue,Place,5105633611,10.06.2015,Public Conveniences - General,Minor Works,65.28,BALFOUR BEATTY,631
Revenue,Place,5105634006,10.06.2015,Public Conveniences - General,Property Services only - Day to day maintenance,164.47,BALFOUR BEATTY,632
Revenue,Place,5105633119,03.06.2015,Public Conveniences - General,Property Services - Planned Maintenance,688.43,BALFOUR BEATTY,633
Revenue,Place,5105633822,10.06.2015,Public Conveniences - General,Property Services only - Day to day maintenance,52.80,BALFOUR BEATTY,634
Revenue,Place,5105633812,10.06.2015,Public Conveniences - General,Property Services only - Day to day maintenance,53.40,BALFOUR BEATTY,635
Revenue,Place,5105633425,12.06.2015,Public Conveniences - General,Property Services only - Day to day maintenance,69.90,BALFOUR BEATTY,636
Revenue,Place,5105633425,12.06.2015,Public Conveniences - General,Property Services only - Day to day maintenance,66.60,BALFOUR BEATTY,637
Revenue,Place,5105633694,10.06.2015,Public Conveniences - General,Property Services only - Day to day maintenance,81.90,BALFOUR BEATTY,638
Revenue,Place,5105633597,10.06.2015,Public Conveniences - General,Property Services only - Day to day maintenance,53.40,BALFOUR BEATTY,639
Revenue,Place,5105633621,10.06.2015,Public Conveniences - General,Property Services only - Day to day maintenance,67.50,BALFOUR BEATTY,640
Revenue,Place,5105633618,10.06.2015,Public Conveniences - General,Property Services only - Day to day maintenance,67.50,BALFOUR BEATTY,641
Revenue,Place,5105633717,10.06.2015,Public Conveniences - General,Property Services only - Day to day maintenance,152.64,BALFOUR BEATTY,642
Revenue,Place,5105633715,10.06.2015,Public Conveniences - General,Property Services only - Day to day maintenance,67.50,BALFOUR BEATTY,643
Revenue,Place,5105633886,10.06.2015,Public Conveniences - General,Property Services only - Day to day maintenance,131.25,BALFOUR BEATTY,644
Revenue,Place,5105633875,10.06.2015,Public Conveniences - General,Property Services only - Day to day maintenance,105.00,BALFOUR BEATTY,645
Revenue,Place,5105633883,10.06.2015,Public Conveniences - General,Property Services only - Day to day maintenance,108.07,BALFOUR BEATTY,646
Revenue,Place,5105633544,05.06.2015,Public Conveniences - General,Property Services only - Day to day maintenance,45.10,BALFOUR BEATTY,647
Revenue,Place,5105633815,10.06.2015,Public Conveniences - General,Property Services only - Day to day maintenance,77.40,BALFOUR BEATTY,648
Revenue,Place,5105633888,10.06.2015,Public Conveniences - General,Property Services only - Day to day maintenance,34.15,BALFOUR BEATTY,649
Revenue,Place,5105633873,10.06.2015,Public Conveniences - General,Property Services only - Day to day maintenance,192.04,BALFOUR BEATTY,650
Revenue,Place,5105633706,10.06.2015,Public Conveniences - General,Property Services only - Day to day maintenance,121.20,BALFOUR BEATTY,651
Revenue,Place,5105633707,10.06.2015,Public Conveniences - General,Property Services only - Day to day maintenance,55.45,BALFOUR BEATTY,652
Revenue,Place,5105633427,05.06.2015,Public Conveniences - General,Property Services only - Day to day maintenance,325.73,BALFOUR BEATTY,653
Revenue,Place,5105633601,10.06.2015,Public Conveniences - General,Property Services only - Day to day maintenance,102.11,BALFOUR BEATTY,654
Revenue,Place,5105633810,10.06.2015,Public Conveniences - General,Property Services only - Day to day maintenance,59.60,BALFOUR BEATTY,655
Revenue,Place,5105633804,10.06.2015,Public Conveniences - General,Property Services only - Day to day maintenance,69.90,BALFOUR BEATTY,656
Revenue,Place,5105633809,10.06.2015,Public Conveniences - General,Property Services only - Day to day maintenance,192.24,BALFOUR BEATTY,657
Revenue,Place,5105633528,05.06.2015,Public Conveniences - General,Property Services only - Day to day maintenance,171.80,BALFOUR BEATTY,658
Revenue,Place,5105633798,10.06.2015,Public Conveniences - General,Property Services only - Day to day maintenance,53.40,BALFOUR BEATTY,659
Revenue,Place,5105633807,10.06.2015,Public Conveniences - General,Property Services only - Day to day maintenance,143.15,BALFOUR BEATTY,660
Revenue,Place,5105633800,10.06.2015,Public Conveniences - General,Property Services only - Day to day maintenance,69.90,BALFOUR BEATTY,661
Revenue,Place,5105633765,10.06.2015,Public Conveniences - General,Property Services only - Day to day maintenance,119.80,BALFOUR BEATTY,662
Revenue,Place,5105633175,03.06.2015,Public Conveniences - General,Property Services only - Day to day maintenance,525.00,BALFOUR BEATTY,663
Revenue,Place,5105633425,12.06.2015,Public Conveniences - General,Property Services only - Day to day maintenance,135.00,BALFOUR BEATTY,664
Revenue,Place,5105633174,03.06.2015,Public Conveniences - General,Property Services only - Day to day maintenance,237.80,BALFOUR BEATTY,665
Revenue,Place,5105633143,03.06.2015,Public Conveniences - General,Property Services only - Day to day maintenance,102.45,BALFOUR BEATTY,666
Revenue,Place,5105633176,03.06.2015,Public Conveniences - General,Property Services only - Day to day maintenance,140.70,BALFOUR BEATTY,667
Revenue,Place,5105633140,03.06.2015,Public Conveniences - General,Property Services only - Day to day maintenance,48.60,BALFOUR BEATTY,668
Revenue,Place,5105633115,03.06.2015,Public Conveniences - General,Property Services only - Day to day maintenance,272.08,BALFOUR BEATTY,669
Revenue,Place,5105633389,10.06.2015,Public Conveniences - General,Property Services only - Day to day maintenance,265.31,BALFOUR BEATTY,670
Revenue,Place,5105633557,05.06.2015,Public Conveniences - General,Property Services only - Day to day maintenance,164.35,BALFOUR BEATTY,671
Revenue,Place,5105633688,10.06.2015,Public Conveniences - General,Property Services only - Day to day maintenance,109.06,BALFOUR BEATTY,672
Revenue,Place,5105633709,10.06.2015,Public Conveniences - General,Property Services only - Day to day maintenance,89.80,BALFOUR BEATTY,673
Revenue,Place,5105633718,10.06.2015,Public Conveniences - General,Property Services only - Day to day maintenance,49.35,BALFOUR BEATTY,674
Revenue,Place,5105633700,10.06.2015,Public Conveniences - General,Property Services only - Day to day maintenance,144.72,BALFOUR BEATTY,675
Revenue,Place,5105633427,05.06.2015,Business Support  - Fire,Property Services only - Day to day maintenance,270.52,BALFOUR BEATTY,676
Revenue,Childrens Services,5105633055,03.06.2015,Children's Services Strategic Management,Minor Works,25.55,BALFOUR BEATTY,677
Revenue,Place,5105633425,12.06.2015,Ryde Harbour,Property Services only - Day to day maintenance,66.64,BALFOUR BEATTY,678
Revenue,Place,5105631258,03.06.2015,Cowes Library,Property Services only - Day to day maintenance,44.70,BALFOUR BEATTY,679
Revenue,Place,5105633702,10.06.2015,Ryde Library,Property Services only - Day to day maintenance,68.35,BALFOUR BEATTY,680
Revenue,Childrens Services,5105633074,03.06.2015,Learning & Development Running Costs,Minor Works,75.65,BALFOUR BEATTY,681
Revenue,Place,5105633096,03.06.2015,Archives,Property Services only - Day to day maintenance,48.50,BALFOUR BEATTY,682
Revenue,Place,5105632005,12.06.2015,Archaeology,Property Services only - Day to day maintenance,212.10,BALFOUR BEATTY,683
Revenue,Place,5105633894,10.06.2015,Medina Leisure Centre,Minor Works,104.55,BALFOUR BEATTY,684
Revenue,Place,5105633427,05.06.2015,Medina Leisure Centre,Property Services only - Day to day maintenance,363.00,BALFOUR BEATTY,685
Revenue,Place,5105633525,05.06.2015,Medina Leisure Centre,Property Services only - Day to day maintenance,44.70,BALFOUR BEATTY,686
Revenue,Place,5105633118,03.06.2015,Medina Leisure Centre,Property Services only - Day to day maintenance,105.05,BALFOUR BEATTY,687
Revenue,Adult Services,5105633395,05.06.2015,Gouldings Resource Centre,Minor Works,226.49,BALFOUR BEATTY,688
Revenue,Adult Services,5105632005,12.06.2015,Gouldings Resource Centre,Property Services - Planned Maintenance,481.46,BALFOUR BEATTY,689
Revenue,Adult Services,5105633616,10.06.2015,Gouldings Resource Centre,Property Services only - Day to day maintenance,89.35,BALFOUR BEATTY,690
Revenue,Adult Services,5105633716,10.06.2015,Gouldings Resource Centre,Property Services only - Day to day maintenance,89.25,BALFOUR BEATTY,691
Revenue,Adult Services,5105633142,03.06.2015,Gouldings Resource Centre,Property Services only - Day to day maintenance,288.00,BALFOUR BEATTY,692
Revenue,Adult Services,5105633069,03.06.2015,Gouldings Resource Centre,Property Services only - Day to day maintenance,181.72,BALFOUR BEATTY,693
Revenue,Adult Services,5105633464,05.06.2015,Gouldings Resource Centre,Property Services only - Day to day maintenance,123.96,BALFOUR BEATTY,694
Revenue,Adult Services,5105633762,10.06.2015,Westminster House,Property Services - Planned Maintenance,140.00,BALFOUR BEATTY,695
Revenue,Adult Services,5105633889,10.06.2015,Westminster House,Property Services only - Day to day maintenance,34.20,BALFOUR BEATTY,696
Revenue,Adult Services,5105633896,10.06.2015,Westminster House,Property Services only - Day to day maintenance,33.32,BALFOUR BEATTY,697
Revenue,Adult Services,5105633133,03.06.2015,Westminster House,Maintenance of Operational Equipment,158.40,BALFOUR BEATTY,698
Revenue,Adult Services,5105633066,03.06.2015,Saxonbury,Minor Works,118.10,BALFOUR BEATTY,699
Revenue,Place,5105633548,05.06.2015,"Enterprise House, Newport",Property Services only - Day to day maintenance,64.18,BALFOUR BEATTY,700
Revenue,Place,5105633760,10.06.2015,"Enterprise House, Newport",Property Services only - Day to day maintenance,70.90,BALFOUR BEATTY,701
Revenue,Place,5105633425,12.06.2015,"Enterprise House, Newport",Property Services only - Day to day maintenance,90.89,BALFOUR BEATTY,702
Revenue,Place,5105633697,10.06.2015,"Enterprise House, Newport",Property Services only - Day to day maintenance,113.27,BALFOUR BEATTY,703
Revenue,Place,5105633122,03.06.2015,Non-operational buildings,Property Services only - Day to day maintenance,276.88,BALFOUR BEATTY,704
Revenue,Place,5105633473,05.06.2015,Medina Theatre,Property Services only - Day to day maintenance,50.40,BALFOUR BEATTY,705
Revenue,Childrens Services,5105633615,10.06.2015,Clatterford Pupil Referral Unit (PRU),Minor Works,64.00,BALFOUR BEATTY,706
Revenue,Childrens Services,5105633057,03.06.2015,Clatterford Pupil Referral Unit (PRU),Minor Works,102.90,BALFOUR BEATTY,707
Revenue,Childrens Services,5105633465,05.06.2015,Clatterford Pupil Referral Unit (PRU),Minor Works,36.00,BALFOUR BEATTY,708
Revenue,Place,5105633539,05.06.2015,17 Fairlee Road,Minor Works,53.40,BALFOUR BEATTY,709
Revenue,Place,5105633691,10.06.2015,17 Fairlee Road,Minor Works,56.85,BALFOUR BEATTY,710
Revenue,Place,5105633427,05.06.2015,17 Fairlee Road,Property Services - Planned Maintenance,487.00,BALFOUR BEATTY,711
Capital,Resources,5105632005,12.06.2015,Management of Asbestos,Payment to Contractors - Capital,"1,281.81",BALFOUR BEATTY,712
Revenue,Adult Services,5105633617,10.06.2015,Highmead,Minor Works,330.55,BALFOUR BEATTY,713
Revenue,Adult Services,5105633620,10.06.2015,Highmead,Minor Works,59.40,BALFOUR BEATTY,714
Revenue,Adult Services,5105633425,12.06.2015,Highmead,Minor Works,96.25,BALFOUR BEATTY,715
Revenue,Adult Services,5105633690,12.06.2015,Highmead,Minor Works,126.00,BALFOUR BEATTY,716
Revenue,Adult Services,5105633898,10.06.2015,Highmead,Minor Works,74.10,BALFOUR BEATTY,717
Revenue,Adult Services,5105633877,10.06.2015,Highmead,Minor Works,70.77,BALFOUR BEATTY,718
Revenue,Adult Services,5105633125,03.06.2015,Highmead,Minor Works,209.36,BALFOUR BEATTY,719
Revenue,Childrens Services,5105633427,05.06.2015,Schools Asset Management,Minor Works,579.88,BALFOUR BEATTY,720
Revenue,Place,5105633123,03.06.2015,Ferry Management,Property Services only - Day to day maintenance,217.55,BALFOUR BEATTY,721
Revenue,Childrens Services,5105633592,10.06.2015,Beaulieu House,Minor Works,110.65,BALFOUR BEATTY,722
Revenue,Childrens Services,5105633427,05.06.2015,Beaulieu House,Minor Works,512.00,BALFOUR BEATTY,723
Revenue,Childrens Services,5105633763,10.06.2015,Beaulieu House,Minor Works,165.00,BALFOUR BEATTY,724
Revenue,Place,5105633686,10.06.2015,"Guildhall,Newport",Property Services only - Day to day maintenance,84.00,BALFOUR BEATTY,725
Revenue,Place,5105632005,12.06.2015,"Guildhall,Newport",Property Services only - Day to day maintenance,245.65,BALFOUR BEATTY,726
Revenue,Place,5105633766,10.06.2015,"Seaclose Offices, Newport",Property Services only - Day to day maintenance,75.00,BALFOUR BEATTY,727
Revenue,Place,5105633876,10.06.2015,Properties  - Other Properties,Property Services only - Day to day maintenance,74.59,BALFOUR BEATTY,728
Revenue,Place,5105633699,10.06.2015,"Westridge, Ryde",Property Services only - Day to day maintenance,61.00,BALFOUR BEATTY,729
Revenue,Place,5105633072,03.06.2015,Newport Library,Property Services only - Day to day maintenance,98.95,BALFOUR BEATTY,730
Revenue,Place,5105633536,05.06.2015,Newport Library,Property Services only - Day to day maintenance,176.63,BALFOUR BEATTY,731
Revenue,Place,5105633823,10.06.2015,Newport Harbour Account,Property Services only - Day to day maintenance,109.30,BALFOUR BEATTY,732
Revenue,Place,5105633881,10.06.2015,Newport Harbour Account,Property Services only - Day to day maintenance,61.20,BALFOUR BEATTY,733
Revenue,Childrens Services,5105633880,10.06.2015,Branstone Farm Studies Centre,Property Services only - Day to day maintenance,78.55,BALFOUR BEATTY,734
Revenue,Place,5105633054,03.06.2015,"Atkinson Drive, Newport",Property Services only - Day to day maintenance,62.88,BALFOUR BEATTY,735
Revenue,Childrens Services,5105633071,03.06.2015,Youth- Ventnor,Property Services only - Day to day maintenance,580.00,BALFOUR BEATTY,736
Revenue,Place,5105633701,10.06.2015,Shanklin Lift,Property Services only - Day to day maintenance,97.01,BALFOUR BEATTY,737
Revenue,Place,5105633467,05.06.2015,Shanklin Lift,Payment to Private Contractors,157.65,BALFOUR BEATTY,738
Revenue,Place,5105633127,03.06.2015,"County Hall,Newport",Property Services only - Day to day maintenance,200.59,BALFOUR BEATTY,739
Revenue,Place,5105633120,03.06.2015,"County Hall,Newport",Property Services only - Day to day maintenance,292.98,BALFOUR BEATTY,740
Revenue,Place,5105633887,10.06.2015,"County Hall,Newport",Property Services only - Day to day maintenance,101.20,BALFOUR BEATTY,741
Revenue,Place,5105633713,10.06.2015,"Bugle House,Newport",Property Services only - Day to day maintenance,111.00,BALFOUR BEATTY,742
Revenue,Place,5105633710,12.06.2015,"Jubilee Stores, Newport",Property Services only - Day to day maintenance,160.45,BALFOUR BEATTY,743
Revenue,Place,5105633608,10.06.2015,Somerton Industrial Park,Property Services only - Day to day maintenance,171.31,BALFOUR BEATTY,744
Revenue,Childrens Services,5105633425,12.06.2015,Childrens Centres Maintenance,Minor Works,152.64,BALFOUR BEATTY,745
Revenue,Place,5105633614,10.06.2015,Ferry Maintenance,Maintenance of Operational Equipment,60.15,BALFOUR BEATTY,746
Revenue,Place,5105633425,12.06.2015,Open space lettings,Property Services only - Day to day maintenance,101.75,BALFOUR BEATTY,747
Revenue,Place,5105633824,10.06.2015,Crematorium,Property Services only - Day to day maintenance,72.81,BALFOUR BEATTY,748
Revenue,Childrens Services,5105632992,03.06.2015,HCC Property Services SLA,Minor Works,212.05,BALFOUR BEATTY,749
Revenue,Childrens Services,5105633033,03.06.2015,HCC Property Services SLA,Minor Works,48.54,BALFOUR BEATTY,750
Revenue,Childrens Services,5105633034,03.06.2015,HCC Property Services SLA,Minor Works,234.27,BALFOUR BEATTY,751
Revenue,Childrens Services,5105633038,03.06.2015,HCC Property Services SLA,Minor Works,160.00,BALFOUR BEATTY,752
Revenue,Childrens Services,5105633039,03.06.2015,HCC Property Services SLA,Minor Works,61.98,BALFOUR BEATTY,753
Revenue,Childrens Services,5105633035,03.06.2015,HCC Property Services SLA,Minor Works,200.19,BALFOUR BEATTY,754
Revenue,Childrens Services,5105633036,03.06.2015,HCC Property Services SLA,Minor Works,119.60,BALFOUR BEATTY,755
Revenue,Childrens Services,5105633045,03.06.2015,HCC Property Services SLA,Minor Works,50.00,BALFOUR BEATTY,756
Revenue,Childrens Services,5105633047,03.06.2015,HCC Property Services SLA,Minor Works,241.29,BALFOUR BEATTY,757
Revenue,Childrens Services,5105633049,03.06.2015,HCC Property Services SLA,Minor Works,75.00,BALFOUR BEATTY,758
Revenue,Childrens Services,5105633041,03.06.2015,HCC Property Services SLA,Minor Works,248.40,BALFOUR BEATTY,759
Revenue,Childrens Services,5105633042,03.06.2015,HCC Property Services SLA,Minor Works,276.00,BALFOUR BEATTY,760
Revenue,Childrens Services,5105633043,03.06.2015,HCC Property Services SLA,Minor Works,350.00,BALFOUR BEATTY,761
Revenue,Childrens Services,5105633052,03.06.2015,HCC Property Services SLA,Minor Works,57.54,BALFOUR BEATTY,762
Revenue,Childrens Services,5105633044,03.06.2015,HCC Property Services SLA,Minor Works,371.45,BALFOUR BEATTY,763
Revenue,Childrens Services,5105633040,03.06.2015,HCC Property Services SLA,Minor Works,90.91,BALFOUR BEATTY,764
Revenue,Childrens Services,5105633051,03.06.2015,HCC Property Services SLA,Minor Works,69.00,BALFOUR BEATTY,765
Revenue,Childrens Services,5105633031,03.06.2015,HCC Property Services SLA,Minor Works,250.00,BALFOUR BEATTY,766
Revenue,Childrens Services,5105633037,03.06.2015,HCC Property Services SLA,Minor Works,425.50,BALFOUR BEATTY,767
Revenue,Childrens Services,5105633032,03.06.2015,HCC Property Services SLA,Minor Works,61.98,BALFOUR BEATTY,768
Revenue,Childrens Services,5105632930,03.06.2015,HCC Property Services SLA,Minor Works,60.00,BALFOUR BEATTY,769
Revenue,Childrens Services,5105632942,03.06.2015,HCC Property Services SLA,Minor Works,61.98,BALFOUR BEATTY,770
Revenue,Childrens Services,5105632937,03.06.2015,HCC Property Services SLA,Minor Works,108.49,BALFOUR BEATTY,771
Revenue,Childrens Services,5105632932,03.06.2015,HCC Property Services SLA,Minor Works,241.50,BALFOUR BEATTY,772
Revenue,Childrens Services,5105632928,03.06.2015,HCC Property Services SLA,Minor Works,166.60,BALFOUR BEATTY,773
Revenue,Childrens Services,5105632925,03.06.2015,HCC Property Services SLA,Minor Works,151.80,BALFOUR BEATTY,774
Revenue,Childrens Services,5105632954,03.06.2015,HCC Property Services SLA,Minor Works,219.00,BALFOUR BEATTY,775
Revenue,Childrens Services,5105632939,03.06.2015,HCC Property Services SLA,Minor Works,522.10,BALFOUR BEATTY,776
Revenue,Childrens Services,5105632935,03.06.2015,HCC Property Services SLA,Minor Works,77.48,BALFOUR BEATTY,777
Revenue,Childrens Services,5105632933,03.06.2015,HCC Property Services SLA,Minor Works,"2,716.30",BALFOUR BEATTY,778
Revenue,Childrens Services,5105632938,03.06.2015,HCC Property Services SLA,Minor Works,53.83,BALFOUR BEATTY,779
Revenue,Childrens Services,5105632927,03.06.2015,HCC Property Services SLA,Minor Works,169.97,BALFOUR BEATTY,780
Revenue,Childrens Services,5105633704,10.06.2015,Non-Delegated Building Maintenance,Property Services only - Day to day maintenance,70.20,BALFOUR BEATTY,781
Revenue,Place,5105633073,03.06.2015,The Heights,Property Services only - Day to day maintenance,188.10,BALFOUR BEATTY,782
Revenue,Place,5105633764,10.06.2015,Roman Villa Newport,Property Services only - Day to day maintenance,61.00,BALFOUR BEATTY,783
Revenue,Place,5105633816,10.06.2015,Dinosaur Isle Museum (Sandown Geology),Property Services only - Day to day maintenance,31.68,BALFOUR BEATTY,784
Revenue,Place,5105633693,10.06.2015,Downside Community & Learning Centre,Minor Works,86.00,BALFOUR BEATTY,785
Revenue,Place,5105633761,10.06.2015,Downside Community & Learning Centre,Minor Works,127.53,BALFOUR BEATTY,786
Revenue,Adult Services,5105633541,05.06.2015,The Laurels,Minor Works,73.44,BALFOUR BEATTY,787
Revenue,Adult Services,5105633687,10.06.2015,The Laurels,Minor Works,77.05,BALFOUR BEATTY,788
Revenue,Adult Services,5105633622,10.06.2015,The Laurels,Minor Works,54.06,BALFOUR BEATTY,789
Revenue,Adult Services,5105633619,10.06.2015,The Laurels,Minor Works,65.20,BALFOUR BEATTY,790
Revenue,Adult Services,5105633130,03.06.2015,Adelaide Resource Centre,Property Services only - Day to day maintenance,81.08,BALFOUR BEATTY,791
Revenue,Adult Services,5105633425,12.06.2015,Adelaide Resource Centre,Property Services only - Day to day maintenance,55.80,BALFOUR BEATTY,792
Revenue,Adult Services,5105631264,03.06.2015,Adelaide Resource Centre,Property Services only - Day to day maintenance,112.35,BALFOUR BEATTY,793
Revenue,Adult Services,5105633117,03.06.2015,Adelaide Resource Centre,Property Services only - Day to day maintenance,288.00,BALFOUR BEATTY,794
Revenue,Adult Services,5105633139,03.06.2015,Adelaide Resource Centre,Property Services only - Day to day maintenance,79.23,BALFOUR BEATTY,795
Revenue,Adult Services,5105634289,12.06.2015,Adelaide Resource Centre,Property Services only - Day to day maintenance,144.98,BALFOUR BEATTY,796
Revenue,Adult Services,5105633711,10.06.2015,Adelaide Resource Centre,Property Services only - Day to day maintenance,33.32,BALFOUR BEATTY,797
Revenue,Adult Services,5105633826,10.06.2015,Adelaide Resource Centre,Property Services only - Day to day maintenance,103.07,BALFOUR BEATTY,798
Revenue,Adult Services,5105633613,10.06.2015,Adelaide Resource Centre,Property Services only - Day to day maintenance,61.20,BALFOUR BEATTY,799
Revenue,Adult Services,5105633685,10.06.2015,Adelaide Resource Centre,Property Services only - Day to day maintenance,145.05,BALFOUR BEATTY,800
Revenue,Adult Services,5105633604,10.06.2015,Adelaide Resource Centre,Property Services only - Day to day maintenance,104.23,BALFOUR BEATTY,801
Revenue,Adult Services,5105633819,10.06.2015,Adelaide Resource Centre,Property Services only - Day to day maintenance,67.95,BALFOUR BEATTY,802
Revenue,Adult Services,5105632005,12.06.2015,Adelaide Resource Centre,Property Services - Planned Maintenance,850.38,BALFOUR BEATTY,803
Revenue,Adult Services,5105633767,10.06.2015,Adelaide Resource Centre,Minor Works,33.32,BALFOUR BEATTY,804
Revenue,Adult Services,5105633425,12.06.2015,Mental Health Day Services,Property Services only - Day to day maintenance,69.12,BALFOUR BEATTY,805
Revenue,Adult Services,5105633612,10.06.2015,Mental Health Day Services,Property Services only - Day to day maintenance,83.26,BALFOUR BEATTY,806
Revenue,Place,5105633696,10.06.2015,"Civic Centre,Sandown",Property Services only - Day to day maintenance,75.00,BALFOUR BEATTY,807
Revenue,Place,5105633714,10.06.2015,"Civic Centre,Sandown",Property Services only - Day to day maintenance,77.50,BALFOUR BEATTY,808
Revenue,Place,5105637431,26.06.2015,Fire Technical Support,Payment to Private Contractors,"6,751.39",BALLYCLARE LTD,809
Revenue,Place,5105637432,26.06.2015,Fire Technical Support,Payment to Private Contractors,651.25,BALLYCLARE LTD,810
Revenue,Place,5105633452,05.06.2015,Fire Technical Support,Payment to Private Contractors,"6,751.39",BALLYCLARE LTD,811
Revenue,Place,5105637626,30.06.2015,John O�Conner Grounds Maintenance Contract,Operational Equipment,"21,869.01",BARNSFOLD NURSERIES,812
Revenue,Place,5105636569,19.06.2015,Diversity & Workforce,Operational Equipment,75.00,BARTLETTS SERVICE STATION,815
Revenue,Place,5105636569,19.06.2015,Diversity & Workforce,Operational Equipment,50.00,BARTLETTS SERVICE STATION,816
Revenue,Resources,5105636806,24.06.2015,Staff Benefits,Payment to Private Contractors,50.00,BARTON PRIMARY & EARLY YEARS,818
Revenue,Resources,5105636806,24.06.2015,Staff Benefits,Payment to Private Contractors,11.67,BARTON PRIMARY & EARLY YEARS,819
Revenue,Place,5105637580,30.06.2015,Medina Leisure Centre,Stock Purchases,56.76,LAKE CLEANING & CATERING SUPPLIES,820
Revenue,Place,5105636602,19.06.2015,Medina Leisure Centre,Consumable Cleaning Materials,14.40,LAKE CLEANING & CATERING SUPPLIES,821
Revenue,Place,5105636602,19.06.2015,Medina Leisure Centre,Consumable Cleaning Materials,25.94,LAKE CLEANING & CATERING SUPPLIES,822
Revenue,Place,5105636602,19.06.2015,Medina Leisure Centre,Consumable Cleaning Materials,45.96,LAKE CLEANING & CATERING SUPPLIES,823
Revenue,Place,5105636602,19.06.2015,Medina Leisure Centre,Consumable Cleaning Materials,14.56,LAKE CLEANING & CATERING SUPPLIES,824
Revenue,Place,5105636602,19.06.2015,Medina Leisure Centre,Consumable Cleaning Materials,13.44,LAKE CLEANING & CATERING SUPPLIES,825
Revenue,Place,5105636602,19.06.2015,Medina Leisure Centre,Consumable Cleaning Materials,20.76,LAKE CLEANING & CATERING SUPPLIES,826
Revenue,Place,5105636602,19.06.2015,Medina Leisure Centre,Consumable Cleaning Materials,8.67,LAKE CLEANING & CATERING SUPPLIES,827
Revenue,Place,5105636602,19.06.2015,Medina Leisure Centre,Consumable Cleaning Materials,24.40,LAKE CLEANING & CATERING SUPPLIES,828
Revenue,Place,5105636602,19.06.2015,Medina Leisure Centre,Consumable Cleaning Materials,29.10,LAKE CLEANING & CATERING SUPPLIES,829
Revenue,Place,5105636602,19.06.2015,Medina Leisure Centre,Consumable Cleaning Materials,117.50,LAKE CLEANING & CATERING SUPPLIES,830
Revenue,Place,5105636602,19.06.2015,Medina Leisure Centre,Consumable Cleaning Materials,43.68,LAKE CLEANING & CATERING SUPPLIES,831
Revenue,Place,5105636602,19.06.2015,Medina Leisure Centre,Consumable Cleaning Materials,43.84,LAKE CLEANING & CATERING SUPPLIES,832
Revenue,Place,5105634000,10.06.2015,Medina Leisure Centre,Consumable Cleaning Materials,8.92,LAKE CLEANING & CATERING SUPPLIES,833
Revenue,Place,5105634000,10.06.2015,Medina Leisure Centre,Consumable Cleaning Materials,5.48,LAKE CLEANING & CATERING SUPPLIES,834
Revenue,Place,5105634000,10.06.2015,Medina Leisure Centre,Consumable Cleaning Materials,21.92,LAKE CLEANING & CATERING SUPPLIES,835
Revenue,Place,5105634000,10.06.2015,Medina Leisure Centre,Consumable Cleaning Materials,38.91,LAKE CLEANING & CATERING SUPPLIES,836
Revenue,Adult Services,5105637518,30.06.2015,Plean Dene,Operational Equipment,16.94,LAKE CLEANING & CATERING SUPPLIES,837
Revenue,Childrens Services,5105637127,24.06.2015,Beaulieu House,General Materials,110.78,LAKE CLEANING & CATERING SUPPLIES,838
Revenue,Childrens Services,5105637577,30.06.2015,Beaulieu House,General Materials,74.60,LAKE CLEANING & CATERING SUPPLIES,839
Revenue,Childrens Services,5105637646,30.06.2015,Beaulieu House,General Materials,40.53,LAKE CLEANING & CATERING SUPPLIES,840
Revenue,Childrens Services,5105637651,30.06.2015,Beaulieu House,General Materials,11.94,LAKE CLEANING & CATERING SUPPLIES,841
Revenue,Childrens Services,5105637712,30.06.2015,Beaulieu House,General Materials,28.15,LAKE CLEANING & CATERING SUPPLIES,842
Revenue,Childrens Services,5105636131,17.06.2015,Island Learning Centre,Schools Toiletries,19.06,LAKE CLEANING & CATERING SUPPLIES,843
Revenue,Childrens Services,5105636131,17.06.2015,Island Learning Centre,Schools Toiletries,28.82,LAKE CLEANING & CATERING SUPPLIES,844
Revenue,Place,5105637694,30.06.2015,Westridge Squash Courts,Consumable Cleaning Materials,66.00,LAKE CLEANING & CATERING SUPPLIES,845
Revenue,Place,5105632887,03.06.2015,The Heights,Consumable Cleaning Materials,80.87,LAKE CLEANING & CATERING SUPPLIES,846
Revenue,Place,5105633910,10.06.2015,The Heights,Consumable Cleaning Materials,70.77,LAKE CLEANING & CATERING SUPPLIES,847
Revenue,Place,5105633828,10.06.2015,The Heights,Consumable Cleaning Materials,103.07,LAKE CLEANING & CATERING SUPPLIES,848
Revenue,Place,5105637089,24.06.2015,The Heights,Consumable Cleaning Materials,90.26,LAKE CLEANING & CATERING SUPPLIES,849
Revenue,Place,5105637566,30.06.2015,The Heights,Consumable Cleaning Materials,6.72,LAKE CLEANING & CATERING SUPPLIES,850
Revenue,Place,5105637582,30.06.2015,The Heights,Consumable Cleaning Materials,199.90,LAKE CLEANING & CATERING SUPPLIES,851
Revenue,Place,5105633910,10.06.2015,The Heights,Catering Equipment,56.76,LAKE CLEANING & CATERING SUPPLIES,852
Revenue,Place,5105633828,10.06.2015,The Heights,Catering Equipment,26.33,LAKE CLEANING & CATERING SUPPLIES,853
Revenue,Childrens Services,5105633531,24.06.2015,In-house Fostering,Advertising & Publicity,716.00,BEACON MEDIA LIMITED,854
Revenue,Childrens Services,5105636485,03.07.2015,Independ. & Non-Maint. Special Schls & Independ. Specialist Provision,Transport of Clients,600.00,BEACON TAXIS,855
Revenue,Adult Services,5105634681,17.06.2015,Elderly Mentally Ill Nursing Mainland,Charges from Independent Providers,"2,269.40",BEAUMONT LODGE LTD,856
Revenue,Adult Services,5105635122,17.06.2015,Transitions Team Residential Care,Charges from Independent Providers,"13,930.00",BEECHWOOD COLLEGE,857
Revenue,Resources,5105634208,12.06.2015,Elections,Rent of Buildings and Rooms,80.00,BEMBRIDGE METHODIST CHURCH,858
Revenue,Resources,5105634198,12.06.2015,Elections,Rent of Buildings and Rooms,67.00,BEMBRIDGE VILLAGE HALL,860
Revenue,Place,5105635596,30.06.2015,Environmental Health - Geographical Team,Clothing & Laundry,35.76,BERENDSEN,862
Revenue,Adult Services,5105631868,05.06.2015,Community Laundry Service,Clothing & Laundry,13.74,BERENDSEN,863
Revenue,Adult Services,5105631867,05.06.2015,Community Laundry Service,Clothing & Laundry,13.74,BERENDSEN,864
Revenue,Adult Services,5105631869,05.06.2015,Community Laundry Service,Clothing & Laundry,13.74,BERENDSEN,865
Revenue,Adult Services,5105631870,05.06.2015,Community Laundry Service,Clothing & Laundry,13.74,BERENDSEN,866
Revenue,Adult Services,5105636417,19.06.2015,Community Laundry Service,Clothing & Laundry,13.74,BERENDSEN,867
Revenue,Adult Services,5105636420,19.06.2015,Community Laundry Service,Clothing & Laundry,13.74,BERENDSEN,868
Revenue,Adult Services,5105636414,19.06.2015,Community Laundry Service,Clothing & Laundry,13.74,BERENDSEN,869
Revenue,Childrens Services,5105636680,24.06.2015,Support for Looked After Children,Support Children,595.00,BERRY HILL CHILDCARE LIMITED,871
Revenue,Place,5105635249,17.06.2015,B&B Properties,Accommodation Costs - Bed & Breakfast,"1,034.00",BERTRAM LODGE,872
Revenue,Adult Services,5105637192,26.06.2015,Plean Dene,Operational Equipment,164.34,BETA PAK LTD,873
Revenue,Adult Services,5105637195,26.06.2015,Plean Dene,Operational Equipment,45.96,BETA PAK LTD,874
Revenue,Adult Services,5105636404,19.06.2015,Plean Dene,Operational Equipment,13.50,BETA PAK LTD,875
Revenue,Adult Services,5105636407,19.06.2015,Plean Dene,Operational Equipment,15.07,BETA PAK LTD,876
Revenue,Adult Services,5105636407,19.06.2015,Plean Dene,Operational Equipment,11.49,BETA PAK LTD,877
Revenue,Adult Services,5105633474,05.06.2015,Plean Dene,Operational Equipment,19.49,BETA PAK LTD,878
Revenue,Adult Services,5105633808,10.06.2015,Plean Dene,Operational Equipment,6.26,BETA PAK LTD,879
Revenue,Adult Services,5105637141,24.06.2015,Gouldings Resource Centre,Consumable Cleaning Materials,18.26,BETA PAK LTD,880
Revenue,Adult Services,5105636501,19.06.2015,Gouldings Resource Centre,Consumable Cleaning Materials,79.18,BETA PAK LTD,881
Revenue,Adult Services,5105636509,19.06.2015,Gouldings Resource Centre,Consumable Cleaning Materials,820.83,BETA PAK LTD,882
Revenue,Adult Services,5105636553,24.06.2015,Gouldings Resource Centre,Consumable Cleaning Materials,20.48,BETA PAK LTD,883
Revenue,Adult Services,5105634236,12.06.2015,Gouldings Resource Centre,Consumable Cleaning Materials,9.01,BETA PAK LTD,884
Revenue,Adult Services,5105634235,12.06.2015,Gouldings Resource Centre,Consumable Cleaning Materials,437.49,BETA PAK LTD,885
Revenue,Adult Services,5105633430,05.06.2015,Gouldings Resource Centre,Consumable Cleaning Materials,436.42,BETA PAK LTD,886
Revenue,Adult Services,5105637564,30.06.2015,Gouldings Resource Centre,Consumable Cleaning Materials,190.19,BETA PAK LTD,887
Revenue,Adult Services,5105633954,10.06.2015,Plean Dene,Operational Equipment,28.44,BETA PAK LTD,888
Revenue,Adult Services,5105633949,10.06.2015,Plean Dene,Operational Equipment,23.38,BETA PAK LTD,889
Revenue,Adult Services,5105633950,10.06.2015,Plean Dene,Operational Equipment,5.50,BETA PAK LTD,890
Revenue,Adult Services,5105633951,10.06.2015,Plean Dene,Operational Equipment,-28.88,BETA PAK LTD,891
Revenue,Adult Services,5105633893,10.06.2015,Plean Dene,Operational Equipment,45.84,BETA PAK LTD,892
Revenue,Adult Services,5105637747,01.07.2015,Saxonbury,Operational Equipment,25.50,BETA PAK LTD,893
Revenue,Adult Services,5105633952,10.06.2015,Saxonbury,Operational Equipment,14.30,BETA PAK LTD,894
Revenue,Adult Services,5105633955,10.06.2015,Saxonbury,Operational Equipment,26.86,BETA PAK LTD,895
Revenue,Adult Services,5105632916,03.06.2015,Saxonbury,Operational Equipment,321.92,BETA PAK LTD,896
Revenue,Adult Services,5105632940,03.06.2015,Saxonbury,Operational Equipment,31.30,BETA PAK LTD,897
Revenue,Adult Services,5105637516,26.06.2015,Saxonbury,Operational Equipment,314.21,BETA PAK LTD,898
Revenue,Adult Services,5105634275,12.06.2015,Saxonbury,Operational Equipment,34.16,BETA PAK LTD,899
Revenue,Adult Services,5105634237,12.06.2015,Saxonbury,Operational Equipment,14.29,BETA PAK LTD,900
Revenue,Adult Services,5105635218,19.06.2015,Saxonbury,Operational Equipment,62.00,BETA PAK LTD,901
Revenue,Adult Services,5105636500,24.06.2015,Saxonbury,Operational Equipment,5.90,BETA PAK LTD,902
Revenue,Adult Services,5105636128,17.06.2015,Wightcare,General Materials,135.90,BETA PAK LTD,903
Revenue,Adult Services,5105637554,30.06.2015,Wightcare,General Materials,135.90,BETA PAK LTD,904
Revenue,Adult Services,5105632950,03.06.2015,Community Outreach,Consumable Cleaning Materials,155.60,BETA PAK LTD,905
Revenue,Adult Services,5105637200,24.06.2015,31 Carter Avenue,Operational Equipment,58.13,BETA PAK LTD,906
Revenue,Adult Services,5105637483,26.06.2015,31 Carter Avenue,Operational Equipment,34.00,BETA PAK LTD,907
Revenue,Adult Services,5105632976,10.06.2015,31 Carter Avenue,Operational Equipment,180.21,BETA PAK LTD,908
Revenue,Adult Services,5105632654,03.06.2015,31 Carter Avenue,Operational Equipment,43.36,BETA PAK LTD,909
Revenue,Adult Services,5105633388,12.06.2015,31 Carter Avenue,Operational Equipment,3.69,BETA PAK LTD,910
Revenue,Adult Services,5105633805,10.06.2015,31 Carter Avenue,Operational Equipment,22.94,BETA PAK LTD,911
Revenue,Adult Services,5105637549,30.06.2015,Highmead,Operational Equipment,48.00,BETA PAK LTD,912
Revenue,Adult Services,5105637068,24.06.2015,Highmead,Operational Equipment,10.71,BETA PAK LTD,913
Revenue,Adult Services,5105636870,26.06.2015,Highmead,Operational Equipment,191.92,BETA PAK LTD,914
Revenue,Adult Services,5105634277,24.06.2015,Highmead,Operational Equipment,140.21,BETA PAK LTD,915
Revenue,Adult Services,5105633946,10.06.2015,Highmead,Operational Equipment,34.41,BETA PAK LTD,916
Revenue,Adult Services,5105633947,10.06.2015,Highmead,Operational Equipment,8.67,BETA PAK LTD,917
Revenue,Adult Services,5105633948,10.06.2015,Highmead,Operational Equipment,8.67,BETA PAK LTD,918
Revenue,Adult Services,5105633957,10.06.2015,Highmead,Operational Equipment,455.71,BETA PAK LTD,919
Revenue,Adult Services,5105633959,10.06.2015,Highmead,Operational Equipment,216.93,BETA PAK LTD,920
Revenue,Adult Services,5105637698,30.06.2015,Highmead,Operational Equipment,156.59,BETA PAK LTD,921
Revenue,Place,5105634234,12.06.2015,Fire Operations,Operational Equipment,480.00,BETA PAK LTD,922
Revenue,Adult Services,5105637748,01.07.2015,Seagulls,Operational Equipment,7.98,BETA PAK LTD,923
Revenue,Adult Services,5105633730,10.06.2015,Seagulls,Operational Equipment,80.73,BETA PAK LTD,924
Revenue,Adult Services,5105632900,10.06.2015,Seagulls,Operational Equipment,28.58,BETA PAK LTD,925
Revenue,Adult Services,5105632897,12.06.2015,Seagulls,Operational Equipment,115.79,BETA PAK LTD,926
Revenue,Adult Services,5105632819,10.06.2015,Seagulls,Operational Equipment,6.56,BETA PAK LTD,927
Revenue,Adult Services,5105637196,30.06.2015,Seagulls,Operational Equipment,107.13,BETA PAK LTD,928
Revenue,Place,5105636410,19.06.2015,Downside Community & Learning Centre,Consumable Cleaning Materials,10.88,BETA PAK LTD,929
Revenue,Place,5105636410,19.06.2015,Downside Community & Learning Centre,Consumable Cleaning Materials,19.95,BETA PAK LTD,930
Revenue,Place,5105636410,19.06.2015,Downside Community & Learning Centre,Consumable Cleaning Materials,2.17,BETA PAK LTD,931
Revenue,Adult Services,5105632894,30.06.2015,Overbrook,Operational Equipment,34.70,BETA PAK LTD,932
Revenue,Adult Services,5105637686,30.06.2015,The Laurels,Operational Equipment,12.98,BETA PAK LTD,933
Revenue,Adult Services,5105637532,30.06.2015,The Laurels,Operational Equipment,406.91,BETA PAK LTD,934
Revenue,Adult Services,5105634022,10.06.2015,Adelaide Resource Centre,Consumable Cleaning Materials,26.38,BETA PAK LTD,935
Revenue,Adult Services,5105631950,05.06.2015,Adelaide Resource Centre,Consumable Cleaning Materials,33.80,BETA PAK LTD,936
Revenue,Adult Services,5105631892,05.06.2015,Adelaide Resource Centre,Consumable Cleaning Materials,18.95,BETA PAK LTD,937
Revenue,Adult Services,5105633772,24.06.2015,Adelaide Resource Centre,Consumable Cleaning Materials,328.84,BETA PAK LTD,938
Revenue,Adult Services,5105636141,24.06.2015,Adelaide Resource Centre,Consumable Cleaning Materials,167.07,BETA PAK LTD,939
Revenue,Adult Services,5105637455,26.06.2015,Adelaide Resource Centre,Consumable Cleaning Materials,408.09,BETA PAK LTD,940
Revenue,Adult Services,5105633367,05.06.2015,Adelaide Resource Centre,Operational Equipment,122.91,BETA PAK LTD,941
Revenue,Adult Services,5105633362,05.06.2015,Adelaide Resource Centre,Operational Equipment,83.99,BETA PAK LTD,942
Revenue,Resources,5105633471,05.06.2015,Council Tax,Stationery,0.72,BETA PAK LTD,943
Revenue,Adult Services,5105636362,19.06.2015,Physical Disability Homecare,Charges from Independent Providers,378.18,BETTER AT HOME IOW LTD,944
Revenue,Adult Services,5105636355,19.06.2015,Physical Disability Homecare,Charges from Independent Providers,534.80,BETTER AT HOME IOW LTD,945
Revenue,Adult Services,5105636544,19.06.2015,Physical Disability Homecare,Charges from Independent Providers,"2,712.20",BETTER AT HOME IOW LTD,946
Revenue,Adult Services,5105636374,19.06.2015,Physical Disability Homecare,Charges from Independent Providers,893.88,BETTER AT HOME IOW LTD,947
Revenue,Adult Services,5105636385,19.06.2015,Physical Disability Homecare,Charges from Independent Providers,962.64,BETTER AT HOME IOW LTD,948
Revenue,Adult Services,5105635997,17.06.2015,Physical Disability Homecare,Charges from Independent Providers,282.68,BETTER AT HOME IOW LTD,949
Revenue,Adult Services,5105636373,19.06.2015,Physical Disability Homecare,Regular Respite Care,122.24,BETTER AT HOME IOW LTD,950
Revenue,Adult Services,5105636380,19.06.2015,Physical Disability Homecare,Regular Respite Care,80.22,BETTER AT HOME IOW LTD,951
Revenue,Adult Services,5105636379,19.06.2015,Elderly Frail Homecare,Charges from Independent Providers,179.54,BETTER AT HOME IOW LTD,952
Revenue,Adult Services,5105636379,19.06.2015,Elderly Frail Homecare,Charges from Independent Providers,951.18,BETTER AT HOME IOW LTD,953
Revenue,Adult Services,5105636384,19.06.2015,Elderly Frail Homecare,Charges from Independent Providers,30.56,BETTER AT HOME IOW LTD,954
Revenue,Adult Services,5105635998,17.06.2015,Elderly Frail Homecare,Charges from Independent Providers,592.10,BETTER AT HOME IOW LTD,955
Revenue,Adult Services,5105636386,19.06.2015,Elderly Frail Homecare,Charges from Independent Providers,160.44,BETTER AT HOME IOW LTD,956
Revenue,Adult Services,5105636361,19.06.2015,Elderly Frail Homecare,Charges from Independent Providers,"1,841.24",BETTER AT HOME IOW LTD,957
Revenue,Adult Services,5105636382,19.06.2015,Elderly Frail Homecare,Charges from Independent Providers,825.12,BETTER AT HOME IOW LTD,958
Revenue,Adult Services,5105635999,17.06.2015,Elderly Frail Homecare,Charges from Independent Providers,221.56,BETTER AT HOME IOW LTD,959
Revenue,Adult Services,5105636337,19.06.2015,Mental Health Homecare,Charges from Independent Providers,420.20,BETTER AT HOME IOW LTD,960
Revenue,Adult Services,5105636353,19.06.2015,Physical Disability Homecare,Charges from Independent Providers,401.10,BETTER AT HOME IOW LTD,961
Revenue,Adult Services,5105635995,17.06.2015,Elderly Frail Homecare,Regular Respite Care,397.28,BETTER AT HOME IOW LTD,962
Revenue,Adult Services,5105636546,19.06.2015,Elderly Frail Homecare,Charges from Independent Providers,267.40,BETTER AT HOME IOW LTD,963
Revenue,Adult Services,5105636352,19.06.2015,Elderly Frail Homecare,Charges from Independent Providers,534.80,BETTER AT HOME IOW LTD,964
Revenue,Adult Services,5105635991,17.06.2015,Elderly Frail Homecare,Charges from Independent Providers,114.60,BETTER AT HOME IOW LTD,965
Revenue,Adult Services,5105636375,19.06.2015,Elderly Frail Homecare,Charges from Independent Providers,152.80,BETTER AT HOME IOW LTD,966
Revenue,Adult Services,5105636376,19.06.2015,Elderly Frail Homecare,Charges from Independent Providers,145.16,BETTER AT HOME IOW LTD,967
Revenue,Adult Services,5105636378,19.06.2015,Elderly Frail Homecare,Charges from Independent Providers,30.56,BETTER AT HOME IOW LTD,968
Revenue,Adult Services,5105636371,19.06.2015,Elderly Frail Homecare,Charges from Independent Providers,802.20,BETTER AT HOME IOW LTD,969
Revenue,Adult Services,5105636354,19.06.2015,Elderly Frail Homecare,Charges from Independent Providers,378.18,BETTER AT HOME IOW LTD,970
Revenue,Adult Services,5105636545,19.06.2015,Elderly Frail Homecare,Charges from Independent Providers,771.64,BETTER AT HOME IOW LTD,971
Revenue,Adult Services,5105636365,19.06.2015,Elderly Frail Homecare,Charges from Independent Providers,786.92,BETTER AT HOME IOW LTD,972
Revenue,Adult Services,5105636383,19.06.2015,Elderly Frail Homecare,Charges from Independent Providers,7.64,BETTER AT HOME IOW LTD,973
Revenue,Adult Services,5105635996,17.06.2015,Elderly Frail Homecare,Charges from Independent Providers,198.64,BETTER AT HOME IOW LTD,974
Revenue,Adult Services,5105636364,19.06.2015,Elderly Frail Homecare,Charges from Independent Providers,"2,635.80",BETTER AT HOME IOW LTD,975
Revenue,Adult Services,5105637417,26.06.2015,Elderly Frail Homecare,Charges from Independent Providers,-15.28,BETTER AT HOME IOW LTD,976
Revenue,Adult Services,5105637418,26.06.2015,Elderly Frail Homecare,Charges from Independent Providers,15.28,BETTER AT HOME IOW LTD,977
Revenue,Adult Services,5105636366,19.06.2015,Elderly Frail Homecare,Charges from Independent Providers,15.28,BETTER AT HOME IOW LTD,978
Revenue,Adult Services,5105636377,19.06.2015,Elderly Frail Homecare,Regular Respite Care,122.24,BETTER AT HOME IOW LTD,979
Revenue,Adult Services,5105636356,19.06.2015,Elderly Frail Homecare,Regular Respite Care,305.60,BETTER AT HOME IOW LTD,980
Revenue,Adult Services,5105636347,19.06.2015,Elderly Frail Homecare,Regular Respite Care,122.24,BETTER AT HOME IOW LTD,981
Revenue,Adult Services,5105635989,17.06.2015,Elderly Frail Homecare,Regular Respite Care,152.80,BETTER AT HOME IOW LTD,982
Revenue,Adult Services,5105636343,19.06.2015,Elderly Frail Homecare,Charges from Independent Providers,611.20,BETTER AT HOME IOW LTD,983
Revenue,Adult Services,5105635992,17.06.2015,Elderly Frail Homecare,Charges from Independent Providers,534.80,BETTER AT HOME IOW LTD,984
Revenue,Adult Services,5105636332,19.06.2015,Elderly Frail Homecare,Charges from Independent Providers,"1,279.70",BETTER AT HOME IOW LTD,985
Revenue,Adult Services,5105636332,19.06.2015,Elderly Frail Homecare,Charges from Independent Providers,7.64,BETTER AT HOME IOW LTD,986
Revenue,Adult Services,5105635987,17.06.2015,Elderly Frail Homecare,Charges from Independent Providers,"1,871.80",BETTER AT HOME IOW LTD,987
Revenue,Adult Services,5105635986,17.06.2015,Elderly Frail Homecare,Charges from Independent Providers,897.70,BETTER AT HOME IOW LTD,988
Revenue,Adult Services,5105636358,19.06.2015,Elderly Frail Homecare,Charges from Independent Providers,401.10,BETTER AT HOME IOW LTD,989
Revenue,Adult Services,5105636369,19.06.2015,Elderly Frail Homecare,Charges from Independent Providers,534.80,BETTER AT HOME IOW LTD,990
Revenue,Adult Services,5105636372,19.06.2015,Elderly Frail Homecare,Charges from Independent Providers,802.20,BETTER AT HOME IOW LTD,991
Revenue,Adult Services,5105636368,19.06.2015,Elderly Frail Homecare,Charges from Independent Providers,313.24,BETTER AT HOME IOW LTD,992
Revenue,Adult Services,5105635993,17.06.2015,Elderly Frail Homecare,Charges from Independent Providers,282.68,BETTER AT HOME IOW LTD,993
Revenue,Adult Services,5105636363,19.06.2015,Elderly Frail Homecare,Charges from Independent Providers,"2,933.76",BETTER AT HOME IOW LTD,994
Revenue,Adult Services,5105636340,19.06.2015,Elderly Frail Homecare,Charges from Independent Providers,695.24,BETTER AT HOME IOW LTD,995
Revenue,Adult Services,5105636331,19.06.2015,Elderly Frail Homecare,Charges from Independent Providers,802.20,BETTER AT HOME IOW LTD,996
Revenue,Adult Services,5105636338,19.06.2015,Elderly Frail Homecare,Charges from Independent Providers,802.20,BETTER AT HOME IOW LTD,997
Revenue,Adult Services,5105636330,19.06.2015,Elderly Frail Homecare,Charges from Independent Providers,"1,810.68",BETTER AT HOME IOW LTD,998
Revenue,Adult Services,5105636333,19.06.2015,Elderly Frail Homecare,Charges from Independent Providers,"1,352.28",BETTER AT HOME IOW LTD,999
Revenue,Adult Services,5105636334,19.06.2015,Elderly Frail Homecare,Charges from Independent Providers,534.80,BETTER AT HOME IOW LTD,1000
Revenue,Adult Services,5105635988,17.06.2015,Elderly Frail Homecare,Charges from Independent Providers,584.46,BETTER AT HOME IOW LTD,1001
Revenue,Adult Services,5105636335,19.06.2015,Elderly Frail Homecare,Charges from Independent Providers,"1,306.44",BETTER AT HOME IOW LTD,1002
Revenue,Adult Services,5105636336,19.06.2015,Elderly Frail Homecare,Charges from Independent Providers,519.52,BETTER AT HOME IOW LTD,1003
Revenue,Adult Services,5105636543,19.06.2015,Elderly Frail Homecare,Charges from Independent Providers,859.50,BETTER AT HOME IOW LTD,1004
Revenue,Adult Services,5105636381,19.06.2015,Elderly Frail Homecare,Charges from Independent Providers,592.10,BETTER AT HOME IOW LTD,1005
Revenue,Adult Services,5105636350,19.06.2015,Elderly Frail Homecare,Charges from Independent Providers,534.80,BETTER AT HOME IOW LTD,1006
Revenue,Adult Services,5105636348,19.06.2015,Elderly Frail Homecare,Charges from Independent Providers,267.40,BETTER AT HOME IOW LTD,1007
Revenue,Adult Services,5105636351,19.06.2015,Elderly Frail Homecare,Charges from Independent Providers,534.80,BETTER AT HOME IOW LTD,1008
Revenue,Adult Services,5105636339,19.06.2015,Elderly Frail Homecare,Charges from Independent Providers,"1,111.62",BETTER AT HOME IOW LTD,1009
Revenue,Adult Services,5105635990,17.06.2015,Elderly Frail Homecare,Charges from Independent Providers,534.80,BETTER AT HOME IOW LTD,1010
Revenue,Adult Services,5105635994,17.06.2015,Elderly Frail Homecare,Charges from Independent Providers,213.92,BETTER AT HOME IOW LTD,1011
Revenue,Adult Services,5105636367,19.06.2015,Elderly Frail Homecare,Charges from Independent Providers,137.52,BETTER AT HOME IOW LTD,1012
Revenue,Adult Services,5105636342,19.06.2015,Elderly Frail Homecare,Charges from Independent Providers,61.12,BETTER AT HOME IOW LTD,1013
Revenue,Adult Services,5105636344,19.06.2015,Elderly Frail Homecare,Charges from Independent Providers,171.90,BETTER AT HOME IOW LTD,1014
Revenue,Adult Services,5105636345,19.06.2015,Elderly Frail Homecare,Charges from Independent Providers,985.56,BETTER AT HOME IOW LTD,1015
Revenue,Adult Services,5105636346,19.06.2015,Elderly Frail Homecare,Charges from Independent Providers,263.58,BETTER AT HOME IOW LTD,1016
Revenue,Adult Services,5105636357,19.06.2015,Elderly Frail Homecare,Charges from Independent Providers,534.80,BETTER AT HOME IOW LTD,1017
Revenue,Adult Services,5105636341,19.06.2015,Elderly Frail Homecare,Charges from Independent Providers,15.28,BETTER AT HOME IOW LTD,1018
Revenue,Adult Services,5105636349,19.06.2015,Elderly Mentally Ill Homecare,Charges from Independent Providers,802.20,BETTER AT HOME IOW LTD,1019
Revenue,Adult Services,5105636359,19.06.2015,Elderly Mentally Ill Homecare,Charges from Independent Providers,"1,203.30",BETTER AT HOME IOW LTD,1020
Revenue,Adult Services,5105636360,19.06.2015,Elderly Mentally Ill Homecare,Charges from Independent Providers,366.72,BETTER AT HOME IOW LTD,1021
Revenue,Adult Services,5105636370,19.06.2015,Elderly Mentally Ill Homecare,Charges from Independent Providers,313.24,BETTER AT HOME IOW LTD,1022
Revenue,Place,5105634268,12.06.2015,Medina Leisure Centre,Stock Purchases,14.66,3663 (BFS GROUP LTD),1023
Revenue,Place,5105634268,12.06.2015,Medina Leisure Centre,Stock Purchases,37.10,3663 (BFS GROUP LTD),1024
Revenue,Place,5105633891,10.06.2015,Medina Leisure Centre,Stock Purchases,120.30,3663 (BFS GROUP LTD),1025
Revenue,Place,5105634009,10.06.2015,Medina Leisure Centre,Stock Purchases,130.68,3663 (BFS GROUP LTD),1026
Revenue,Place,5105634024,10.06.2015,Medina Leisure Centre,Stock Purchases,831.48,3663 (BFS GROUP LTD),1027
Revenue,Place,5105636579,19.06.2015,Medina Leisure Centre,Stock Purchases,296.90,3663 (BFS GROUP LTD),1028
Revenue,Place,5105634009,10.06.2015,Medina Leisure Centre,Stock Purchases,24.18,3663 (BFS GROUP LTD),1029
Revenue,Adult Services,5105636672,24.06.2015,Gouldings Resource Centre,Catering Purchases,216.32,3663 (BFS GROUP LTD),1030
Revenue,Adult Services,5105636672,24.06.2015,Gouldings Resource Centre,Catering Purchases,87.85,3663 (BFS GROUP LTD),1031
Revenue,Adult Services,5105633028,03.06.2015,Gouldings Resource Centre,Catering Purchases,286.77,3663 (BFS GROUP LTD),1032
Revenue,Adult Services,5105634420,17.06.2015,Gouldings Resource Centre,Catering Purchases,258.34,3663 (BFS GROUP LTD),1033
Revenue,Adult Services,5105634420,17.06.2015,Gouldings Resource Centre,Catering Purchases,24.76,3663 (BFS GROUP LTD),1034
Revenue,Adult Services,5105633665,10.06.2015,Gouldings Resource Centre,Catering Purchases,69.36,3663 (BFS GROUP LTD),1035
Revenue,Adult Services,5105633680,10.06.2015,Gouldings Resource Centre,Catering Purchases,478.95,3663 (BFS GROUP LTD),1036
Revenue,Adult Services,5105637703,30.06.2015,Gouldings Resource Centre,Catering Purchases,532.54,3663 (BFS GROUP LTD),1037
Revenue,Adult Services,5105637703,30.06.2015,Gouldings Resource Centre,Catering Purchases,18.32,3663 (BFS GROUP LTD),1038
Revenue,Adult Services,5105637723,30.06.2015,Westminster House,Catering Purchases,193.49,3663 (BFS GROUP LTD),1039
Revenue,Adult Services,5105637724,30.06.2015,Westminster House,Catering Purchases,164.35,3663 (BFS GROUP LTD),1040
Revenue,Adult Services,5105637725,30.06.2015,Westminster House,Catering Purchases,76.78,3663 (BFS GROUP LTD),1041
Revenue,Adult Services,5105633868,10.06.2015,Westminster House,Catering Purchases,93.70,3663 (BFS GROUP LTD),1042
Revenue,Adult Services,5105633911,10.06.2015,Westminster House,Catering Purchases,46.26,3663 (BFS GROUP LTD),1043
Revenue,Adult Services,5105633907,10.06.2015,Westminster House,Catering Purchases,140.48,3663 (BFS GROUP LTD),1044
Revenue,Place,5105633663,10.06.2015,The Heights,Stock Purchases,108.48,3663 (BFS GROUP LTD),1045
Revenue,Place,5105633661,10.06.2015,The Heights,Stock Purchases,57.99,3663 (BFS GROUP LTD),1046
Revenue,Place,5105633661,10.06.2015,The Heights,Stock Purchases,81.97,3663 (BFS GROUP LTD),1047
Revenue,Place,5105636954,24.06.2015,The Heights,Stock Purchases,480.46,3663 (BFS GROUP LTD),1048
Revenue,Place,5105636897,24.06.2015,The Heights,Stock Purchases,90.97,3663 (BFS GROUP LTD),1049
Revenue,Place,5105636897,24.06.2015,The Heights,Stock Purchases,28.69,3663 (BFS GROUP LTD),1050
Revenue,Adult Services,5105633063,03.06.2015,Adelaide Resource Centre,Catering Purchases,5.14,3663 (BFS GROUP LTD),1051
Revenue,Adult Services,5105633063,03.06.2015,Adelaide Resource Centre,Catering Purchases,100.14,3663 (BFS GROUP LTD),1052
Revenue,Adult Services,5105633928,10.06.2015,Adelaide Resource Centre,Catering Purchases,10.95,3663 (BFS GROUP LTD),1053
Revenue,Adult Services,5105633996,10.06.2015,Adelaide Resource Centre,Catering Purchases,22.47,3663 (BFS GROUP LTD),1054
Revenue,Adult Services,5105633996,10.06.2015,Adelaide Resource Centre,Catering Purchases,330.70,3663 (BFS GROUP LTD),1055
Revenue,Adult Services,5105633928,10.06.2015,Adelaide Resource Centre,Catering Purchases,172.24,3663 (BFS GROUP LTD),1056
Revenue,Adult Services,5105633403,05.06.2015,Adelaide Resource Centre,Catering Purchases,324.31,3663 (BFS GROUP LTD),1057
Revenue,Adult Services,5105633403,05.06.2015,Adelaide Resource Centre,Catering Purchases,27.41,3663 (BFS GROUP LTD),1058
Revenue,Adult Services,5105636395,19.06.2015,Adelaide Resource Centre,Catering Purchases,106.70,3663 (BFS GROUP LTD),1059
Revenue,Adult Services,5105636488,19.06.2015,Adelaide Resource Centre,Catering Purchases,234.71,3663 (BFS GROUP LTD),1060
Revenue,Adult Services,5105636488,19.06.2015,Adelaide Resource Centre,Catering Purchases,31.33,3663 (BFS GROUP LTD),1061
Revenue,Adult Services,5105636395,19.06.2015,Adelaide Resource Centre,Catering Purchases,5.14,3663 (BFS GROUP LTD),1062
Revenue,Adult Services,5400002001,17.04.2015,Adelaide Resource Centre,Catering Purchases,0.01,3663 (BFS GROUP LTD),1063
Revenue,Adult Services,5105632757,03.06.2015,Gouldings Resource Centre,"Refuse Collection, Disposal and Recycling Costs",284.16,BIFFA WASTE SERVICES LTD,1064
Revenue,Adult Services,5105633423,05.06.2015,Gouldings Resource Centre,"Refuse Collection, Disposal and Recycling Costs",91.60,BIFFA WASTE SERVICES LTD,1065
Revenue,Adult Services,5105633424,05.06.2015,Gouldings Resource Centre,"Refuse Collection, Disposal and Recycling Costs",284.16,BIFFA WASTE SERVICES LTD,1066
Revenue,Adult Services,5105632755,03.06.2015,Adelaide Resource Centre,"Refuse Collection, Disposal and Recycling Costs",187.46,BIFFA WASTE SERVICES LTD,1067
Revenue,Adult Services,5105632945,03.06.2015,Adelaide Resource Centre,"Refuse Collection, Disposal and Recycling Costs","1,518.63",BIFFA WASTE SERVICES LTD,1068
Revenue,Place,5105635523,17.06.2015,Play Development,Operational Equipment,159.98,BIG WIGHT T-SHIRT CO,1069
Revenue,Childrens Services,5105636915,24.06.2015,In-house Fostering,Advertising & Publicity,"1,080.00",BILTMORE PRINTERS,1074
Revenue,Place,5105633941,10.06.2015,Dinosaur Isle Museum (Sandown Geology),Fixed Telephones,480.92,BISTECH PLC,1076
Revenue,Resources,5105636804,24.06.2015,Staff Benefits,Payment to Private Contractors,156.60,BLACKBERRY LANE PRE-SCHOOL,1077
Revenue,Resources,5105636804,24.06.2015,Staff Benefits,Payment to Private Contractors,45.00,BLACKBERRY LANE PRE-SCHOOL,1078
Revenue,Resources,5105634002,10.06.2015,Applications Development,Consultants Fees,"1,200.00",BLAZIE ENGINEERING LTD,1079
Revenue,Adult Services,5105633956,19.06.2015,Community Outreach,Vehicle Maintenance Costs,15.00,REDACTED PERSONAL DATA,1080
Revenue,Adult Services,5105633956,19.06.2015,Community Outreach,Vehicle Maintenance Costs,5.00,REDACTED PERSONAL DATA,1081
Revenue,Adult Services,5105633956,19.06.2015,Community Outreach,Vehicle Maintenance Costs,5.00,REDACTED PERSONAL DATA,1082
Revenue,Adult Services,5105633956,19.06.2015,Community Outreach,Vehicle Maintenance Costs,10.00,REDACTED PERSONAL DATA,1083
Revenue,Adult Services,5105633956,19.06.2015,Community Outreach,Vehicle Maintenance Costs,5.00,REDACTED PERSONAL DATA,1084
Revenue,Adult Services,5105633956,19.06.2015,Community Outreach,Vehicle Maintenance Costs,5.00,REDACTED PERSONAL DATA,1085
Revenue,Adult Services,5105633956,19.06.2015,Community Outreach,Vehicle Maintenance Costs,10.00,REDACTED PERSONAL DATA,1086
Revenue,Adult Services,5105633956,19.06.2015,Community Outreach,Vehicle Maintenance Costs,10.00,REDACTED PERSONAL DATA,1087
Revenue,Childrens Services,5105634378,12.06.2015,Purchased Fostering,Charges from Independent Providers,"3,001.50",BLUE SKY FOSTERING LTD,1088
Revenue,Childrens Services,5105634376,12.06.2015,Purchased Fostering,Charges from Independent Providers,"3,001.50",BLUE SKY FOSTERING LTD,1089
Revenue,Childrens Services,5105634377,12.06.2015,Purchased Fostering,Charges from Independent Providers,"3,001.50",BLUE SKY FOSTERING LTD,1090
Revenue,Place,5105637423,26.06.2015,Fire Technical Support,Vehicle Maintenance Costs,81.75,BLUELITE GRAPHICS LTD,1091
Revenue,Place,5105637423,26.06.2015,Fire Technical Support,Vehicle Maintenance Costs,11.55,BLUELITE GRAPHICS LTD,1092
Revenue,Childrens Services,5105633738,17.06.2015,Beaulieu House,General Materials,33.50,BOC LTD,1093
Revenue,Childrens Services,5105635171,17.06.2015,Short Breaks,Charges from Independent Providers,520.00,BODSTER EQUINE ASSISTED LEARN CIC,1094
Revenue,Adult Services,5105634023,10.06.2015,Plean Dene,Catering Purchases,15.57,BOOKER CASH & CARRY LTD,1095
Revenue,Adult Services,5105633402,05.06.2015,Plean Dene,Catering Purchases,120.19,BOOKER CASH & CARRY LTD,1096
Revenue,Adult Services,5105633428,05.06.2015,Plean Dene,Catering Purchases,21.63,BOOKER CASH & CARRY LTD,1097
Revenue,Adult Services,5105633429,05.06.2015,Plean Dene,Catering Purchases,24.62,BOOKER CASH & CARRY LTD,1098
Revenue,Adult Services,5105633575,10.06.2015,Plean Dene,Catering Purchases,5.50,BOOKER CASH & CARRY LTD,1099
Revenue,Adult Services,5105633589,10.06.2015,Plean Dene,Catering Purchases,7.19,BOOKER CASH & CARRY LTD,1100
Revenue,Adult Services,5105633429,05.06.2015,Plean Dene,Catering Purchases,3.49,BOOKER CASH & CARRY LTD,1101
Revenue,Adult Services,5105633402,05.06.2015,Plean Dene,Catering Purchases,9.56,BOOKER CASH & CARRY LTD,1102
Revenue,Adult Services,5105632919,03.06.2015,Plean Dene,Catering Purchases,13.67,BOOKER CASH & CARRY LTD,1103
Revenue,Adult Services,5105632921,03.06.2015,Plean Dene,Catering Purchases,27.94,BOOKER CASH & CARRY LTD,1104
Revenue,Adult Services,5105632922,03.06.2015,Plean Dene,Catering Purchases,41.06,BOOKER CASH & CARRY LTD,1105
Revenue,Adult Services,5105633131,03.06.2015,Plean Dene,Catering Purchases,109.48,BOOKER CASH & CARRY LTD,1106
Revenue,Adult Services,5105633128,03.06.2015,Plean Dene,Catering Purchases,14.04,BOOKER CASH & CARRY LTD,1107
Revenue,Adult Services,5105633182,03.06.2015,Plean Dene,Catering Purchases,13.38,BOOKER CASH & CARRY LTD,1108
Revenue,Adult Services,5105633183,05.06.2015,Plean Dene,Catering Purchases,15.68,BOOKER CASH & CARRY LTD,1109
Revenue,Adult Services,5105633185,03.06.2015,Plean Dene,Catering Purchases,8.94,BOOKER CASH & CARRY LTD,1110
Revenue,Adult Services,5105633193,05.06.2015,Plean Dene,Catering Purchases,22.36,BOOKER CASH & CARRY LTD,1111
Revenue,Adult Services,5105633185,03.06.2015,Plean Dene,Catering Purchases,1.78,BOOKER CASH & CARRY LTD,1112
Revenue,Adult Services,5105633131,03.06.2015,Plean Dene,Catering Purchases,23.49,BOOKER CASH & CARRY LTD,1113
Revenue,Adult Services,5105634226,17.06.2015,Plean Dene,Catering Purchases,111.61,BOOKER CASH & CARRY LTD,1114
Revenue,Adult Services,5105634217,12.06.2015,Plean Dene,Catering Purchases,27.85,BOOKER CASH & CARRY LTD,1115
Revenue,Adult Services,5105634227,12.06.2015,Plean Dene,Catering Purchases,47.87,BOOKER CASH & CARRY LTD,1116
Revenue,Adult Services,5105634400,12.06.2015,Plean Dene,Catering Purchases,6.49,BOOKER CASH & CARRY LTD,1117
Revenue,Adult Services,5105634227,12.06.2015,Plean Dene,Catering Purchases,24.47,BOOKER CASH & CARRY LTD,1118
Revenue,Adult Services,5105634226,17.06.2015,Plean Dene,Catering Purchases,19.88,BOOKER CASH & CARRY LTD,1119
Revenue,Adult Services,5105635570,17.06.2015,Plean Dene,Catering Purchases,12.64,BOOKER CASH & CARRY LTD,1120
Revenue,Adult Services,5105637229,26.06.2015,Plean Dene,Catering Purchases,162.63,BOOKER CASH & CARRY LTD,1121
Revenue,Adult Services,5105637215,26.06.2015,Plean Dene,Catering Purchases,22.27,BOOKER CASH & CARRY LTD,1122
Revenue,Adult Services,5105637062,26.06.2015,Plean Dene,Catering Purchases,7.55,BOOKER CASH & CARRY LTD,1123
Revenue,Adult Services,5105636730,24.06.2015,Plean Dene,Catering Purchases,14.25,BOOKER CASH & CARRY LTD,1124
Revenue,Adult Services,5105636727,24.06.2015,Plean Dene,Catering Purchases,31.26,BOOKER CASH & CARRY LTD,1125
Revenue,Adult Services,5105636926,26.06.2015,Plean Dene,Catering Purchases,11.49,BOOKER CASH & CARRY LTD,1126
Revenue,Adult Services,5105636933,24.06.2015,Plean Dene,Catering Purchases,217.01,BOOKER CASH & CARRY LTD,1127
Revenue,Adult Services,5105636936,24.06.2015,Plean Dene,Catering Purchases,8.99,BOOKER CASH & CARRY LTD,1128
Revenue,Adult Services,5105636933,24.06.2015,Plean Dene,Catering Purchases,17.54,BOOKER CASH & CARRY LTD,1129
Revenue,Adult Services,5105637229,26.06.2015,Plean Dene,Catering Purchases,15.53,BOOKER CASH & CARRY LTD,1130
Revenue,Adult Services,5105637741,01.07.2015,Plean Dene,Catering Purchases,23.07,BOOKER CASH & CARRY LTD,1131
Revenue,Adult Services,5105637617,30.06.2015,Plean Dene,Catering Purchases,53.07,BOOKER CASH & CARRY LTD,1132
Revenue,Adult Services,5105637741,01.07.2015,Plean Dene,Catering Purchases,60.81,BOOKER CASH & CARRY LTD,1133
Revenue,Adult Services,5105637194,24.06.2015,Highmead,Catering Purchases,114.93,BOOKER CASH & CARRY LTD,1134
Revenue,Adult Services,5105636944,24.06.2015,Highmead,Catering Purchases,198.64,BOOKER CASH & CARRY LTD,1135
Revenue,Adult Services,5105636944,24.06.2015,Highmead,Catering Purchases,32.35,BOOKER CASH & CARRY LTD,1136
Revenue,Adult Services,5105637194,24.06.2015,Highmead,Catering Purchases,31.99,BOOKER CASH & CARRY LTD,1137
Revenue,Adult Services,5105636896,26.06.2015,Overbrook,Catering Purchases,90.76,BOOKER CASH & CARRY LTD,1138
Revenue,Adult Services,5105636958,30.06.2015,The Laurels,Catering Purchases,188.06,BOOKER CASH & CARRY LTD,1139
Revenue,Adult Services,5105636958,30.06.2015,The Laurels,Catering Purchases,3.99,BOOKER CASH & CARRY LTD,1140
Revenue,Adult Services,5105635568,24.06.2015,The Laurels,Catering Purchases,88.24,BOOKER CASH & CARRY LTD,1141
Revenue,Adult Services,5105635568,24.06.2015,The Laurels,Catering Purchases,10.29,BOOKER CASH & CARRY LTD,1142
Revenue,Adult Services,5105633404,05.06.2015,The Laurels,Catering Purchases,246.28,BOOKER CASH & CARRY LTD,1143
Revenue,Adult Services,5105633708,10.06.2015,The Laurels,Catering Purchases,107.42,BOOKER CASH & CARRY LTD,1144
Revenue,Adult Services,5105633708,10.06.2015,The Laurels,Catering Purchases,15.82,BOOKER CASH & CARRY LTD,1145
Revenue,Adult Services,5105633404,05.06.2015,The Laurels,Catering Purchases,29.94,BOOKER CASH & CARRY LTD,1146
Revenue,Adult Services,5105633194,17.06.2015,The Laurels,Catering Purchases,51.01,BOOKER CASH & CARRY LTD,1147
Revenue,Adult Services,5105633194,17.06.2015,The Laurels,Catering Purchases,215.65,BOOKER CASH & CARRY LTD,1148
Revenue,Adult Services,5105637717,30.06.2015,The Laurels,Catering Purchases,36.54,BOOKER CASH & CARRY LTD,1149
Revenue,Adult Services,5105637717,30.06.2015,The Laurels,Catering Purchases,33.11,BOOKER CASH & CARRY LTD,1150
Revenue,Childrens Services,5105633421,19.06.2015,Pupil Premium Managed Centrally,General Materials,29.10,BOOKTRUST,1151
Revenue,Childrens Services,5105633421,19.06.2015,Pupil Premium Managed Centrally,General Materials,100.08,BOOKTRUST,1152
Revenue,Public Health,5105635230,17.06.2015,Contraception,Payment to Private Contractors,408.50,BOOTS THE CHEMIST LTD (Ryde),1153
Revenue,Public Health,5105635230,17.06.2015,Contraception,Payment to Private Contractors,78.00,BOOTS THE CHEMIST LTD (Ryde),1154
Revenue,Public Health,5105635230,17.06.2015,Contraception,Payment to Private Contractors,56.20,BOOTS THE CHEMIST LTD (Ryde),1155
Revenue,Public Health,5105635230,17.06.2015,Drug Misuse - Adults,Payment to Private Contractors,532.00,BOOTS THE CHEMIST LTD (Ryde),1156
Revenue,Public Health,5105635230,17.06.2015,Drug Misuse - Adults,Payment to Private Contractors,994.00,BOOTS THE CHEMIST LTD (Ryde),1157
Revenue,Public Health,5105635225,17.06.2015,Drug Misuse - Adults,Payment to Private Contractors,66.50,BOOTS UK LTD (107 HIGH ST SANDOWN),1158
Revenue,Public Health,5105635225,17.06.2015,Drug Misuse - Adults,Payment to Private Contractors,86.00,BOOTS UK LTD (107 HIGH ST SANDOWN),1159
Revenue,Public Health,5105635209,17.06.2015,Contraception,Payment to Private Contractors,5.20,BOOTS UK LTD (COWES),1160
Revenue,Public Health,5105635209,17.06.2015,Contraception,Payment to Private Contractors,21.50,BOOTS UK LTD (COWES),1161
Revenue,Public Health,5105635209,17.06.2015,Drug Misuse - Adults,Payment to Private Contractors,512.00,BOOTS UK LTD (COWES),1162
Revenue,Public Health,5105635209,17.06.2015,Drug Misuse - Adults,Payment to Private Contractors,168.00,BOOTS UK LTD (COWES),1163
Revenue,Public Health,5105635209,17.06.2015,STI Tests & Treatment,Payment to Private Contractors,8.04,BOOTS UK LTD (COWES),1164
Revenue,Public Health,5105635209,17.06.2015,STI Tests & Treatment,Payment to Private Contractors,30.00,BOOTS UK LTD (COWES),1165
Revenue,Public Health,5105635206,17.06.2015,Contraception,Payment to Private Contractors,112.40,BOOTS UK LTD (NEWPORT),1166
Revenue,Public Health,5105635206,17.06.2015,Contraception,Payment to Private Contractors,119.60,BOOTS UK LTD (NEWPORT),1167
Revenue,Public Health,5105635206,17.06.2015,Contraception,Payment to Private Contractors,688.00,BOOTS UK LTD (NEWPORT),1168
Revenue,Public Health,5105635224,17.06.2015,Contraception,Payment to Private Contractors,107.50,BOOTS UK LTD (SANDOWN LARGE STORE),1169
Revenue,Public Health,5105635224,17.06.2015,Contraception,Payment to Private Contractors,26.00,BOOTS UK LTD (SANDOWN LARGE STORE),1170
Revenue,Public Health,5105635224,17.06.2015,Drug Misuse - Adults,Payment to Private Contractors,101.50,BOOTS UK LTD (SANDOWN LARGE STORE),1171
Revenue,Public Health,5105635224,17.06.2015,Drug Misuse - Adults,Payment to Private Contractors,186.00,BOOTS UK LTD (SANDOWN LARGE STORE),1172
Revenue,Public Health,5105635197,17.06.2015,Contraception,Payment to Private Contractors,14.05,BOOTS UK LTD (SHANKLIN),1173
Revenue,Public Health,5105635197,17.06.2015,Contraception,Payment to Private Contractors,21.50,BOOTS UK LTD (SHANKLIN),1174
Revenue,Public Health,5105635197,17.06.2015,Drug Misuse - Adults,Payment to Private Contractors,46.00,BOOTS UK LTD (SHANKLIN),1175
Revenue,Public Health,5105635208,17.06.2015,Contraception,Payment to Private Contractors,14.05,BOOTS UK LTD (TOWER HOUSE),1176
Revenue,Public Health,5105635208,17.06.2015,Contraception,Payment to Private Contractors,21.50,BOOTS UK LTD (TOWER HOUSE),1177
Revenue,Public Health,5105635208,17.06.2015,Drug Misuse - Adults,Payment to Private Contractors,146.00,BOOTS UK LTD (TOWER HOUSE),1178
Revenue,Public Health,5105635193,17.06.2015,Contraception,Payment to Private Contractors,86.00,BOOTS UK LTD,1179
Revenue,Public Health,5105635193,17.06.2015,Contraception,Payment to Private Contractors,15.60,BOOTS UK LTD,1180
Revenue,Public Health,5105635193,17.06.2015,Contraception,Payment to Private Contractors,28.10,BOOTS UK LTD,1181
Revenue,Public Health,5105635194,17.06.2015,Contraception,Payment to Private Contractors,5.20,BOOTS UK LTD (YLB BEMBRIDGE),1182
Revenue,Public Health,5105635194,17.06.2015,Contraception,Payment to Private Contractors,21.50,BOOTS UK LTD (YLB BEMBRIDGE),1183
Revenue,Public Health,5105635194,17.06.2015,Drug Misuse - Adults,Payment to Private Contractors,7.00,BOOTS UK LTD (YLB BEMBRIDGE),1184
Revenue,Adult Services,5105636134,24.06.2015,DoLS/MCA,Training,950.00,BOURNEMOUTH UNIVERSITY,1185
Revenue,Childrens Services,5105637470,01.07.2015,Area Director (Children & Families),Professional Subscriptions,"6,250.00",BRACKNELL FOREST BOROUGH COUNCIL,1186
Revenue,Place,5105633649,10.06.2015,Dinosaur Isle Museum (Sandown Geology),Stock Purchases,97.20,BRAINSTORM LTD,1188
Revenue,Place,5105633649,10.06.2015,Dinosaur Isle Museum (Sandown Geology),Stock Purchases,60.00,BRAINSTORM LTD,1189
Revenue,Place,5105633649,10.06.2015,Dinosaur Isle Museum (Sandown Geology),Stock Purchases,64.80,BRAINSTORM LTD,1190
Revenue,Place,5105633649,10.06.2015,Dinosaur Isle Museum (Sandown Geology),Stock Purchases,63.60,BRAINSTORM LTD,1191
Revenue,Place,5105633649,10.06.2015,Dinosaur Isle Museum (Sandown Geology),Stock Purchases,24.00,BRAINSTORM LTD,1192
Revenue,Place,5105633649,10.06.2015,Dinosaur Isle Museum (Sandown Geology),Stock Purchases,18.60,BRAINSTORM LTD,1193
Revenue,Place,5105633745,10.06.2015,The Heights,Stock Purchases,101.03,BRAKE BROS LTD,1194
Revenue,Place,5105637224,26.06.2015,The Heights,Stock Purchases,95.04,BRAKE BROS LTD,1195
Revenue,Place,5105636796,24.06.2015,Leaseholds by LA,Accommodation Costs - Leaseholder Payments,746.81,BRAMBLE LETTINGS,1196
Revenue,Place,5105636796,24.06.2015,Leaseholds by LA,Accommodation Costs - Leaseholder Payments,746.81,BRAMBLE LETTINGS,1197
Revenue,Place,5105636796,24.06.2015,Leaseholds by LA,Accommodation Costs - Leaseholder Payments,746.81,BRAMBLE LETTINGS,1198
Revenue,Place,5105636796,24.06.2015,Leaseholds by LA,Accommodation Costs - Leaseholder Payments,746.81,BRAMBLE LETTINGS,1199
Revenue,Place,5105636796,24.06.2015,Leaseholds by LA,Accommodation Costs - Leaseholder Payments,746.81,BRAMBLE LETTINGS,1200
Revenue,Place,5105636796,24.06.2015,Leaseholds by LA,Accommodation Costs - Leaseholder Payments,746.81,BRAMBLE LETTINGS,1201
Revenue,Place,5105636796,24.06.2015,Leaseholds by LA,Accommodation Costs - Leaseholder Payments,746.81,BRAMBLE LETTINGS,1202
Revenue,Place,5105636796,24.06.2015,Leaseholds by LA,Accommodation Costs - Leaseholder Payments,746.81,BRAMBLE LETTINGS,1203
Revenue,Place,5105636796,24.06.2015,Leaseholds by LA,Accommodation Costs - Leaseholder Payments,769.43,BRAMBLE LETTINGS,1204
Revenue,Place,5105636796,24.06.2015,Leaseholds by LA,Accommodation Costs - Leaseholder Payments,746.81,BRAMBLE LETTINGS,1205
Revenue,Place,5105636796,24.06.2015,Leaseholds by LA,Accommodation Costs - Leaseholder Payments,588.38,BRAMBLE LETTINGS,1206
Revenue,Place,5105636796,24.06.2015,Leaseholds by LA,Accommodation Costs - Leaseholder Payments,746.81,BRAMBLE LETTINGS,1207
Revenue,Place,5105636796,24.06.2015,Leaseholds by LA,Accommodation Costs - Leaseholder Payments,588.38,BRAMBLE LETTINGS,1208
Revenue,Place,5105636796,24.06.2015,Leaseholds by LA,Accommodation Costs - Leaseholder Payments,588.38,BRAMBLE LETTINGS,1209
Revenue,Place,5105636796,24.06.2015,Leaseholds by LA,Accommodation Costs - Leaseholder Payments,588.38,BRAMBLE LETTINGS,1210
Revenue,Place,5105636796,24.06.2015,Leaseholds by LA,Accommodation Costs - Leaseholder Payments,588.38,BRAMBLE LETTINGS,1211
Revenue,Place,5105636796,24.06.2015,Leaseholds by LA,Accommodation Costs - Leaseholder Payments,588.38,BRAMBLE LETTINGS,1212
Revenue,Place,5105636796,24.06.2015,Leaseholds by LA,Accommodation Costs - Leaseholder Payments,746.81,BRAMBLE LETTINGS,1213
Revenue,Place,5105636796,24.06.2015,Leaseholds by LA,Accommodation Costs - Leaseholder Payments,746.81,BRAMBLE LETTINGS,1214
Revenue,Place,5105636796,24.06.2015,Leaseholds by LA,Accommodation Costs - Leaseholder Payments,746.81,BRAMBLE LETTINGS,1215
Revenue,Place,5105636796,24.06.2015,Leaseholds by LA,Accommodation Costs - Leaseholder Payments,746.81,BRAMBLE LETTINGS,1216
Revenue,Place,5105636796,24.06.2015,Leaseholds by LA,Accommodation Costs - Leaseholder Payments,746.81,BRAMBLE LETTINGS,1217
Revenue,Place,5105632917,03.06.2015,Public Libraries Central,Purchase of Books,"6,500.00",BRIDGEALL LIBRARIES LTD,1221
Revenue,Adult Services,5105634488,17.06.2015,Elderly Mentally Ill Residential Care,Charges from Independent Providers,"1,781.36",BRIGHSTONE CARE LTD,1222
Revenue,Adult Services,5105634488,17.06.2015,Elderly Frail Residential Care,Charges from Independent Providers,"1,700.44",BRIGHSTONE CARE LTD,1223
Revenue,Adult Services,5105634488,17.06.2015,Elderly Frail Residential Care,Charges from Independent Providers,"2,093.84",BRIGHSTONE CARE LTD,1224
Revenue,Place,5105636713,24.06.2015,Slipways & Steps (Beaches),Payment to Private Contractors,430.00,BRIGHSTONE LANDSCAPING LTD,1226
Revenue,Adult Services,5105634278,17.06.2015,Plean Dene,Grounds Maintenance,387.49,BRIGHSTONE LANDSCAPING LTD,1227
Revenue,Adult Services,5105634278,17.06.2015,Saxonbury,Grounds Maintenance,48.00,BRIGHSTONE LANDSCAPING LTD,1228
Revenue,Adult Services,5105634278,17.06.2015,Highmead,Grounds Maintenance,126.00,BRIGHSTONE LANDSCAPING LTD,1229
Revenue,Place,5105633399,05.06.2015,Play Areas Health & Safety work,Payment to Private Contractors,265.00,BRIGHSTONE LANDSCAPING LTD,1230
Revenue,Place,5105633399,05.06.2015,Play Areas Health & Safety work,Payment to Private Contractors,530.00,BRIGHSTONE LANDSCAPING LTD,1231
Revenue,Place,5105636733,24.06.2015,Beach Safety & Inspection / Beach Awards,Payment to Private Contractors,370.00,BRIGHSTONE LANDSCAPING LTD,1232
Revenue,Place,5105636719,24.06.2015,Beach Cleaning,Payment to Private Contractors,75.00,BRIGHSTONE LANDSCAPING LTD,1233
Revenue,Place,5105637719,30.06.2015,Beach Cleaning,Payment to Private Contractors,40.00,BRIGHSTONE LANDSCAPING LTD,1234
Revenue,Place,5105633412,05.06.2015,Beach Cleaning,Payment to Private Contractors,355.00,BRIGHSTONE LANDSCAPING LTD,1235
Revenue,Place,5105633394,10.06.2015,Beach Cleaning,Payment to Private Contractors,85.00,BRIGHSTONE LANDSCAPING LTD,1236
Revenue,Place,5105636670,24.06.2015,Beach Cleaning,Beach Cleansing Contractors,"15,689.13",BRIGHSTONE LANDSCAPING LTD,1237
Revenue,Adult Services,5105634278,17.06.2015,Seagulls,Grounds Maintenance,48.00,BRIGHSTONE LANDSCAPING LTD,1238
Revenue,Adult Services,5105634278,17.06.2015,40 Venner Avenue,Grounds Maintenance,48.00,BRIGHSTONE LANDSCAPING LTD,1239
Revenue,Adult Services,5105634278,17.06.2015,Overbrook,Grounds Maintenance,48.00,BRIGHSTONE LANDSCAPING LTD,1240
Revenue,Adult Services,5105634278,17.06.2015,The Laurels,Grounds Maintenance,126.00,BRIGHSTONE LANDSCAPING LTD,1241
Revenue,Childrens Services,5105633609,24.06.2015,Personal & Community Development Learning,General Materials,15.00,BRITISH COMPUTER SOCIETY,1242
Revenue,Childrens Services,5105632201,03.06.2015,Personal & Community Development Learning,General Materials,148.00,BRITISH COMPUTER SOCIETY,1243
Revenue,Childrens Services,5105632201,03.06.2015,Personal & Community Development Learning,General Materials,46.00,BRITISH COMPUTER SOCIETY,1244
Revenue,Childrens Services,5105632991,24.06.2015,Personal & Community Development Learning,General Materials,15.00,BRITISH COMPUTER SOCIETY,1245
Revenue,Place,5105633998,10.06.2015,Dinosaur Isle Museum (Sandown Geology),Stock Purchases,96.84,BRITISH FOSSILS/GIFTSTONES LIMITED,1246
Revenue,Place,5105635259,17.06.2015,A.O.N.B.,Sundry Office Expenses,120.00,BRITISH RED CROSS SOCIETY,1247
Revenue,Place,5105636723,24.06.2015,Youth Council,Professional Subscriptions,285.00,BRITISH YOUTH COUNCIL,1248
Revenue,Childrens Services,5105637662,30.06.2015,Workforce Development - Early Years,Training,500.00,BROADLEA  PRIMARY SCHOOL,1251
Revenue,Place,5105633783,10.06.2015,Fire Technical Support,Vehicle Fuel Costs,180.65,BROADWAY GARAGE,1252
Revenue,Place,5105637235,26.06.2015,Play Development,Operational Equipment,15.76,BROXAP LTD,1253
Revenue,Place,5105637235,26.06.2015,Play Development,Operational Equipment,15.76,BROXAP LTD,1254
Revenue,Place,5105637235,26.06.2015,Play Development,Operational Equipment,42.00,BROXAP LTD,1255
Revenue,Place,5105637235,26.06.2015,Play Development,Operational Equipment,18.75,BROXAP LTD,1256
Revenue,Place,5105637235,26.06.2015,Play Development,Operational Equipment,15.00,BROXAP LTD,1257
Revenue,Resources,5105636560,19.06.2015,Telephones,Fixed Telephones,743.18,BT FINANCE,1258
Revenue,Place,5105634402,17.06.2015,"Registration Of Births,Deaths, Marriages",Professional Subscriptions,100.00,BUCKINGHAMSHIRE COUNTY COUNCIL,1259
Revenue,Adult Services,5105634509,17.06.2015,REDACTED PERSONAL DATA,Order Settlement to Bal Sht GL,"1,781.36",BUCKLAND CARE LTD,1260
Revenue,Adult Services,5105634509,17.06.2015,Elderly Mentally Ill Residential Care,Charges from Independent Providers,"2,093.84",BUCKLAND CARE LTD,1261
Revenue,Adult Services,5105634509,17.06.2015,Elderly Mentally Ill Residential Care,Charges from Independent Providers,"1,781.36",BUCKLAND CARE LTD,1262
Revenue,Adult Services,5105634509,17.06.2015,Elderly Mentally Ill Residential Care,Charges from Independent Providers,"1,781.36",BUCKLAND CARE LTD,1263
Revenue,Adult Services,5105634509,17.06.2015,Elderly Mentally Ill Residential Care,Charges from Independent Providers,"2,093.84",BUCKLAND CARE LTD,1264
Revenue,Adult Services,5105634509,17.06.2015,Elderly Mentally Ill Residential Care,Charges from Independent Providers,"1,781.36",BUCKLAND CARE LTD,1265
Revenue,Adult Services,5105634509,17.06.2015,Elderly Mentally Ill Residential Care,Charges from Independent Providers,"1,781.36",BUCKLAND CARE LTD,1266
Revenue,Adult Services,5105634509,17.06.2015,Elderly Mentally Ill Residential Care,Charges from Independent Providers,"2,093.84",BUCKLAND CARE LTD,1267
Revenue,Adult Services,5105634509,17.06.2015,Elderly Mentally Ill Residential Care,Charges from Independent Providers,"2,093.84",BUCKLAND CARE LTD,1268
Revenue,Adult Services,5105634509,17.06.2015,Elderly Mentally Ill Residential Care,Charges from Independent Providers,"2,093.84",BUCKLAND CARE LTD,1269
Revenue,Adult Services,5105634509,17.06.2015,Elderly Mentally Ill Residential Care,Charges from Independent Providers,"1,781.36",BUCKLAND CARE LTD,1270
Revenue,Adult Services,5105634509,17.06.2015,Elderly Mentally Ill Residential Care,Charges from Independent Providers,"1,781.36",BUCKLAND CARE LTD,1271
Revenue,Adult Services,5105634509,17.06.2015,Elderly Mentally Ill Residential Care,Charges from Independent Providers,"2,093.84",BUCKLAND CARE LTD,1272
Revenue,Adult Services,5105634509,17.06.2015,Elderly Mentally Ill Residential Care,Charges from Independent Providers,"2,093.84",BUCKLAND CARE LTD,1273
Revenue,Adult Services,5105634509,17.06.2015,Elderly Frail Residential Care,Charges from Independent Providers,"2,093.84",BUCKLAND CARE LTD,1274
Revenue,Adult Services,5105634509,17.06.2015,Elderly Frail Residential Care,Charges from Independent Providers,"2,093.84",BUCKLAND CARE LTD,1275
Revenue,Adult Services,5105636529,19.06.2015,Elderly Frail Residential Care,Charges from Independent Providers,"1,336.06",BUCKLAND CARE LTD,1276
Revenue,Adult Services,5105637175,24.06.2015,Elderly Frail Residential Care,Charges from Independent Providers,668.03,BUCKLAND CARE LTD,1277
Revenue,Adult Services,5105637175,24.06.2015,Elderly Frail Residential Care,Charges from Independent Providers,"1,700.44",BUCKLAND CARE LTD,1278
Revenue,Adult Services,5105635283,17.06.2015,Elderly Frail Residential Care,Charges from Independent Providers,"1,943.36",BUCKLAND CARE LTD,1279
Revenue,Adult Services,5105634509,17.06.2015,Elderly Frail Residential Care,Charges from Independent Providers,"1,700.44",BUCKLAND CARE LTD,1280
Revenue,Adult Services,5105634509,17.06.2015,Elderly Frail Residential Care,Charges from Independent Providers,"1,700.44",BUCKLAND CARE LTD,1281
Revenue,Adult Services,5105634509,17.06.2015,Elderly Frail Residential Care,Charges from Independent Providers,"2,093.84",BUCKLAND CARE LTD,1282
Revenue,Adult Services,5105634430,17.06.2015,Elderly Frail Residential Care,Charges from Independent Providers,607.30,BUCKLAND CARE LTD,1283
Revenue,Adult Services,5105634509,17.06.2015,Elderly Frail Residential Care,Charges from Independent Providers,"1,153.87",BUCKLAND CARE LTD,1284
Revenue,Adult Services,5105634509,17.06.2015,Elderly Frail Residential Care,Charges from Independent Providers,"1,700.44",BUCKLAND CARE LTD,1285
Revenue,Adult Services,5105633628,17.06.2015,Elderly Frail Residential Care,Charges from Independent Providers,121.46,BUCKLAND CARE LTD,1286
Revenue,Adult Services,5105633628,17.06.2015,Elderly Frail Residential Care,Charges from Independent Providers,485.84,BUCKLAND CARE LTD,1287
Revenue,Adult Services,5105634509,17.06.2015,Elderly Frail Residential Care,Charges from Independent Providers,"2,093.84",BUCKLAND CARE LTD,1288
Revenue,Adult Services,5105634509,17.06.2015,Elderly Frail Residential Care,Charges from Independent Providers,"2,093.84",BUCKLAND CARE LTD,1289
Revenue,Adult Services,5105634495,17.06.2015,Elderly Mentally Ill Nursing Island,Charges from Independent Providers,"2,784.60",BUCKLAND CARE LTD,1290
Revenue,Adult Services,5105634427,17.06.2015,Elderly Mentally Ill Nursing Island,Charges from Independent Providers,"1,790.10",BUCKLAND CARE LTD,1291
Revenue,Adult Services,5105634495,17.06.2015,Elderly Mentally Ill Nursing Island,Charges from Independent Providers,"1,093.95",BUCKLAND CARE LTD,1292
Revenue,Adult Services,5105634495,17.06.2015,Elderly Mentally Ill Nursing Island,Charges from Independent Providers,"2,784.60",BUCKLAND CARE LTD,1293
Revenue,Adult Services,5105634495,17.06.2015,Elderly Mentally Ill Nursing Island,Charges from Independent Providers,"2,784.60",BUCKLAND CARE LTD,1294
Revenue,Adult Services,5105634495,17.06.2015,Elderly Mentally Ill Nursing Island,Regular Respite Care,"2,784.60",BUCKLAND CARE LTD,1295
Revenue,Adult Services,5105634495,17.06.2015,REDACTED PERSONAL DATA,Order Settlement to Bal Sht GL,"2,336.60",BUCKLAND CARE LTD,1296
Revenue,Adult Services,5105634495,17.06.2015,REDACTED PERSONAL DATA,Order Settlement to Bal Sht GL,"2,336.60",BUCKLAND CARE LTD,1297
Revenue,Adult Services,5105634495,17.06.2015,Funded Nursing Care Island,Charges from Independent Providers,448.00,BUCKLAND CARE LTD,1298
Revenue,Adult Services,5105634495,17.06.2015,Funded Nursing Care Island,Charges from Independent Providers,448.00,BUCKLAND CARE LTD,1299
Revenue,Adult Services,5105634495,17.06.2015,Funded Nursing Care Island,Charges from Independent Providers,448.00,BUCKLAND CARE LTD,1300
Revenue,Adult Services,5105634495,17.06.2015,Funded Nursing Care Island,Charges from Independent Providers,448.00,BUCKLAND CARE LTD,1301
Revenue,Adult Services,5105634495,17.06.2015,Funded Nursing Care Island,Charges from Independent Providers,448.00,BUCKLAND CARE LTD,1302
Revenue,Adult Services,5105634495,17.06.2015,Funded Nursing Care Island,Charges from Independent Providers,448.00,BUCKLAND CARE LTD,1303
Revenue,Adult Services,5105634495,17.06.2015,Funded Nursing Care Island,Charges from Independent Providers,448.00,BUCKLAND CARE LTD,1304
Revenue,Adult Services,5105633970,10.06.2015,Funded Nursing Care Island,Charges from Independent Providers,224.00,BUCKLAND CARE LTD,1305
Revenue,Adult Services,5105634495,17.06.2015,Funded Nursing Care Island,Charges from Independent Providers,448.00,BUCKLAND CARE LTD,1306
Revenue,Adult Services,5105634495,17.06.2015,Funded Nursing Care Island,Charges from Independent Providers,448.00,BUCKLAND CARE LTD,1307
Revenue,Adult Services,5105634495,17.06.2015,Funded Nursing Care Island,Charges from Independent Providers,448.00,BUCKLAND CARE LTD,1308
Revenue,Adult Services,5105634495,17.06.2015,Elderly Frail Nursing Island,Charges from Independent Providers,"2,784.60",BUCKLAND CARE LTD,1309
Revenue,Adult Services,5105633010,03.06.2015,Physical Disability Nursing Island,Charges from Independent Providers,"1,690.65",BUCKLAND CARE LTD,1310
Revenue,Adult Services,5105633010,03.06.2015,Physical Disability Nursing Island,Charges from Independent Providers,"5,569.20",BUCKLAND CARE LTD,1311
Revenue,Adult Services,5105633010,03.06.2015,Physical Disability Nursing Island,Charges from Independent Providers,"4,475.25",BUCKLAND CARE LTD,1312
Revenue,Adult Services,5105634495,17.06.2015,Physical Disability Nursing Island,Charges from Independent Providers,"2,784.60",BUCKLAND CARE LTD,1313
Revenue,Adult Services,5105634495,17.06.2015,Elderly Frail Nursing Island,Charges from Independent Providers,"2,784.60",BUCKLAND CARE LTD,1314
Revenue,Adult Services,5105634495,17.06.2015,Elderly Frail Nursing Island,Charges from Independent Providers,"2,784.60",BUCKLAND CARE LTD,1315
Revenue,Adult Services,5105634427,17.06.2015,Elderly Frail Nursing Island,Charges from Independent Providers,"1,989.00",BUCKLAND CARE LTD,1316
Revenue,Adult Services,5105634427,17.06.2015,Elderly Frail Nursing Island,Charges from Independent Providers,"7,259.85",BUCKLAND CARE LTD,1317
Revenue,Adult Services,5105634495,17.06.2015,Elderly Frail Nursing Island,Charges from Independent Providers,"2,784.60",BUCKLAND CARE LTD,1318
Revenue,Adult Services,5105634495,17.06.2015,Elderly Frail Nursing Island,Charges from Independent Providers,"2,784.60",BUCKLAND CARE LTD,1319
Revenue,Adult Services,5105634495,17.06.2015,Elderly Frail Nursing Island,Charges from Independent Providers,"2,784.60",BUCKLAND CARE LTD,1320
Revenue,Adult Services,5105636676,24.06.2015,Elderly Frail Nursing Island,Charges from Independent Providers,"3,281.85",BUCKLAND CARE LTD,1321
Revenue,Adult Services,5105636676,24.06.2015,Elderly Frail Nursing Island,Charges from Independent Providers,"4,176.90",BUCKLAND CARE LTD,1322
Revenue,Adult Services,5105636676,24.06.2015,Elderly Frail Nursing Island,Charges from Independent Providers,"5,668.65",BUCKLAND CARE LTD,1323
Revenue,Adult Services,5105636676,24.06.2015,Elderly Frail Nursing Island,Charges from Independent Providers,"2,784.60",BUCKLAND CARE LTD,1324
Revenue,Adult Services,5105634495,17.06.2015,Elderly Frail Nursing Island,Charges from Independent Providers,"2,784.60",BUCKLAND CARE LTD,1325
Revenue,Adult Services,5105635242,17.06.2015,Plean Dene,Consumable Cleaning Materials,74.78,BUNZL CLEANING & HYGIENE SUPPLIES LTD,1326
Revenue,Adult Services,5105634810,17.06.2015,Elderly Frail Nursing Mainland,Charges from Independent Providers,"1,904.56",BUPA CARE HOME (BNH) LTD,1327
Revenue,Place,5105636626,24.06.2015,Environmental Health - Geographical Team,Professional Services,309.60,BUREAU VERITAS UK LTD,1328
Revenue,Place,5105632970,03.06.2015,Highways PFI Project,Professional Services,"2,750.00",BURGES SALMON LLP,1329
Revenue,Place,5105633579,10.06.2015,Project Manager Waste Strategy,Consultants Fees,"11,655.50",BURGES SALMON LLP,1330
Capital,Place,5105636408,19.06.2015,Parks and Gardens Capital,Payment to Contractors - Capital,275.00,C & J GROUND MAINTENANCE,1331
Revenue,Place,5105633600,12.06.2015,Properties  - Other Properties,Grounds Maintenance,"1,500.00",C & J GROUND MAINTENANCE,1332
Revenue,Place,5105633566,10.06.2015,Cothey Bottom Store RYDE,Property Services - Planned Maintenance,355.50,C & J GROUND MAINTENANCE,1333
Revenue,Place,5105636478,24.06.2015,Shanklin Lift,Property Services only - Day to day maintenance,"3,895.00",C & J GROUND MAINTENANCE,1334
Capital,Resources,5105636507,19.06.2015,Capital Receipts,Payment to Contractors - Capital,305.75,C & J GROUND MAINTENANCE,1335
Revenue,Childrens Services,5105637335,26.06.2015,Children placed with Family&Friends,Boarding Out Allowances,116.25,REDACTED PERSONAL DATA,1345
Revenue,Childrens Services,5105637335,26.06.2015,Children placed with Family&Friends,Boarding Out Allowances,164.30,REDACTED PERSONAL DATA,1346
Revenue,Childrens Services,5105633279,05.06.2015,Children placed with Family&Friends,Boarding Out Allowances,116.25,REDACTED PERSONAL DATA,1347
Revenue,Childrens Services,5105633279,05.06.2015,Children placed with Family&Friends,Boarding Out Allowances,164.30,REDACTED PERSONAL DATA,1348
Revenue,Childrens Services,5105636234,19.06.2015,Children placed with Family&Friends,Boarding Out Allowances,116.25,REDACTED PERSONAL DATA,1349
Revenue,Childrens Services,5105636234,19.06.2015,Children placed with Family&Friends,Boarding Out Allowances,164.30,REDACTED PERSONAL DATA,1350
Revenue,Childrens Services,5105634112,12.06.2015,Children placed with Family&Friends,Boarding Out Allowances,116.25,REDACTED PERSONAL DATA,1351
Revenue,Childrens Services,5105634112,12.06.2015,Children placed with Family&Friends,Boarding Out Allowances,164.30,REDACTED PERSONAL DATA,1352
Revenue,Childrens Services,5105633257,05.06.2015,Special Guardianship Order Costs,Support Children,125.79,REDACTED PERSONAL DATA,1353
Revenue,Childrens Services,5105637313,26.06.2015,Special Guardianship Order Costs,Support Children,125.79,REDACTED PERSONAL DATA,1354
Revenue,Childrens Services,5105634091,12.06.2015,Special Guardianship Order Costs,Support Children,125.79,REDACTED PERSONAL DATA,1355
Revenue,Childrens Services,5105636213,19.06.2015,Special Guardianship Order Costs,Support Children,125.79,REDACTED PERSONAL DATA,1356
Revenue,Place,5105631197,10.06.2015,Business Support  - Fire,Property Services only - Day to day maintenance,248.34,C BREWER & SONS LTD,1357
Capital,Place,5105635196,17.06.2015,Fire Capital Projects,Payment to Contractors - Capital,85.54,C BREWER & SONS LTD,1358
Revenue,Place,5105635185,17.06.2015,Fort Victoria,General Materials,32.56,C BREWER & SONS LTD,1359
Revenue,Place,5105635198,17.06.2015,Fort Victoria,General Materials,130.37,C BREWER & SONS LTD,1360
Revenue,Place,5105636399,19.06.2015,Fire Operations,Operational Equipment,204.15,C BREWER & SONS LTD,1361
Revenue,Childrens Services,5105633308,05.06.2015,Children placed with Family&Friends,Boarding Out Allowances,142.86,REDACTED PERSONAL DATA,1362
Revenue,Childrens Services,5105637363,26.06.2015,Children placed with Family&Friends,Boarding Out Allowances,142.86,REDACTED PERSONAL DATA,1363
Revenue,Childrens Services,5105636262,19.06.2015,Children placed with Family&Friends,Boarding Out Allowances,142.86,REDACTED PERSONAL DATA,1364
Revenue,Childrens Services,5105634141,12.06.2015,Children placed with Family&Friends,Boarding Out Allowances,142.86,REDACTED PERSONAL DATA,1365
Revenue,Adult Services,5105637542,30.06.2015,No-Barriers,Training,80.00,REDACTED PERSONAL DATA,1366
Revenue,Adult Services,5105633976,10.06.2015,No-Barriers,Training,80.00,REDACTED PERSONAL DATA,1367
Revenue,Childrens Services,5105637345,26.06.2015,Adoption Costs,Support Children,125.79,REDACTED PERSONAL DATA,1375
Revenue,Childrens Services,5105637345,26.06.2015,Adoption Costs,Support Children,132.69,REDACTED PERSONAL DATA,1376
Revenue,Childrens Services,5105636244,19.06.2015,Adoption Costs,Support Children,125.79,REDACTED PERSONAL DATA,1377
Revenue,Childrens Services,5105636244,19.06.2015,Adoption Costs,Support Children,132.69,REDACTED PERSONAL DATA,1378
Revenue,Childrens Services,5105633289,05.06.2015,Adoption Costs,Support Children,132.69,REDACTED PERSONAL DATA,1379
Revenue,Childrens Services,5105633289,05.06.2015,Adoption Costs,Support Children,125.79,REDACTED PERSONAL DATA,1380
Revenue,Childrens Services,5105634122,12.06.2015,Adoption Costs,Support Children,125.79,REDACTED PERSONAL DATA,1381
Revenue,Childrens Services,5105634122,12.06.2015,Adoption Costs,Support Children,132.69,REDACTED PERSONAL DATA,1382
Revenue,Resources,5105636833,24.06.2015,Staff Benefits,Payment to Private Contractors,166.50,REDACTED PERSONAL DATA,1384
Revenue,Childrens Services,5105633272,05.06.2015,Special Guardianship Order Costs,Support Children,125.79,REDACTED PERSONAL DATA,1385
Revenue,Childrens Services,5105637328,26.06.2015,Special Guardianship Order Costs,Support Children,125.79,REDACTED PERSONAL DATA,1386
Revenue,Childrens Services,5105634105,12.06.2015,Special Guardianship Order Costs,Support Children,125.79,REDACTED PERSONAL DATA,1387
Revenue,Childrens Services,5105636227,19.06.2015,Special Guardianship Order Costs,Support Children,125.79,REDACTED PERSONAL DATA,1388
Revenue,Childrens Services,5105636257,19.06.2015,In-house Fostering,Boarding Out Allowances,162.73,REDACTED PERSONAL DATA,1389
Revenue,Childrens Services,5105637358,26.06.2015,In-house Fostering,Boarding Out Allowances,202.58,REDACTED PERSONAL DATA,1390
Revenue,Childrens Services,5105637358,26.06.2015,In-house Fostering,Boarding Out Allowances,162.73,REDACTED PERSONAL DATA,1391
Revenue,Childrens Services,5105634136,12.06.2015,In-house Fostering,Boarding Out Allowances,202.58,REDACTED PERSONAL DATA,1392
Revenue,Childrens Services,5105634136,12.06.2015,In-house Fostering,Boarding Out Allowances,162.73,REDACTED PERSONAL DATA,1393
Revenue,Childrens Services,5105636257,19.06.2015,In-house Fostering,Boarding Out Allowances,202.58,REDACTED PERSONAL DATA,1394
Revenue,Childrens Services,5105633303,05.06.2015,In-house Fostering,Boarding Out Allowances,202.58,REDACTED PERSONAL DATA,1395
Revenue,Childrens Services,5105633303,05.06.2015,In-house Fostering,Boarding Out Allowances,162.73,REDACTED PERSONAL DATA,1396
Revenue,Childrens Services,5105637316,26.06.2015,Adoption Costs,Support Children,168.39,REDACTED PERSONAL DATA,1401
Revenue,Childrens Services,5105637316,26.06.2015,Adoption Costs,Support Children,168.39,REDACTED PERSONAL DATA,1402
Revenue,Childrens Services,5105633260,05.06.2015,Adoption Costs,Support Children,168.39,REDACTED PERSONAL DATA,1403
Revenue,Childrens Services,5105633260,05.06.2015,Adoption Costs,Support Children,168.39,REDACTED PERSONAL DATA,1404
Revenue,Childrens Services,5105636215,19.06.2015,Adoption Costs,Support Children,168.39,REDACTED PERSONAL DATA,1405
Revenue,Childrens Services,5105636215,19.06.2015,Adoption Costs,Support Children,168.39,REDACTED PERSONAL DATA,1406
Revenue,Childrens Services,5105634093,12.06.2015,Adoption Costs,Support Children,168.39,REDACTED PERSONAL DATA,1407
Revenue,Childrens Services,5105634093,12.06.2015,Adoption Costs,Support Children,168.39,REDACTED PERSONAL DATA,1408
Revenue,Childrens Services,5105633327,05.06.2015,Special Guardianship Order Costs,Support Children,116.80,REDACTED PERSONAL DATA,1410
Revenue,Childrens Services,5105637382,26.06.2015,Special Guardianship Order Costs,Support Children,116.80,REDACTED PERSONAL DATA,1411
Revenue,Childrens Services,5105634160,12.06.2015,Special Guardianship Order Costs,Support Children,116.80,REDACTED PERSONAL DATA,1412
Revenue,Childrens Services,5105636281,19.06.2015,Special Guardianship Order Costs,Support Children,116.80,REDACTED PERSONAL DATA,1413
Revenue,Childrens Services,5105636210,19.06.2015,In-house Fostering,Boarding Out Allowances,246.44,REDACTED PERSONAL DATA,1417
Revenue,Childrens Services,5105636210,19.06.2015,In-house Fostering,Boarding Out Allowances,270.00,REDACTED PERSONAL DATA,1418
Revenue,Childrens Services,5105636210,19.06.2015,In-house Fostering,Boarding Out Allowances,10.00,REDACTED PERSONAL DATA,1419
Revenue,Childrens Services,5105637310,26.06.2015,In-house Fostering,Boarding Out Allowances,202.58,REDACTED PERSONAL DATA,1420
Revenue,Childrens Services,5105637310,26.06.2015,In-house Fostering,Boarding Out Allowances,246.44,REDACTED PERSONAL DATA,1421
Revenue,Childrens Services,5105637310,26.06.2015,In-house Fostering,Boarding Out Allowances,270.00,REDACTED PERSONAL DATA,1422
Revenue,Childrens Services,5105637310,26.06.2015,In-house Fostering,Boarding Out Allowances,10.00,REDACTED PERSONAL DATA,1423
Revenue,Childrens Services,5105634088,12.06.2015,In-house Fostering,Boarding Out Allowances,246.44,REDACTED PERSONAL DATA,1424
Revenue,Childrens Services,5105634088,12.06.2015,In-house Fostering,Boarding Out Allowances,270.00,REDACTED PERSONAL DATA,1425
Revenue,Childrens Services,5105634088,12.06.2015,In-house Fostering,Boarding Out Allowances,10.00,REDACTED PERSONAL DATA,1426
Revenue,Childrens Services,5105633254,05.06.2015,In-house Fostering,Boarding Out Allowances,246.44,REDACTED PERSONAL DATA,1427
Revenue,Childrens Services,5105633254,05.06.2015,In-house Fostering,Boarding Out Allowances,270.00,REDACTED PERSONAL DATA,1428
Revenue,Childrens Services,5105633254,05.06.2015,In-house Fostering,Boarding Out Allowances,10.00,REDACTED PERSONAL DATA,1429
Revenue,Childrens Services,5105637288,26.06.2015,Leaving Care Costs,Accommodation Costs - Service Users,68.50,REDACTED PERSONAL DATA,1434
Revenue,Childrens Services,5105636188,19.06.2015,Leaving Care Costs,Support Children,120.89,REDACTED PERSONAL DATA,1435
Revenue,Childrens Services,5105637288,26.06.2015,Leaving Care Costs,Support Children,120.89,REDACTED PERSONAL DATA,1436
Revenue,Childrens Services,5105634066,12.06.2015,Leaving Care Costs,Support Children,120.89,REDACTED PERSONAL DATA,1437
Revenue,Childrens Services,5105633232,05.06.2015,Leaving Care Costs,Support Children,120.89,REDACTED PERSONAL DATA,1438
Revenue,Childrens Services,5105633232,05.06.2015,Leaving Care Costs,Accommodation Costs - Service Users,68.50,REDACTED PERSONAL DATA,1439
Revenue,Childrens Services,5105634066,12.06.2015,Leaving Care Costs,Accommodation Costs - Service Users,68.50,REDACTED PERSONAL DATA,1440
Revenue,Childrens Services,5105636188,19.06.2015,Leaving Care Costs,Accommodation Costs - Service Users,68.50,REDACTED PERSONAL DATA,1441
Revenue,Childrens Services,5105636188,19.06.2015,In-house Fostering,Boarding Out Allowances,142.86,REDACTED PERSONAL DATA,1442
Revenue,Childrens Services,5105636188,19.06.2015,In-house Fostering,Boarding Out Allowances,202.58,REDACTED PERSONAL DATA,1443
Revenue,Childrens Services,5105636188,19.06.2015,In-house Fostering,Boarding Out Allowances,15.00,REDACTED PERSONAL DATA,1444
Revenue,Childrens Services,5105637288,26.06.2015,In-house Fostering,Boarding Out Allowances,142.86,REDACTED PERSONAL DATA,1445
Revenue,Childrens Services,5105637288,26.06.2015,In-house Fostering,Boarding Out Allowances,202.58,REDACTED PERSONAL DATA,1446
Revenue,Childrens Services,5105637288,26.06.2015,In-house Fostering,Boarding Out Allowances,15.00,REDACTED PERSONAL DATA,1447
Revenue,Childrens Services,5105634066,12.06.2015,In-house Fostering,Boarding Out Allowances,142.86,REDACTED PERSONAL DATA,1448
Revenue,Childrens Services,5105634066,12.06.2015,In-house Fostering,Boarding Out Allowances,202.58,REDACTED PERSONAL DATA,1449
Revenue,Childrens Services,5105634066,12.06.2015,In-house Fostering,Boarding Out Allowances,15.00,REDACTED PERSONAL DATA,1450
Revenue,Childrens Services,5105633232,05.06.2015,In-house Fostering,Boarding Out Allowances,142.86,REDACTED PERSONAL DATA,1451
Revenue,Childrens Services,5105633232,05.06.2015,In-house Fostering,Boarding Out Allowances,202.58,REDACTED PERSONAL DATA,1452
Revenue,Childrens Services,5105633232,05.06.2015,In-house Fostering,Boarding Out Allowances,15.00,REDACTED PERSONAL DATA,1453
Revenue,Childrens Services,5105637305,26.06.2015,Children placed with Family&Friends,Boarding Out Allowances,246.44,REDACTED PERSONAL DATA,1454
Revenue,Childrens Services,5105637305,26.06.2015,Children placed with Family&Friends,Boarding Out Allowances,100.00,REDACTED PERSONAL DATA,1455
Revenue,Childrens Services,5105636205,19.06.2015,Children placed with Family&Friends,Boarding Out Allowances,246.44,REDACTED PERSONAL DATA,1456
Revenue,Childrens Services,5105636205,19.06.2015,Children placed with Family&Friends,Boarding Out Allowances,100.00,REDACTED PERSONAL DATA,1457
Revenue,Childrens Services,5105633249,05.06.2015,Children placed with Family&Friends,Boarding Out Allowances,246.44,REDACTED PERSONAL DATA,1458
Revenue,Childrens Services,5105633249,05.06.2015,Children placed with Family&Friends,Boarding Out Allowances,100.00,REDACTED PERSONAL DATA,1459
Revenue,Childrens Services,5105634083,12.06.2015,Children placed with Family&Friends,Boarding Out Allowances,246.44,REDACTED PERSONAL DATA,1460
Revenue,Childrens Services,5105634083,12.06.2015,Children placed with Family&Friends,Boarding Out Allowances,100.00,REDACTED PERSONAL DATA,1461
Revenue,Place,5105636642,24.06.2015,Slipways & Steps (Beaches),Payment to Private Contractors,144.14,C N SERVICES,1462
Capital,Place,5105633103,03.06.2015,Rights Of Way Capital Programme,Payment to Contractors - Capital,250.00,C N SERVICES,1463
Revenue,Place,5105636594,19.06.2015,Play Areas Health & Safety work,Payment to Private Contractors,"1,868.00",C N SERVICES,1464
Revenue,Place,5105636642,24.06.2015,Beach Safety & Inspection / Beach Awards,Payment to Private Contractors,268.86,C N SERVICES,1465
Revenue,Place,5105637098,24.06.2015,Parks/ Gardens Inspectors,Payment to Private Contractors,53.00,C N SERVICES,1466
Revenue,Place,5105636641,24.06.2015,Other Grounds Maintenance,Payment to Private Contractors,615.98,C N SERVICES,1467
Revenue,Place,5105633136,10.06.2015,Coast Protection,Payment to Private Contractors,148.64,C N SERVICES,1468
Revenue,Place,5105637087,24.06.2015,Coast Protection,Payment to Private Contractors,"1,776.00",C N SERVICES,1469
Revenue,Place,5105633147,03.06.2015,Cemeteries-Shanklin,Grounds Maintenance,220.00,C N SERVICES,1470
Revenue,Place,5105633147,03.06.2015,Cemeteries-Northwood,Grounds Maintenance,450.00,C N SERVICES,1471
Revenue,Childrens Services,5105637319,26.06.2015,In-house Fostering,Boarding Out Allowances,99.62,REDACTED PERSONAL DATA,1480
Revenue,Childrens Services,5105634096,12.06.2015,In-house Fostering,Boarding Out Allowances,142.86,REDACTED PERSONAL DATA,1481
Revenue,Childrens Services,5105634096,12.06.2015,In-house Fostering,Boarding Out Allowances,10.00,REDACTED PERSONAL DATA,1482
Revenue,Childrens Services,5105636218,19.06.2015,In-house Fostering,Boarding Out Allowances,142.86,REDACTED PERSONAL DATA,1483
Revenue,Childrens Services,5105633263,05.06.2015,In-house Fostering,Boarding Out Allowances,142.86,REDACTED PERSONAL DATA,1484
Revenue,Childrens Services,5105633263,05.06.2015,In-house Fostering,Boarding Out Allowances,10.00,REDACTED PERSONAL DATA,1485
Revenue,Childrens Services,5105633330,05.06.2015,Children placed with Family&Friends,Boarding Out Allowances,202.58,REDACTED PERSONAL DATA,1489
Revenue,Childrens Services,5105637385,26.06.2015,Children placed with Family&Friends,Boarding Out Allowances,202.58,REDACTED PERSONAL DATA,1490
Revenue,Childrens Services,5105632886,03.06.2015,Children placed with Family&Friends,Support Children,25.00,REDACTED PERSONAL DATA,1491
Revenue,Childrens Services,5105636284,19.06.2015,Children placed with Family&Friends,Boarding Out Allowances,202.58,REDACTED PERSONAL DATA,1492
Revenue,Childrens Services,5105634163,12.06.2015,Children placed with Family&Friends,Boarding Out Allowances,202.58,REDACTED PERSONAL DATA,1493
Revenue,Childrens Services,5105633283,05.06.2015,Special Guardianship Order Costs,Support Children,161.49,REDACTED PERSONAL DATA,1494
Revenue,Childrens Services,5105637339,26.06.2015,Special Guardianship Order Costs,Support Children,161.49,REDACTED PERSONAL DATA,1495
Revenue,Childrens Services,5105634116,12.06.2015,Special Guardianship Order Costs,Support Children,161.49,REDACTED PERSONAL DATA,1496
Revenue,Childrens Services,5105636238,19.06.2015,Special Guardianship Order Costs,Support Children,161.49,REDACTED PERSONAL DATA,1497
Revenue,Adult Services,5105634452,17.06.2015,Learning Disability Residential Care,Charges from Independent Providers,"1,894.76",REDACTED PERSONAL DATA,1498
Revenue,Childrens Services,5105634089,12.06.2015,Adoption Costs,Support Children,132.69,REDACTED PERSONAL DATA,1499
Revenue,Childrens Services,5105637311,26.06.2015,Adoption Costs,Support Children,132.69,REDACTED PERSONAL DATA,1500
Revenue,Childrens Services,5105636211,19.06.2015,Adoption Costs,Support Children,132.69,REDACTED PERSONAL DATA,1501
Revenue,Childrens Services,5105633255,05.06.2015,Adoption Costs,Support Children,132.69,REDACTED PERSONAL DATA,1502
Revenue,Resources,5105633371,05.06.2015,ICT Contracts,Computer Maintenance,999.00,CABLE & WIRELESS WORLDWIDE,1503
Revenue,Childrens Services,5105632194,30.06.2015,Youth Offending Team,Consultants Fees,"1,500.00",CADDIS BUILDING CONSULTANCY LTD,1504
Revenue,Childrens Services,5105634380,12.06.2015,LSCB (Local Safeguarding Childrens Board),Professional Services,"3,025.00",CHILDREN ACT ENTERPRISES LTD,1505
Revenue,Childrens Services,5105636654,24.06.2015,LSCB (Local Safeguarding Childrens Board),Professional Services,"-3,025.00",CHILDREN ACT ENTERPRISES LTD,1506
Revenue,Childrens Services,5105631323,05.06.2015,LSCB (Local Safeguarding Childrens Board),Professional Services,"2,887.50",CHILDREN ACT ENTERPRISES LTD,1507
Revenue,Childrens Services,5105629627,24.06.2015,LSCB (Local Safeguarding Childrens Board),Professional Services,"3,025.00",CHILDREN ACT ENTERPRISES LTD,1508
Revenue,Childrens Services,5105629408,05.06.2015,LSCB (Local Safeguarding Childrens Board),Professional Services,"2,887.75",CHILDREN ACT ENTERPRISES LTD,1509
Revenue,Childrens Services,5105633861,17.06.2015,LSCB (Local Safeguarding Childrens Board),Professional Services,"1,375.00",CHILDREN ACT ENTERPRISES LTD,1510
Revenue,Resources,5105632936,03.06.2015,Elections,Rent of Buildings and Rooms,200.00,CALBOURNE RECREATION CENTRE,1511
Revenue,Place,5105633172,03.06.2015,Rights of Way Operations,Consumable Cleaning Materials,322.39,CALOR GAS LIMITED,1512
Revenue,Place,5105633172,03.06.2015,Transport Administration,Consumable Cleaning Materials,214.92,CALOR GAS LIMITED,1513
Revenue,Place,5105633173,03.06.2015,Transport Administration,Consumable Cleaning Materials,13.75,CALOR GAS LIMITED,1514
Revenue,Place,5105632838,03.06.2015,Ryde Library,Cleaning Contracts,1.95,CANNON HYGIENE,1515
Revenue,Place,5105633105,03.06.2015,Ryde Library,Cleaning Contracts,-1.95,CANNON HYGIENE,1516
Revenue,Adult Services,5105632643,03.06.2015,Saxonbury,Cleaning Contracts,2.40,CANNON HYGIENE,1517
Revenue,Adult Services,5105632643,03.06.2015,31 Carter Avenue,Cleaning Contracts,8.00,CANNON HYGIENE,1518
Revenue,Place,5105636496,18.06.2015,Westridge Squash Courts,Cleaning Contracts,1.04,CANNON HYGIENE,1519
Revenue,Place,5105636486,18.06.2015,Westridge Squash Courts,Cleaning Contracts,-1.04,CANNON HYGIENE,1520
Revenue,Adult Services,5105632643,03.06.2015,Seagulls,Cleaning Contracts,8.00,CANNON HYGIENE,1521
Revenue,Place,5105632837,17.06.2015,"Bugle House,Newport",Cleaning Contracts,3.12,CANNON HYGIENE,1522
Revenue,Place,5105636489,18.06.2015,"Bugle House,Newport",Cleaning Contracts,1.04,CANNON HYGIENE,1523
Revenue,Place,5105636495,18.06.2015,"Bugle House,Newport",Cleaning Contracts,-1.04,CANNON HYGIENE,1524
Revenue,Place,5105636499,19.06.2015,"Bugle House,Newport",Cleaning Contracts,1.04,CANNON HYGIENE,1525
Revenue,Place,5105635594,17.06.2015,Roman Villa Newport,Cleaning Contracts,983.62,CANNON HYGIENE,1526
Revenue,Place,5105636736,26.06.2015,Print Unit,Photocopying Costs,497.51,CANON (UK) LTD,1527
Revenue,Corporate Items,5105637225,30.06.2015,Miscellaneous Non-rechargeable,Professional Services,"1,731.33",CAPACITY GRID T/A LIBERATA UK LTD,1528
Revenue,Place,5105633655,10.06.2015,Public Libraries Central,Computer Maintenance,500.00,CAPITA BUSINESS SERVICES LTD,1529
Revenue,Place,5105637479,26.06.2015,Shanklin Lift,Payment to Private Contractors,"1,695.00",CAPITA SYMONDS LTD,1530
Revenue,Childrens Services,5105633134,10.06.2015,Purchased Fostering,Transport of Clients,800.00,CAPSTONE FOSTER CARE LTD,1531
Revenue,Childrens Services,5105635540,17.06.2015,Purchased Fostering,Transport of Clients,400.00,CAPSTONE FOSTER CARE LTD,1532
Revenue,Childrens Services,5105633784,10.06.2015,Purchased Fostering,Charges from Independent Providers,"1,071.30",CAPSTONE FOSTER CARE LTD,1533
Revenue,Childrens Services,5105633669,12.06.2015,Short Breaks,Grants to External Bodies,930.00,CARE CONNECT IOW CIC,1534
Revenue,Childrens Services,5105633825,12.06.2015,Short Breaks,Grants to External Bodies,930.00,CARE CONNECT IOW CIC,1535
Revenue,Childrens Services,5105630975,05.06.2015,Short Breaks,Grants to External Bodies,583.00,CARE CONNECT IOW CIC,1536
Revenue,Adult Services,5105635951,17.06.2015,Physical Disability Homecare,Charges from Independent Providers,183.36,CARE FIRST IW LTD,1537
Revenue,Adult Services,5105635966,17.06.2015,Physical Disability Homecare,Charges from Independent Providers,91.68,CARE FIRST IW LTD,1538
Revenue,Adult Services,5105635974,17.06.2015,Physical Disability Homecare,Charges from Independent Providers,137.52,CARE FIRST IW LTD,1539
Revenue,Adult Services,5105635978,17.06.2015,Physical Disability Homecare,Charges from Independent Providers,901.52,CARE FIRST IW LTD,1540
Revenue,Adult Services,5105635984,17.06.2015,Elderly Frail Homecare,Charges from Independent Providers,534.80,CARE FIRST IW LTD,1541
Revenue,Adult Services,5105635980,17.06.2015,Elderly Frail Homecare,Charges from Independent Providers,106.96,CARE FIRST IW LTD,1542
Revenue,Adult Services,5105635981,17.06.2015,Elderly Frail Homecare,Charges from Independent Providers,160.44,CARE FIRST IW LTD,1543
Revenue,Adult Services,5105635938,17.06.2015,Mental Health Homecare,Charges from Independent Providers,263.58,CARE FIRST IW LTD,1544
Revenue,Adult Services,5105636710,24.06.2015,Mental Health Homecare,Charges from Independent Providers,955.00,CARE FIRST IW LTD,1545
Revenue,Adult Services,5105635446,17.06.2015,Elderly Frail Homecare,Regular Respite Care,351.44,CARE FIRST IW LTD,1546
Revenue,Adult Services,5105635446,17.06.2015,Elderly Frail Homecare,Regular Respite Care,229.20,CARE FIRST IW LTD,1547
Revenue,Adult Services,5105635964,17.06.2015,Elderly Frail Homecare,Regular Respite Care,152.80,CARE FIRST IW LTD,1548
Revenue,Adult Services,5105635968,17.06.2015,Elderly Frail Homecare,Regular Respite Care,152.80,CARE FIRST IW LTD,1549
Revenue,Adult Services,5105635967,17.06.2015,Elderly Frail Homecare,Regular Respite Care,45.84,CARE FIRST IW LTD,1550
Revenue,Adult Services,5105635962,17.06.2015,Elderly Frail Homecare,Charges from Independent Providers,"2,884.10",CARE FIRST IW LTD,1551
Revenue,Adult Services,5105635982,17.06.2015,Elderly Frail Homecare,Charges from Independent Providers,"1,528.00",CARE FIRST IW LTD,1552
Revenue,Adult Services,5105635970,17.06.2015,Elderly Frail Homecare,Charges from Independent Providers,"1,337.00",CARE FIRST IW LTD,1553
Revenue,Adult Services,5105635956,17.06.2015,Elderly Frail Homecare,Charges from Independent Providers,"1,314.08",CARE FIRST IW LTD,1554
Revenue,Adult Services,5105635955,17.06.2015,Elderly Frail Homecare,Charges from Independent Providers,"1,069.60",CARE FIRST IW LTD,1555
Revenue,Adult Services,5105635954,17.06.2015,Elderly Frail Homecare,Charges from Independent Providers,"2,521.20",CARE FIRST IW LTD,1556
Revenue,Adult Services,5105635973,17.06.2015,Elderly Frail Homecare,Charges from Independent Providers,"1,069.60",CARE FIRST IW LTD,1557
Revenue,Adult Services,5105635963,17.06.2015,Elderly Frail Homecare,Charges from Independent Providers,148.98,CARE FIRST IW LTD,1558
Revenue,Adult Services,5105635975,17.06.2015,Elderly Frail Homecare,Charges from Independent Providers,282.68,CARE FIRST IW LTD,1559
Revenue,Adult Services,5105635961,17.06.2015,Elderly Frail Homecare,Regular Respite Care,30.56,CARE FIRST IW LTD,1560
Revenue,Adult Services,5105635983,17.06.2015,Elderly Frail Homecare,Regular Respite Care,122.24,CARE FIRST IW LTD,1561
Revenue,Adult Services,5105635971,17.06.2015,Elderly Frail Homecare,Regular Respite Care,152.80,CARE FIRST IW LTD,1562
Revenue,Adult Services,5105635959,17.06.2015,Elderly Frail Homecare,Regular Respite Care,305.60,CARE FIRST IW LTD,1563
Revenue,Adult Services,5105635976,17.06.2015,Elderly Frail Homecare,Regular Respite Care,61.12,CARE FIRST IW LTD,1564
Revenue,Adult Services,5105635944,17.06.2015,Elderly Frail Homecare,Regular Respite Care,305.60,CARE FIRST IW LTD,1565
Revenue,Adult Services,5105635965,17.06.2015,Elderly Frail Homecare,Charges from Independent Providers,122.24,CARE FIRST IW LTD,1566
Revenue,Adult Services,5105635941,17.06.2015,Elderly Frail Homecare,Charges from Independent Providers,668.50,CARE FIRST IW LTD,1567
Revenue,Adult Services,5105635960,17.06.2015,Elderly Frail Homecare,Charges from Independent Providers,534.80,CARE FIRST IW LTD,1568
Revenue,Adult Services,5105635958,17.06.2015,Elderly Frail Homecare,Charges from Independent Providers,183.36,CARE FIRST IW LTD,1569
Revenue,Adult Services,5105635969,17.06.2015,Elderly Frail Homecare,Charges from Independent Providers,210.10,CARE FIRST IW LTD,1570
Revenue,Adult Services,5105635940,17.06.2015,Elderly Frail Homecare,Charges from Independent Providers,660.86,CARE FIRST IW LTD,1571
Revenue,Adult Services,5105635939,17.06.2015,Elderly Frail Homecare,Charges from Independent Providers,687.60,CARE FIRST IW LTD,1572
Revenue,Adult Services,5105635942,17.06.2015,Elderly Frail Homecare,Charges from Independent Providers,114.60,CARE FIRST IW LTD,1573
Revenue,Adult Services,5105636709,24.06.2015,Elderly Frail Homecare,Charges from Independent Providers,267.40,CARE FIRST IW LTD,1574
Revenue,Adult Services,5105635979,17.06.2015,Elderly Frail Homecare,Charges from Independent Providers,183.36,CARE FIRST IW LTD,1575
Revenue,Adult Services,5105635957,17.06.2015,Elderly Frail Homecare,Charges from Independent Providers,802.20,CARE FIRST IW LTD,1576
Revenue,Adult Services,5105635953,17.06.2015,Elderly Frail Homecare,Charges from Independent Providers,"1,604.40",CARE FIRST IW LTD,1577
Revenue,Adult Services,5105635952,17.06.2015,Elderly Frail Homecare,Charges from Independent Providers,412.56,CARE FIRST IW LTD,1578
Revenue,Adult Services,5105635950,17.06.2015,Elderly Frail Homecare,Charges from Independent Providers,668.50,CARE FIRST IW LTD,1579
Revenue,Adult Services,5105635946,17.06.2015,Elderly Frail Homecare,Charges from Independent Providers,477.50,CARE FIRST IW LTD,1580
Revenue,Adult Services,5105635947,17.06.2015,Elderly Frail Homecare,Charges from Independent Providers,"1,203.30",CARE FIRST IW LTD,1581
Revenue,Adult Services,5105635945,17.06.2015,Elderly Frail Homecare,Charges from Independent Providers,244.48,CARE FIRST IW LTD,1582
Revenue,Adult Services,5105635937,17.06.2015,Elderly Frail Homecare,Charges from Independent Providers,229.20,CARE FIRST IW LTD,1583
Revenue,Adult Services,5105635972,17.06.2015,Elderly Mentally Ill Homecare,Charges from Independent Providers,534.80,CARE FIRST IW LTD,1584
Revenue,Adult Services,5105635948,17.06.2015,Elderly Mentally Ill Homecare,Charges from Independent Providers,641.76,CARE FIRST IW LTD,1585
Revenue,Adult Services,5105635943,17.06.2015,Elderly Mentally Ill Homecare,Charges from Independent Providers,"2,788.60",CARE FIRST IW LTD,1586
Revenue,Adult Services,5105635977,17.06.2015,Elderly Mentally Ill Homecare,Regular Respite Care,458.40,CARE FIRST IW LTD,1587
Revenue,Adult Services,5105635985,17.06.2015,Elderly Mentally Ill Homecare,Regular Respite Care,30.56,CARE FIRST IW LTD,1588
Revenue,Adult Services,5105635949,17.06.2015,Elderly Mentally Ill Homecare,Regular Respite Care,152.80,CARE FIRST IW LTD,1589
Revenue,Adult Services,5105637136,24.06.2015,Carers Services,Grants to External Bodies,"19,445.00",CARERS IW,1590
Revenue,Adult Services,5105635360,17.06.2015,Physical Disability Homecare,Charges from Independent Providers,"2,674.00",CAREWATCH (SOUTHAMPTON NEW FOREST & IOW),1591
Revenue,Adult Services,5105635353,17.06.2015,Physical Disability Homecare,Charges from Independent Providers,"1,356.10",CAREWATCH (SOUTHAMPTON NEW FOREST & IOW),1592
Revenue,Adult Services,5105635342,17.06.2015,Physical Disability Homecare,Charges from Independent Providers,"1,738.10",CAREWATCH (SOUTHAMPTON NEW FOREST & IOW),1593
Revenue,Adult Services,5105635399,17.06.2015,Physical Disability Homecare,Charges from Independent Providers,981.74,CAREWATCH (SOUTHAMPTON NEW FOREST & IOW),1594
Revenue,Adult Services,5105635373,17.06.2015,Physical Disability Homecare,Charges from Independent Providers,252.12,CAREWATCH (SOUTHAMPTON NEW FOREST & IOW),1595
Revenue,Adult Services,5105635376,17.06.2015,Physical Disability Homecare,Regular Respite Care,366.72,CAREWATCH (SOUTHAMPTON NEW FOREST & IOW),1596
Revenue,Adult Services,5105635371,17.06.2015,Mental Health Homecare,Charges from Independent Providers,"2,406.60",CAREWATCH (SOUTHAMPTON NEW FOREST & IOW),1597
Revenue,Adult Services,5105635335,17.06.2015,Mental Health Homecare,Charges from Independent Providers,137.52,CAREWATCH (SOUTHAMPTON NEW FOREST & IOW),1598
Revenue,Adult Services,5105635361,17.06.2015,Mental Health Homecare,Charges from Independent Providers,267.40,CAREWATCH (SOUTHAMPTON NEW FOREST & IOW),1599
Revenue,Adult Services,5105635349,17.06.2015,Mental Health Homecare,Charges from Independent Providers,126.06,CAREWATCH (SOUTHAMPTON NEW FOREST & IOW),1600
Revenue,Adult Services,5105635351,17.06.2015,Mental Health Homecare,Charges from Independent Providers,152.80,CAREWATCH (SOUTHAMPTON NEW FOREST & IOW),1601
Revenue,Adult Services,5105635411,17.06.2015,Mental Health Homecare,Charges from Independent Providers,"1,054.32",CAREWATCH (SOUTHAMPTON NEW FOREST & IOW),1602
Revenue,Adult Services,5105635354,17.06.2015,Physical Disability Homecare,Charges from Independent Providers,504.24,CAREWATCH (SOUTHAMPTON NEW FOREST & IOW),1603
Revenue,Adult Services,5105635393,17.06.2015,Physical Disability Homecare,Charges from Independent Providers,305.60,CAREWATCH (SOUTHAMPTON NEW FOREST & IOW),1604
Revenue,Adult Services,5105635337,17.06.2015,Physical Disability Homecare,Charges from Independent Providers,955.00,CAREWATCH (SOUTHAMPTON NEW FOREST & IOW),1605
Revenue,Adult Services,5105635380,17.06.2015,Physical Disability Homecare,Charges from Independent Providers,"1,199.48",CAREWATCH (SOUTHAMPTON NEW FOREST & IOW),1606
Revenue,Adult Services,5105635366,17.06.2015,Physical Disability Homecare,Charges from Independent Providers,271.22,CAREWATCH (SOUTHAMPTON NEW FOREST & IOW),1607
Revenue,Adult Services,5105635425,17.06.2015,Elderly Frail Homecare,Regular Respite Care,152.80,CAREWATCH (SOUTHAMPTON NEW FOREST & IOW),1608
Revenue,Adult Services,5105636681,24.06.2015,Elderly Frail Homecare,Regular Respite Care,458.40,CAREWATCH (SOUTHAMPTON NEW FOREST & IOW),1609
Revenue,Adult Services,5105635382,17.06.2015,Elderly Frail Homecare,Regular Respite Care,397.28,CAREWATCH (SOUTHAMPTON NEW FOREST & IOW),1610
Revenue,Adult Services,5105635355,17.06.2015,Elderly Frail Homecare,Regular Respite Care,152.80,CAREWATCH (SOUTHAMPTON NEW FOREST & IOW),1611
Revenue,Adult Services,5105635368,17.06.2015,Elderly Frail Homecare,Regular Respite Care,122.24,CAREWATCH (SOUTHAMPTON NEW FOREST & IOW),1612
Revenue,Adult Services,5105635428,17.06.2015,Elderly Frail Homecare,Regular Respite Care,152.80,CAREWATCH (SOUTHAMPTON NEW FOREST & IOW),1613
Revenue,Adult Services,5105635398,17.06.2015,Elderly Frail Homecare,Regular Respite Care,122.24,CAREWATCH (SOUTHAMPTON NEW FOREST & IOW),1614
Revenue,Adult Services,5105635407,17.06.2015,Elderly Frail Homecare,Regular Respite Care,152.80,CAREWATCH (SOUTHAMPTON NEW FOREST & IOW),1615
Revenue,Adult Services,5105635415,17.06.2015,Elderly Frail Homecare,Regular Respite Care,137.52,CAREWATCH (SOUTHAMPTON NEW FOREST & IOW),1616
Revenue,Adult Services,5105635358,17.06.2015,Elderly Frail Homecare,Regular Respite Care,91.68,CAREWATCH (SOUTHAMPTON NEW FOREST & IOW),1617
Revenue,Adult Services,5105635348,17.06.2015,Elderly Frail Homecare,Regular Respite Care,152.80,CAREWATCH (SOUTHAMPTON NEW FOREST & IOW),1618
Revenue,Adult Services,5105635359,17.06.2015,Elderly Frail Homecare,Regular Respite Care,366.72,CAREWATCH (SOUTHAMPTON NEW FOREST & IOW),1619
Revenue,Adult Services,5105635365,17.06.2015,Elderly Frail Homecare,Regular Respite Care,15.28,CAREWATCH (SOUTHAMPTON NEW FOREST & IOW),1620
Revenue,Adult Services,5105635365,17.06.2015,Elderly Frail Homecare,Regular Respite Care,382.00,CAREWATCH (SOUTHAMPTON NEW FOREST & IOW),1621
Revenue,Adult Services,5105635429,17.06.2015,Elderly Frail Homecare,Regular Respite Care,152.80,CAREWATCH (SOUTHAMPTON NEW FOREST & IOW),1622
Revenue,Adult Services,5105635414,17.06.2015,Elderly Frail Homecare,Regular Respite Care,152.80,CAREWATCH (SOUTHAMPTON NEW FOREST & IOW),1623
Revenue,Adult Services,5105635363,17.06.2015,Elderly Frail Homecare,Regular Respite Care,122.24,CAREWATCH (SOUTHAMPTON NEW FOREST & IOW),1624
Revenue,Adult Services,5105635362,17.06.2015,Elderly Frail Homecare,Charges from Independent Providers,897.70,CAREWATCH (SOUTHAMPTON NEW FOREST & IOW),1625
Revenue,Adult Services,5105635364,17.06.2015,Elderly Frail Homecare,Charges from Independent Providers,496.60,CAREWATCH (SOUTHAMPTON NEW FOREST & IOW),1626
Revenue,Adult Services,5105635409,17.06.2015,Elderly Frail Homecare,Charges from Independent Providers,152.80,CAREWATCH (SOUTHAMPTON NEW FOREST & IOW),1627
Revenue,Adult Services,5105635402,17.06.2015,Elderly Frail Homecare,Charges from Independent Providers,"1,069.60",CAREWATCH (SOUTHAMPTON NEW FOREST & IOW),1628
Revenue,Adult Services,5105635404,17.06.2015,Elderly Frail Homecare,Charges from Independent Providers,114.60,CAREWATCH (SOUTHAMPTON NEW FOREST & IOW),1629
Revenue,Adult Services,5105635416,17.06.2015,Elderly Frail Homecare,Charges from Independent Providers,637.94,CAREWATCH (SOUTHAMPTON NEW FOREST & IOW),1630
Revenue,Adult Services,5105635370,17.06.2015,Elderly Frail Homecare,Charges from Independent Providers,511.88,CAREWATCH (SOUTHAMPTON NEW FOREST & IOW),1631
Revenue,Adult Services,5105635386,17.06.2015,Elderly Frail Homecare,Charges from Independent Providers,794.56,CAREWATCH (SOUTHAMPTON NEW FOREST & IOW),1632
Revenue,Adult Services,5105635387,17.06.2015,Elderly Frail Homecare,Charges from Independent Providers,"2,658.72",CAREWATCH (SOUTHAMPTON NEW FOREST & IOW),1633
Revenue,Adult Services,5105635388,17.06.2015,Elderly Frail Homecare,Charges from Independent Providers,802.20,CAREWATCH (SOUTHAMPTON NEW FOREST & IOW),1634
Revenue,Adult Services,5105635389,17.06.2015,Elderly Frail Homecare,Charges from Independent Providers,"1,470.70",CAREWATCH (SOUTHAMPTON NEW FOREST & IOW),1635
Revenue,Adult Services,5105635390,17.06.2015,Elderly Frail Homecare,Charges from Independent Providers,267.40,CAREWATCH (SOUTHAMPTON NEW FOREST & IOW),1636
Revenue,Adult Services,5105635347,17.06.2015,Elderly Frail Homecare,Charges from Independent Providers,912.98,CAREWATCH (SOUTHAMPTON NEW FOREST & IOW),1637
Revenue,Adult Services,5105635346,17.06.2015,Elderly Frail Homecare,Charges from Independent Providers,191.00,CAREWATCH (SOUTHAMPTON NEW FOREST & IOW),1638
Revenue,Adult Services,5105635345,17.06.2015,Elderly Frail Homecare,Charges from Independent Providers,771.64,CAREWATCH (SOUTHAMPTON NEW FOREST & IOW),1639
Revenue,Adult Services,5105635350,17.06.2015,Elderly Frail Homecare,Charges from Independent Providers,103.14,CAREWATCH (SOUTHAMPTON NEW FOREST & IOW),1640
Revenue,Adult Services,5105635431,17.06.2015,Elderly Frail Homecare,Charges from Independent Providers,"2,185.04",CAREWATCH (SOUTHAMPTON NEW FOREST & IOW),1641
Revenue,Adult Services,5105635437,17.06.2015,Elderly Frail Homecare,Charges from Independent Providers,259.76,CAREWATCH (SOUTHAMPTON NEW FOREST & IOW),1642
Revenue,Adult Services,5105635374,17.06.2015,Elderly Frail Homecare,Charges from Independent Providers,267.40,CAREWATCH (SOUTHAMPTON NEW FOREST & IOW),1643
Revenue,Adult Services,5105635426,17.06.2015,Elderly Frail Homecare,Charges from Independent Providers,603.56,CAREWATCH (SOUTHAMPTON NEW FOREST & IOW),1644
Revenue,Adult Services,5105635435,17.06.2015,Elderly Frail Homecare,Charges from Independent Providers,137.52,CAREWATCH (SOUTHAMPTON NEW FOREST & IOW),1645
Revenue,Adult Services,5105635377,17.06.2015,Elderly Frail Homecare,Charges from Independent Providers,798.38,CAREWATCH (SOUTHAMPTON NEW FOREST & IOW),1646
Revenue,Adult Services,5105635430,17.06.2015,Elderly Frail Homecare,Charges from Independent Providers,802.20,CAREWATCH (SOUTHAMPTON NEW FOREST & IOW),1647
Revenue,Adult Services,5105635356,17.06.2015,Elderly Frail Homecare,Charges from Independent Providers,401.10,CAREWATCH (SOUTHAMPTON NEW FOREST & IOW),1648
Revenue,Adult Services,5105635344,17.06.2015,Elderly Frail Homecare,Charges from Independent Providers,890.06,CAREWATCH (SOUTHAMPTON NEW FOREST & IOW),1649
Revenue,Adult Services,5105635343,17.06.2015,Elderly Frail Homecare,Charges from Independent Providers,267.40,CAREWATCH (SOUTHAMPTON NEW FOREST & IOW),1650
Revenue,Adult Services,5105635391,17.06.2015,Elderly Frail Homecare,Charges from Independent Providers,668.50,CAREWATCH (SOUTHAMPTON NEW FOREST & IOW),1651
Revenue,Adult Services,5105635412,17.06.2015,Elderly Frail Homecare,Charges from Independent Providers,573.00,CAREWATCH (SOUTHAMPTON NEW FOREST & IOW),1652
Revenue,Adult Services,5105635418,17.06.2015,Elderly Frail Homecare,Charges from Independent Providers,122.24,CAREWATCH (SOUTHAMPTON NEW FOREST & IOW),1653
Revenue,Adult Services,5105635419,17.06.2015,Elderly Frail Homecare,Charges from Independent Providers,924.44,CAREWATCH (SOUTHAMPTON NEW FOREST & IOW),1654
Revenue,Adult Services,5105635395,17.06.2015,Elderly Frail Homecare,Charges from Independent Providers,"1,337.00",CAREWATCH (SOUTHAMPTON NEW FOREST & IOW),1655
Revenue,Adult Services,5105635396,17.06.2015,Elderly Frail Homecare,Charges from Independent Providers,76.40,CAREWATCH (SOUTHAMPTON NEW FOREST & IOW),1656
Revenue,Adult Services,5105635397,17.06.2015,Elderly Frail Homecare,Charges from Independent Providers,76.40,CAREWATCH (SOUTHAMPTON NEW FOREST & IOW),1657
Revenue,Adult Services,5105635433,17.06.2015,Elderly Frail Homecare,Charges from Independent Providers,76.40,CAREWATCH (SOUTHAMPTON NEW FOREST & IOW),1658
Revenue,Adult Services,5105635436,17.06.2015,Elderly Frail Homecare,Charges from Independent Providers,229.20,CAREWATCH (SOUTHAMPTON NEW FOREST & IOW),1659
Revenue,Adult Services,5105635440,17.06.2015,Elderly Frail Homecare,Charges from Independent Providers,15.28,CAREWATCH (SOUTHAMPTON NEW FOREST & IOW),1660
Revenue,Adult Services,5105635410,17.06.2015,Elderly Frail Homecare,Charges from Independent Providers,57.30,CAREWATCH (SOUTHAMPTON NEW FOREST & IOW),1661
Revenue,Adult Services,5105635417,17.06.2015,Elderly Frail Homecare,Charges from Independent Providers,935.90,CAREWATCH (SOUTHAMPTON NEW FOREST & IOW),1662
Revenue,Adult Services,5105635420,17.06.2015,Elderly Frail Homecare,Charges from Independent Providers,38.20,CAREWATCH (SOUTHAMPTON NEW FOREST & IOW),1663
Revenue,Adult Services,5105635406,17.06.2015,Elderly Frail Homecare,Charges from Independent Providers,"1,871.80",CAREWATCH (SOUTHAMPTON NEW FOREST & IOW),1664
Revenue,Adult Services,5105635403,17.06.2015,Elderly Frail Homecare,Charges from Independent Providers,"1,321.72",CAREWATCH (SOUTHAMPTON NEW FOREST & IOW),1665
Revenue,Adult Services,5105635401,17.06.2015,Elderly Frail Homecare,Charges from Independent Providers,534.80,CAREWATCH (SOUTHAMPTON NEW FOREST & IOW),1666
Revenue,Adult Services,5105635438,17.06.2015,Elderly Frail Homecare,Charges from Independent Providers,221.56,CAREWATCH (SOUTHAMPTON NEW FOREST & IOW),1667
Revenue,Adult Services,5105635422,17.06.2015,Elderly Frail Homecare,Charges from Independent Providers,920.62,CAREWATCH (SOUTHAMPTON NEW FOREST & IOW),1668
Revenue,Adult Services,5105635421,17.06.2015,Elderly Frail Homecare,Charges from Independent Providers,"1,978.76",CAREWATCH (SOUTHAMPTON NEW FOREST & IOW),1669
Revenue,Adult Services,5105635427,17.06.2015,Elderly Frail Homecare,Charges from Independent Providers,534.80,CAREWATCH (SOUTHAMPTON NEW FOREST & IOW),1670
Revenue,Adult Services,5105635424,17.06.2015,Elderly Frail Homecare,Charges from Independent Providers,798.38,CAREWATCH (SOUTHAMPTON NEW FOREST & IOW),1671
Revenue,Adult Services,5105635441,17.06.2015,Elderly Frail Homecare,Charges from Independent Providers,"1,535.64",CAREWATCH (SOUTHAMPTON NEW FOREST & IOW),1672
Revenue,Adult Services,5105635443,17.06.2015,Elderly Frail Homecare,Charges from Independent Providers,137.52,CAREWATCH (SOUTHAMPTON NEW FOREST & IOW),1673
Revenue,Adult Services,5105635434,17.06.2015,Elderly Frail Homecare,Charges from Independent Providers,267.40,CAREWATCH (SOUTHAMPTON NEW FOREST & IOW),1674
Revenue,Adult Services,5105635340,17.06.2015,Elderly Frail Homecare,Charges from Independent Providers,534.80,CAREWATCH (SOUTHAMPTON NEW FOREST & IOW),1675
Revenue,Adult Services,5105635381,17.06.2015,Elderly Frail Homecare,Charges from Independent Providers,213.92,CAREWATCH (SOUTHAMPTON NEW FOREST & IOW),1676
Revenue,Adult Services,5105635385,17.06.2015,Elderly Frail Homecare,Charges from Independent Providers,584.46,CAREWATCH (SOUTHAMPTON NEW FOREST & IOW),1677
Revenue,Adult Services,5105635384,17.06.2015,Elderly Frail Homecare,Charges from Independent Providers,611.20,CAREWATCH (SOUTHAMPTON NEW FOREST & IOW),1678
Revenue,Adult Services,5105635383,17.06.2015,Elderly Frail Homecare,Charges from Independent Providers,183.36,CAREWATCH (SOUTHAMPTON NEW FOREST & IOW),1679
Revenue,Adult Services,5105635339,17.06.2015,Elderly Frail Homecare,Charges from Independent Providers,"1,642.60",CAREWATCH (SOUTHAMPTON NEW FOREST & IOW),1680
Revenue,Adult Services,5105635392,17.06.2015,Elderly Frail Homecare,Charges from Independent Providers,168.08,CAREWATCH (SOUTHAMPTON NEW FOREST & IOW),1681
Revenue,Adult Services,5105635394,17.06.2015,Elderly Frail Homecare,Charges from Independent Providers,802.20,CAREWATCH (SOUTHAMPTON NEW FOREST & IOW),1682
